﻿Body Name ,Supp ID,Service Area Category,,Supplier Name,Supp Grp,Period,Invoice Date,TT,Unique Invoice Reference ,,Inv Amount,Account,Expenditure Description,Cost C,Cost Centre Name,Posted Amount
Nottinghamshire Fire and Rescue Service,104064,Management & Support Services,Macildowie Associates Ltd,Macildowie Associates Ltd,5,202407,01/10/2023,P6,9108429,"-1,199.52 ","1,199.52 ",1005,Admin Agency Staff,2058,HR Support,999.60 
Nottinghamshire Fire and Rescue Service,104064,Management & Support Services,Express Recruitment Ltd,Express Recruitment Ltd,1,202407,27/09/2023,P6,9108448,-818.56 ,818.56 ,1005,Admin Agency Staff,2070,Strategic Support,682.13 
Nottinghamshire Fire and Rescue Service,102190,Management & Support Services,Reflect Recruitment Group Limited,Reflect Recruitment Group Limited,5,202407,02/10/2023,P6,9108504,-743.28 ,743.28 ,1005,Admin Agency Staff,2058,HR Support,619.40 
Nottinghamshire Fire and Rescue Service,100557,Operational Responses,Express Recruitment Ltd,Express Recruitment Ltd,1,202407,27/09/2023,P6,9108506,"-1,680.36 ","1,680.36 ",1005,Admin Agency Staff,2005,Fire Control,718.17 
Nottinghamshire Fire and Rescue Service,100557,Management & Support Services,Express Recruitment Ltd,Express Recruitment Ltd,1,202407,27/09/2023,P6,9108506,"-1,680.36 ","1,680.36 ",1005,Admin Agency Staff,2075,Service Support Hub,682.13 
Nottinghamshire Fire and Rescue Service,100557,Operational Responses,Express Recruitment Ltd,Express Recruitment Ltd,1,202407,04/10/2023,P6,9108509,"-1,680.36 ","1,680.36 ",1005,Admin Agency Staff,2005,Fire Control,718.17 
Nottinghamshire Fire and Rescue Service,100557,Management & Support Services,Express Recruitment Ltd,Express Recruitment Ltd,1,202407,04/10/2023,P6,9108509,"-1,680.36 ","1,680.36 ",1005,Admin Agency Staff,2075,Service Support Hub,682.13 
Nottinghamshire Fire and Rescue Service,100557,Management & Support Services,Reflect Recruitment Group Limited,Reflect Recruitment Group Limited,5,202407,09/10/2023,P6,9108604,-924.41 ,924.41 ,1005,Admin Agency Staff,2058,HR Support,770.34 
Nottinghamshire Fire and Rescue Service,100557,Management & Support Services,Macildowie Associates Ltd,Macildowie Associates Ltd,5,202407,15/10/2023,P6,9108676,"-1,156.68 ","1,156.68 ",1005,Admin Agency Staff,2058,HR Support,963.90 
Nottinghamshire Fire and Rescue Service,100557,Management & Support Services,Express Recruitment Ltd,Express Recruitment Ltd,1,202407,04/10/2023,P6,9108721,-818.56 ,818.56 ,1005,Admin Agency Staff,2070,Strategic Support,682.13 
Nottinghamshire Fire and Rescue Service,100557,Management & Support Services,Express Recruitment Ltd,Express Recruitment Ltd,1,202407,11/10/2023,P6,9108722,-818.56 ,818.56 ,1005,Admin Agency Staff,2070,Strategic Support,682.13 
Nottinghamshire Fire and Rescue Service,100557,Management & Support Services,Reflect Recruitment Group Limited,Reflect Recruitment Group Limited,5,202407,16/10/2023,P6,9108723,-474.70 ,474.70 ,1005,Admin Agency Staff,2058,HR Support,395.58 
Nottinghamshire Fire and Rescue Service,100557,Management & Support Services,Express Recruitment Ltd,Express Recruitment Ltd,1,202407,11/10/2023,P6,9108726,-633.01 ,633.01 ,1005,Admin Agency Staff,2075,Service Support Hub,527.51 
Nottinghamshire Fire and Rescue Service,100557,Management & Support Services,Express Recruitment Ltd,Express Recruitment Ltd,1,202407,18/10/2023,P6,9108733,-829.46 ,829.46 ,1005,Admin Agency Staff,2075,Service Support Hub,691.22 
Nottinghamshire Fire and Rescue Service,100557,Management & Support Services,Express Recruitment Ltd,Express Recruitment Ltd,1,202407,18/10/2023,P6,9108741,-818.56 ,818.56 ,1005,Admin Agency Staff,2070,Strategic Support,682.13 
Nottinghamshire Fire and Rescue Service,100557,Management & Support Services,Nottinghamshire Healthcare NHS Trust,Nottinghamshire Healthcare NHS Trust,5,202407,17/10/2023,P6,9108762,"-1,676.58 ","1,676.58 ",1005,Admin Agency Staff,2068,Prevention,"1,676.58 "
Nottinghamshire Fire and Rescue Service,100557,Management & Support Services,Macildowie Associates Ltd,Macildowie Associates Ltd,5,202407,22/10/2023,P6,9108797,"-1,199.52 ","1,199.52 ",1005,Admin Agency Staff,2058,HR Support,999.60 
Nottinghamshire Fire and Rescue Service,100557,Management & Support Services,Lithium3 Technology Recruitment Limited,Lithium3 Technology Recruitment Limited,5,202407,18/10/2023,P6,9108825,"-1,140.00 ","1,140.00 ",1005,Admin Agency Staff,2097,ICT Service Operations,950.00 
Nottinghamshire Fire and Rescue Service,100557,Management & Support Services,Express Recruitment Ltd,Express Recruitment Ltd,1,202407,25/10/2023,P6,9108837,-818.56 ,818.56 ,1005,Admin Agency Staff,2075,Service Support Hub,682.13 
Nottinghamshire Fire and Rescue Service,100557,Management & Support Services,Lithium3 Technology Recruitment Limited,Lithium3 Technology Recruitment Limited,5,202407,30/09/2023,P6,9108839,"-1,140.00 ","1,140.00 ",1005,Admin Agency Staff,2097,ICT Service Operations,950.00 
Nottinghamshire Fire and Rescue Service,100557,Management & Support Services,Lithium3 Technology Recruitment Limited,Lithium3 Technology Recruitment Limited,5,202407,11/10/2023,P6,9108840,"-1,140.00 ","1,140.00 ",1005,Admin Agency Staff,2097,ICT Service Operations,950.00 
Nottinghamshire Fire and Rescue Service,100557,Management & Support Services,Lithium3 Technology Recruitment Limited,Lithium3 Technology Recruitment Limited,5,202407,25/10/2023,P6,9108841,-950.88 ,950.88 ,1005,Admin Agency Staff,2097,ICT Service Operations,760.00 
Nottinghamshire Fire and Rescue Service,100557,Management & Support Services,Nuffield Sailing Centre,Nuffield Sailing Centre,1,202407,05/10/2023,P6,9108500,-880.00 ,880.00 ,1801,Training,2059,Corporate Training,40.00 
Nottinghamshire Fire and Rescue Service,100557,Management & Support Services,Skills For Justice,Skills For Justice,1,202407,30/09/2023,P6,9108505,"-1,675.00 ","1,675.00 ",1801,Training,2059,Corporate Training,"1,675.00 "
Nottinghamshire Fire and Rescue Service,100557,Management & Support Services,Global Knowledge Network Training Ltd,Global Knowledge Network Training Ltd,1,202407,11/10/2023,P6,9108551,"-3,114.00 ","3,114.00 ",1801,Training,2097,ICT Service Operations,"2,595.00 "
Nottinghamshire Fire and Rescue Service,100557,"Statutory Inspection, Certification & Enforcement","North East Midlands Branch, Institution of Fire Engineers","North East Midlands Branch, Institution of Fire Engineers",5,202407,12/10/2023,P6,9108600,"-1,875.00 ","1,875.00 ",1801,Training,2021,Fire Protection,"1,875.00 "
Nottinghamshire Fire and Rescue Service,100557,"Statutory Inspection, Certification & Enforcement",Xact Consultancy & Training Limited,Xact Consultancy & Training Limited,5,202407,17/10/2023,P6,9108675,"-1,152.00 ","1,152.00 ",1801,Training,2021,Fire Protection,960.00 
Nottinghamshire Fire and Rescue Service,102376,"Statutory Inspection, Certification & Enforcement",Xact Consultancy & Training Limited,Xact Consultancy & Training Limited,5,202407,16/10/2023,P6,9108707,-384.00 ,384.00 ,1801,Training,2021,Fire Protection,320.00 
Nottinghamshire Fire and Rescue Service,103242,"Statutory Inspection, Certification & Enforcement",Xact Consultancy & Training Limited,Xact Consultancy & Training Limited,5,202407,16/10/2023,P6,9108712,-384.00 ,384.00 ,1801,Training,2021,Fire Protection,320.00 
Nottinghamshire Fire and Rescue Service,102864,Management & Support Services,Fire Service College Ltd,Fire Service College Ltd,4,202407,16/10/2023,P6,9108794,"-1,864.01 ","1,864.01 ",1801,Training,2059,Corporate Training,"1,553.34 "
Nottinghamshire Fire and Rescue Service,102280,Management & Support Services,(Vanessa Boon trading as) Energise - people development & diversity,(Vanessa Boon trading as) Energise - people development & diversity,5,202407,25/10/2023,P6,9108826,-800.00 ,800.00 ,1801,Training,2054,Equalities Team,800.00 
Nottinghamshire Fire and Rescue Service,104070,Management & Support Services,Local Government Association,Local Government Association,1,202407,25/10/2023,P6,9108836,-620.40 ,620.40 ,1801,Training,2093,Command Suite,517.00 
Nottinghamshire Fire and Rescue Service,103943,Management & Support Services,Richardson Associates (UK) Limited,Richardson Associates (UK) Limited,5,202407,29/09/2023,P6,9108452,"-4,284.00 ","4,284.00 ",1850,Recruitment Advertising,2058,HR Support,"3,570.00 "
Nottinghamshire Fire and Rescue Service,103483,Management & Support Services,Flat Fee Recruiter Limited,Flat Fee Recruiter Limited,5,202407,06/10/2023,P6,9108527,-322.80 ,322.80 ,1850,Recruitment Advertising,2049,Professional Support,269.00 
Nottinghamshire Fire and Rescue Service,101867,Management & Support Services,NCC Sundry Debtors,NCC Sundry Debtors,4,202407,04/10/2023,P6,9108534,-358.20 ,358.20 ,1850,Recruitment Advertising,2049,Professional Support,298.50 
Nottinghamshire Fire and Rescue Service,101867,Management & Support Services,RealWorldHR Limited,RealWorldHR Limited,5,202407,04/10/2023,P6,9108537,"-2,860.56 ","2,860.56 ",1850,Recruitment Advertising,2049,Professional Support,"2,383.80 "
Nottinghamshire Fire and Rescue Service,100357,Management & Support Services,Flat Fee Recruiter Limited,Flat Fee Recruiter Limited,5,202407,11/10/2023,P6,9108607,-322.80 ,322.80 ,1850,Recruitment Advertising,2049,Professional Support,269.00 
Nottinghamshire Fire and Rescue Service,104116,Management & Support Services,SATOS Media Limited t/a Cyber Security Jobsite.com,SATOS Media Limited t/a Cyber Security Jobsite.com,5,202407,13/10/2023,P6,9108791,-954.00 ,954.00 ,1850,Recruitment Advertising,2049,Professional Support,795.00 
Nottinghamshire Fire and Rescue Service,104064,Management & Support Services,Express Recruitment Ltd,Express Recruitment Ltd,1,202407,18/10/2023,P6,9108793,"-7,288.04 ","7,288.04 ",1850,Recruitment Advertising,2096,ICT Service Transformation,"6,073.37 "
Nottinghamshire Fire and Rescue Service,104064,Management & Support Services,Bupa UK Insurance Services,Bupa UK Insurance Services,5,202407,28/09/2023,P6,9108490,"-3,282.14 ","3,282.14 ",1860,Employee Benefits Schemes,2049,Professional Support,"3,282.14 "
Nottinghamshire Fire and Rescue Service,104064,Management & Support Services,Bupa UK Insurance Services,Bupa UK Insurance Services,5,202407,28/07/2023,P6,9108715,"-3,264.82 ","3,264.82 ",1860,Employee Benefits Schemes,2049,Professional Support,"3,264.82 "
Nottinghamshire Fire and Rescue Service,104064,Management & Support Services,NCC Pension Fund,NCC Pension Fund,1,202407,29/09/2023,P6,9108520,"-4,567.95 ","4,567.95 ",1905,Gratuities,1089,Pension Costs met from Revenue,105.09 
Nottinghamshire Fire and Rescue Service,102190,Management & Support Services,NCC Pension Fund,NCC Pension Fund,1,202407,29/09/2023,P6,9108520,"-4,567.95 ","4,567.95 ",1921,Annual Pensions - Non Uniforms,1089,Pension Costs met from Revenue,"4,462.86 "
Nottinghamshire Fire and Rescue Service,100557,Operational Responses,Nottinghamshire County Council,Nottinghamshire County Council,1,202407,05/10/2023,P6,9108543,-278.40 ,278.40 ,2000,Buildings Repairs and Maintenance - Reactive,1029,Highfields Station,232.00 
Nottinghamshire Fire and Rescue Service,100557,Operational Responses,Falcon Environmental Limited,Falcon Environmental Limited,5,202407,08/10/2023,P6,9108546,-798.00 ,798.00 ,2000,Buildings Repairs and Maintenance - Reactive,1003,London Road,665.00 
Nottinghamshire Fire and Rescue Service,100557,Operational Responses,Amptron Electrical Services,Amptron Electrical Services,1,202407,12/10/2023,P6,9108624,"-12,369.84 ","12,369.84 ",2000,Buildings Repairs and Maintenance - Reactive,1001,Mansfield,"1,814.38 "
Nottinghamshire Fire and Rescue Service,100557,Operational Responses,Amptron Electrical Services,Amptron Electrical Services,1,202407,12/10/2023,P6,9108624,"-12,369.84 ","12,369.84 ",2000,Buildings Repairs and Maintenance - Reactive,1002,Blidworth,81.58 
Nottinghamshire Fire and Rescue Service,100557,Operational Responses,Amptron Electrical Services,Amptron Electrical Services,1,202407,12/10/2023,P6,9108624,"-12,369.84 ","12,369.84 ",2000,Buildings Repairs and Maintenance - Reactive,1003,London Road,397.15 
Nottinghamshire Fire and Rescue Service,100557,Operational Responses,Amptron Electrical Services,Amptron Electrical Services,1,202407,12/10/2023,P6,9108624,"-12,369.84 ","12,369.84 ",2000,Buildings Repairs and Maintenance - Reactive,1005,Ashfield,71.78 
Nottinghamshire Fire and Rescue Service,100557,Operational Responses,Amptron Electrical Services,Amptron Electrical Services,1,202407,12/10/2023,P6,9108624,"-12,369.84 ","12,369.84 ",2000,Buildings Repairs and Maintenance - Reactive,1006,Edwinstowe,102.92 
Nottinghamshire Fire and Rescue Service,100557,Operational Responses,Amptron Electrical Services,Amptron Electrical Services,1,202407,12/10/2023,P6,9108624,"-12,369.84 ","12,369.84 ",2000,Buildings Repairs and Maintenance - Reactive,1008,Worksop,102.92 
Nottinghamshire Fire and Rescue Service,100557,Operational Responses,Amptron Electrical Services,Amptron Electrical Services,1,202407,12/10/2023,P6,9108624,"-12,369.84 ","12,369.84 ",2000,Buildings Repairs and Maintenance - Reactive,1011,Misterton,34.20 
Nottinghamshire Fire and Rescue Service,100557,Operational Responses,Amptron Electrical Services,Amptron Electrical Services,1,202407,12/10/2023,P6,9108624,"-12,369.84 ","12,369.84 ",2000,Buildings Repairs and Maintenance - Reactive,1012,Retford,593.04 
Nottinghamshire Fire and Rescue Service,100557,Operational Responses,Amptron Electrical Services,Amptron Electrical Services,1,202407,12/10/2023,P6,9108624,"-12,369.84 ","12,369.84 ",2000,Buildings Repairs and Maintenance - Reactive,1014,Southwell,81.58 
Nottinghamshire Fire and Rescue Service,100557,Operational Responses,Amptron Electrical Services,Amptron Electrical Services,1,202407,12/10/2023,P6,9108624,"-12,369.84 ","12,369.84 ",2000,Buildings Repairs and Maintenance - Reactive,1016,Newark,33.12 
Nottinghamshire Fire and Rescue Service,100557,Operational Responses,Amptron Electrical Services,Amptron Electrical Services,1,202407,12/10/2023,P6,9108624,"-12,369.84 ","12,369.84 ",2000,Buildings Repairs and Maintenance - Reactive,1019,West Bridgford,260.18 
Nottinghamshire Fire and Rescue Service,100557,Operational Responses,Amptron Electrical Services,Amptron Electrical Services,1,202407,12/10/2023,P6,9108624,"-12,369.84 ","12,369.84 ",2000,Buildings Repairs and Maintenance - Reactive,1020,Stockhill,"3,339.88 "
Nottinghamshire Fire and Rescue Service,100557,Operational Responses,Amptron Electrical Services,Amptron Electrical Services,1,202407,12/10/2023,P6,9108624,"-12,369.84 ","12,369.84 ",2000,Buildings Repairs and Maintenance - Reactive,1023,Stapleford,168.54 
Nottinghamshire Fire and Rescue Service,100557,Operational Responses,Amptron Electrical Services,Amptron Electrical Services,1,202407,12/10/2023,P6,9108624,"-12,369.84 ","12,369.84 ",2000,Buildings Repairs and Maintenance - Reactive,1024,Eastwood,216.05 
Nottinghamshire Fire and Rescue Service,100557,Operational Responses,Amptron Electrical Services,Amptron Electrical Services,1,202407,12/10/2023,P6,9108624,"-12,369.84 ","12,369.84 ",2000,Buildings Repairs and Maintenance - Reactive,1027,Carlton,426.28 
Nottinghamshire Fire and Rescue Service,100557,Operational Responses,Amptron Electrical Services,Amptron Electrical Services,1,202407,12/10/2023,P6,9108624,"-12,369.84 ","12,369.84 ",2000,Buildings Repairs and Maintenance - Reactive,1029,Highfields Station,"2,473.49 "
Nottinghamshire Fire and Rescue Service,100557,Management & Support Services,Amptron Electrical Services,Amptron Electrical Services,1,202407,12/10/2023,P6,9108624,"-12,369.84 ","12,369.84 ",2000,Buildings Repairs and Maintenance - Reactive,1030,Service Development Centre,111.12 
Nottinghamshire Fire and Rescue Service,100557,Operational Responses,Nottinghamshire County Council,Nottinghamshire County Council,1,202407,24/10/2023,P6,9108815,-278.40 ,278.40 ,2000,Buildings Repairs and Maintenance - Reactive,1020,Stockhill,232.00 
Nottinghamshire Fire and Rescue Service,100557,Operational Responses,Eastern Shires Purchasing Organisation,Eastern Shires Purchasing Organisation,1,202407,23/10/2023,P6,9108816,-328.20 ,328.20 ,2000,Buildings Repairs and Maintenance - Reactive,1016,Newark,273.50 
Nottinghamshire Fire and Rescue Service,100557,Operational Responses,Amptron Electrical Services,Amptron Electrical Services,1,202407,25/10/2023,P6,9108824,"-21,898.92 ","21,898.92 ",2000,Buildings Repairs and Maintenance - Reactive,1001,Mansfield,"2,791.60 "
Nottinghamshire Fire and Rescue Service,100557,Operational Responses,Amptron Electrical Services,Amptron Electrical Services,1,202407,25/10/2023,P6,9108824,"-21,898.92 ","21,898.92 ",2000,Buildings Repairs and Maintenance - Reactive,1002,Blidworth,103.53 
Nottinghamshire Fire and Rescue Service,100557,Operational Responses,Amptron Electrical Services,Amptron Electrical Services,1,202407,25/10/2023,P6,9108824,"-21,898.92 ","21,898.92 ",2000,Buildings Repairs and Maintenance - Reactive,1003,London Road,"1,398.95 "
Nottinghamshire Fire and Rescue Service,102495,Operational Responses,Amptron Electrical Services,Amptron Electrical Services,1,202407,25/10/2023,P6,9108824,"-21,898.92 ","21,898.92 ",2000,Buildings Repairs and Maintenance - Reactive,1005,Ashfield,"3,119.77 "
Nottinghamshire Fire and Rescue Service,102495,Operational Responses,Amptron Electrical Services,Amptron Electrical Services,1,202407,25/10/2023,P6,9108824,"-21,898.92 ","21,898.92 ",2000,Buildings Repairs and Maintenance - Reactive,1006,Edwinstowe,340.87 
Nottinghamshire Fire and Rescue Service,104292,Operational Responses,Amptron Electrical Services,Amptron Electrical Services,1,202407,25/10/2023,P6,9108824,"-21,898.92 ","21,898.92 ",2000,Buildings Repairs and Maintenance - Reactive,1007,Warsop,199.08 
Nottinghamshire Fire and Rescue Service,102280,Operational Responses,Amptron Electrical Services,Amptron Electrical Services,1,202407,25/10/2023,P6,9108824,"-21,898.92 ","21,898.92 ",2000,Buildings Repairs and Maintenance - Reactive,1008,Worksop,862.03 
Nottinghamshire Fire and Rescue Service,100557,Operational Responses,Amptron Electrical Services,Amptron Electrical Services,1,202407,25/10/2023,P6,9108824,"-21,898.92 ","21,898.92 ",2000,Buildings Repairs and Maintenance - Reactive,1012,Retford,987.33 
Nottinghamshire Fire and Rescue Service,100557,Operational Responses,Amptron Electrical Services,Amptron Electrical Services,1,202407,25/10/2023,P6,9108824,"-21,898.92 ","21,898.92 ",2000,Buildings Repairs and Maintenance - Reactive,1014,Southwell,536.91 
Nottinghamshire Fire and Rescue Service,100557,Operational Responses,Amptron Electrical Services,Amptron Electrical Services,1,202407,25/10/2023,P6,9108824,"-21,898.92 ","21,898.92 ",2000,Buildings Repairs and Maintenance - Reactive,1015,Collingham,476.25 
Nottinghamshire Fire and Rescue Service,100557,Operational Responses,Amptron Electrical Services,Amptron Electrical Services,1,202407,25/10/2023,P6,9108824,"-21,898.92 ","21,898.92 ",2000,Buildings Repairs and Maintenance - Reactive,1016,Newark,267.70 
Nottinghamshire Fire and Rescue Service,100557,Operational Responses,Amptron Electrical Services,Amptron Electrical Services,1,202407,25/10/2023,P6,9108824,"-21,898.92 ","21,898.92 ",2000,Buildings Repairs and Maintenance - Reactive,1017,Bingham,678.26 
Nottinghamshire Fire and Rescue Service,100557,Operational Responses,Amptron Electrical Services,Amptron Electrical Services,1,202407,25/10/2023,P6,9108824,"-21,898.92 ","21,898.92 ",2000,Buildings Repairs and Maintenance - Reactive,1019,West Bridgford,894.64 
Nottinghamshire Fire and Rescue Service,100557,Operational Responses,Amptron Electrical Services,Amptron Electrical Services,1,202407,25/10/2023,P6,9108824,"-21,898.92 ","21,898.92 ",2000,Buildings Repairs and Maintenance - Reactive,1020,Stockhill,"1,214.60 "
Nottinghamshire Fire and Rescue Service,100557,Operational Responses,Amptron Electrical Services,Amptron Electrical Services,1,202407,25/10/2023,P6,9108824,"-21,898.92 ","21,898.92 ",2000,Buildings Repairs and Maintenance - Reactive,1023,Stapleford,311.40 
Nottinghamshire Fire and Rescue Service,100557,Operational Responses,Amptron Electrical Services,Amptron Electrical Services,1,202407,25/10/2023,P6,9108824,"-21,898.92 ","21,898.92 ",2000,Buildings Repairs and Maintenance - Reactive,1024,Eastwood,74.47 
Nottinghamshire Fire and Rescue Service,100557,Operational Responses,Amptron Electrical Services,Amptron Electrical Services,1,202407,25/10/2023,P6,9108824,"-21,898.92 ","21,898.92 ",2000,Buildings Repairs and Maintenance - Reactive,1026,Arnold,854.28 
Nottinghamshire Fire and Rescue Service,100557,Operational Responses,Amptron Electrical Services,Amptron Electrical Services,1,202407,25/10/2023,P6,9108824,"-21,898.92 ","21,898.92 ",2000,Buildings Repairs and Maintenance - Reactive,1027,Carlton,540.55 
Nottinghamshire Fire and Rescue Service,100557,Operational Responses,Amptron Electrical Services,Amptron Electrical Services,1,202407,25/10/2023,P6,9108824,"-21,898.92 ","21,898.92 ",2000,Buildings Repairs and Maintenance - Reactive,1028,East Leake,281.84 
Nottinghamshire Fire and Rescue Service,100557,Operational Responses,Amptron Electrical Services,Amptron Electrical Services,1,202407,25/10/2023,P6,9108824,"-21,898.92 ","21,898.92 ",2000,Buildings Repairs and Maintenance - Reactive,1029,Highfields Station,567.40 
Nottinghamshire Fire and Rescue Service,100557,Management & Support Services,Amptron Electrical Services,Amptron Electrical Services,1,202407,25/10/2023,P6,9108824,"-21,898.92 ","21,898.92 ",2000,Buildings Repairs and Maintenance - Reactive,1030,Service Development Centre,"1,528.07 "
Nottinghamshire Fire and Rescue Service,100557,Management & Support Services,Amptron Electrical Services,Amptron Electrical Services,1,202407,25/10/2023,P6,9108824,"-21,898.92 ","21,898.92 ",2000,Buildings Repairs and Maintenance - Reactive,1035,Headquarters,219.59 
Nottinghamshire Fire and Rescue Service,100557,Management & Support Services,BWT UK Limited,BWT UK Limited,5,202407,31/07/2023,P6,9108593,-518.69 ,518.69 ,2050,Building Maintenance - Planned,2087,Estates Department (Previously Premises),432.25 
Nottinghamshire Fire and Rescue Service,100557,Management & Support Services,BWT UK Limited,BWT UK Limited,5,202407,30/09/2023,P6,9108724,-529.19 ,529.19 ,2050,Building Maintenance - Planned,2087,Estates Department (Previously Premises),441.00 
Nottinghamshire Fire and Rescue Service,100557,Operational Responses,Amptron Electrical Services,Amptron Electrical Services,1,202407,18/10/2023,P6,9108725,"-14,818.16 ","14,818.16 ",2050,Building Maintenance - Planned,1001,Mansfield,919.36 
Nottinghamshire Fire and Rescue Service,100557,Operational Responses,Amptron Electrical Services,Amptron Electrical Services,1,202407,18/10/2023,P6,9108725,"-14,818.16 ","14,818.16 ",2050,Building Maintenance - Planned,1002,Blidworth,143.53 
Nottinghamshire Fire and Rescue Service,100557,Operational Responses,Amptron Electrical Services,Amptron Electrical Services,1,202407,18/10/2023,P6,9108725,"-14,818.16 ","14,818.16 ",2050,Building Maintenance - Planned,1003,London Road,60.14 
Nottinghamshire Fire and Rescue Service,100557,Operational Responses,Amptron Electrical Services,Amptron Electrical Services,1,202407,18/10/2023,P6,9108725,"-14,818.16 ","14,818.16 ",2050,Building Maintenance - Planned,1005,Ashfield,721.29 
Nottinghamshire Fire and Rescue Service,100557,Operational Responses,Amptron Electrical Services,Amptron Electrical Services,1,202407,18/10/2023,P6,9108725,"-14,818.16 ","14,818.16 ",2050,Building Maintenance - Planned,1006,Edwinstowe,"1,048.05 "
Nottinghamshire Fire and Rescue Service,100557,Operational Responses,Amptron Electrical Services,Amptron Electrical Services,1,202407,18/10/2023,P6,9108725,"-14,818.16 ","14,818.16 ",2050,Building Maintenance - Planned,1007,Warsop,394.75 
Nottinghamshire Fire and Rescue Service,100557,Operational Responses,Amptron Electrical Services,Amptron Electrical Services,1,202407,18/10/2023,P6,9108725,"-14,818.16 ","14,818.16 ",2050,Building Maintenance - Planned,1008,Worksop,"1,654.38 "
Nottinghamshire Fire and Rescue Service,104273,Operational Responses,Amptron Electrical Services,Amptron Electrical Services,1,202407,18/10/2023,P6,9108725,"-14,818.16 ","14,818.16 ",2050,Building Maintenance - Planned,1010,Harworth,178.39 
Nottinghamshire Fire and Rescue Service,103483,Operational Responses,Amptron Electrical Services,Amptron Electrical Services,1,202407,18/10/2023,P6,9108725,"-14,818.16 ","14,818.16 ",2050,Building Maintenance - Planned,1011,Misterton,169.67 
Nottinghamshire Fire and Rescue Service,103373,Operational Responses,Amptron Electrical Services,Amptron Electrical Services,1,202407,18/10/2023,P6,9108725,"-14,818.16 ","14,818.16 ",2050,Building Maintenance - Planned,1012,Retford,416.01 
Nottinghamshire Fire and Rescue Service,104233,Operational Responses,Amptron Electrical Services,Amptron Electrical Services,1,202407,18/10/2023,P6,9108725,"-14,818.16 ","14,818.16 ",2050,Building Maintenance - Planned,1013,Tuxford,196.36 
Nottinghamshire Fire and Rescue Service,102376,Operational Responses,Amptron Electrical Services,Amptron Electrical Services,1,202407,18/10/2023,P6,9108725,"-14,818.16 ","14,818.16 ",2050,Building Maintenance - Planned,1014,Southwell,134.81 
Nottinghamshire Fire and Rescue Service,102376,Operational Responses,Amptron Electrical Services,Amptron Electrical Services,1,202407,18/10/2023,P6,9108725,"-14,818.16 ","14,818.16 ",2050,Building Maintenance - Planned,1015,Collingham,704.38 
Nottinghamshire Fire and Rescue Service,103344,Operational Responses,Amptron Electrical Services,Amptron Electrical Services,1,202407,18/10/2023,P6,9108725,"-14,818.16 ","14,818.16 ",2050,Building Maintenance - Planned,1016,Newark,47.66 
Nottinghamshire Fire and Rescue Service,103766,Operational Responses,Amptron Electrical Services,Amptron Electrical Services,1,202407,18/10/2023,P6,9108725,"-14,818.16 ","14,818.16 ",2050,Building Maintenance - Planned,1017,Bingham,143.53 
Nottinghamshire Fire and Rescue Service,103766,Operational Responses,Amptron Electrical Services,Amptron Electrical Services,1,202407,18/10/2023,P6,9108725,"-14,818.16 ","14,818.16 ",2050,Building Maintenance - Planned,1019,West Bridgford,373.89 
Nottinghamshire Fire and Rescue Service,103766,Operational Responses,Amptron Electrical Services,Amptron Electrical Services,1,202407,18/10/2023,P6,9108725,"-14,818.16 ","14,818.16 ",2050,Building Maintenance - Planned,1020,Stockhill,408.75 
Nottinghamshire Fire and Rescue Service,103766,Operational Responses,Amptron Electrical Services,Amptron Electrical Services,1,202407,18/10/2023,P6,9108725,"-14,818.16 ","14,818.16 ",2050,Building Maintenance - Planned,1023,Stapleford,134.81 
Nottinghamshire Fire and Rescue Service,101001,Operational Responses,Amptron Electrical Services,Amptron Electrical Services,1,202407,18/10/2023,P6,9108725,"-14,818.16 ","14,818.16 ",2050,Building Maintenance - Planned,1024,Eastwood,99.95 
Nottinghamshire Fire and Rescue Service,101100,Operational Responses,Amptron Electrical Services,Amptron Electrical Services,1,202407,18/10/2023,P6,9108725,"-14,818.16 ","14,818.16 ",2050,Building Maintenance - Planned,1026,Arnold,628.92 
Nottinghamshire Fire and Rescue Service,103799,Operational Responses,Amptron Electrical Services,Amptron Electrical Services,1,202407,18/10/2023,P6,9108725,"-14,818.16 ","14,818.16 ",2050,Building Maintenance - Planned,1027,Carlton,"1,216.61 "
Nottinghamshire Fire and Rescue Service,103866,Operational Responses,Amptron Electrical Services,Amptron Electrical Services,1,202407,18/10/2023,P6,9108725,"-14,818.16 ","14,818.16 ",2050,Building Maintenance - Planned,1028,East Leake,169.67 
Nottinghamshire Fire and Rescue Service,102376,Operational Responses,Amptron Electrical Services,Amptron Electrical Services,1,202407,18/10/2023,P6,9108725,"-14,818.16 ","14,818.16 ",2050,Building Maintenance - Planned,1029,Highfields Station,"1,012.17 "
Nottinghamshire Fire and Rescue Service,101851,Management & Support Services,Amptron Electrical Services,Amptron Electrical Services,1,202407,18/10/2023,P6,9108725,"-14,818.16 ","14,818.16 ",2050,Building Maintenance - Planned,1030,Service Development Centre,"1,371.38 "
Nottinghamshire Fire and Rescue Service,102376,Management & Support Services,Kings Security Systems Limited T/A Kings Secure Technologies,Kings Security Systems Limited T/A Kings Secure Technologies,5,202407,30/09/2023,P6,9108732,"-1,890.00 ","1,890.00 ",2050,Building Maintenance - Planned,1035,Headquarters,"1,575.00 "
Nottinghamshire Fire and Rescue Service,102376,Operational Responses,EDF Energy,EDF Energy,1,202407,02/10/2023,P6,9108458,-251.33 ,251.33 ,2100,Electricity,2078,Mansfield Fire Station Museum,2.30 
Nottinghamshire Fire and Rescue Service,102744,Operational Responses,EDF Energy,EDF Energy,1,202407,02/10/2023,P6,9108458,-251.33 ,251.33 ,2100,Electricity,2078,Mansfield Fire Station Museum,237.17 
Nottinghamshire Fire and Rescue Service,102744,Operational Responses,EDF Energy,EDF Energy,1,202407,02/10/2023,P6,9108462,"-3,251.81 ","3,251.81 ",2100,Electricity,1001,Mansfield,"2,709.84 "
Nottinghamshire Fire and Rescue Service,102547,Operational Responses,EDF Energy,EDF Energy,1,202407,02/10/2023,P6,9108463,-394.89 ,394.89 ,2100,Electricity,1002,Blidworth,376.09 
Nottinghamshire Fire and Rescue Service,102744,Operational Responses,EDF Energy,EDF Energy,1,202407,02/10/2023,P6,9108465,"-1,138.77 ","1,138.77 ",2100,Electricity,1013,Tuxford,948.98 
Nottinghamshire Fire and Rescue Service,102744,Operational Responses,EDF Energy,EDF Energy,1,202407,04/10/2023,P6,9108466,"-2,970.04 ","2,970.04 ",2100,Electricity,1023,Stapleford,10.03 
Nottinghamshire Fire and Rescue Service,102744,Operational Responses,EDF Energy,EDF Energy,1,202407,04/10/2023,P6,9108466,"-2,970.04 ","2,970.04 ",2100,Electricity,1023,Stapleford,"2,466.68 "
Nottinghamshire Fire and Rescue Service,102744,Operational Responses,EDF Energy,EDF Energy,1,202407,02/10/2023,P6,9108467,"-2,443.61 ","2,443.61 ",2100,Electricity,1008,Worksop,"2,036.34 "
Nottinghamshire Fire and Rescue Service,102744,Operational Responses,EDF Energy,EDF Energy,1,202407,02/10/2023,P6,9108468,"-2,183.02 ","2,183.02 ",2100,Electricity,1026,Arnold,"1,819.19 "
Nottinghamshire Fire and Rescue Service,102744,Operational Responses,EDF Energy,EDF Energy,1,202407,02/10/2023,P6,9108469,-425.39 ,425.39 ,2100,Electricity,1014,Southwell,405.13 
Nottinghamshire Fire and Rescue Service,102744,Operational Responses,EDF Energy,EDF Energy,1,202407,03/10/2023,P6,9108471,"-7,756.97 ","7,756.97 ",2100,Electricity,1005,Ashfield,"6,464.14 "
Nottinghamshire Fire and Rescue Service,102744,Operational Responses,EDF Energy,EDF Energy,1,202407,04/10/2023,P6,9108480,"-1,686.94 ","1,686.94 ",2100,Electricity,1017,Bingham,6.79 
Nottinghamshire Fire and Rescue Service,102744,Operational Responses,EDF Energy,EDF Energy,1,202407,04/10/2023,P6,9108480,"-1,686.94 ","1,686.94 ",2100,Electricity,1017,Bingham,"1,400.13 "
Nottinghamshire Fire and Rescue Service,102073,Operational Responses,EDF Energy,EDF Energy,1,202407,05/10/2023,P6,9108564,"-3,745.94 ","3,745.94 ",2100,Electricity,1006,Edwinstowe,10.21 
Nottinghamshire Fire and Rescue Service,102190,Operational Responses,EDF Energy,EDF Energy,1,202407,05/10/2023,P6,9108564,"-3,745.94 ","3,745.94 ",2100,Electricity,1006,Edwinstowe,"3,113.11 "
Nottinghamshire Fire and Rescue Service,102190,Prevention & Education,EDF Energy,EDF Energy,1,202407,31/07/2023,P6,9108565,"-2,634.19 ","2,634.19 ",2100,Electricity,1036,Clifton Community Safety Centre,"2,195.15 "
Nottinghamshire Fire and Rescue Service,102376,Operational Responses,EDF Energy,EDF Energy,1,202407,06/10/2023,P6,9108577,"-34,181.45 ","34,181.45 ",2100,Electricity,1003,London Road,"3,842.31 "
Nottinghamshire Fire and Rescue Service,101490,Operational Responses,EDF Energy,EDF Energy,1,202407,06/10/2023,P6,9108577,"-34,181.45 ","34,181.45 ",2100,Electricity,1012,Retford,"2,121.75 "
Nottinghamshire Fire and Rescue Service,102744,Operational Responses,EDF Energy,EDF Energy,1,202407,06/10/2023,P6,9108577,"-34,181.45 ","34,181.45 ",2100,Electricity,1016,Newark,"1,849.08 "
Nottinghamshire Fire and Rescue Service,102744,Operational Responses,EDF Energy,EDF Energy,1,202407,06/10/2023,P6,9108577,"-34,181.45 ","34,181.45 ",2100,Electricity,1027,Carlton,"-3,685.34 "
Nottinghamshire Fire and Rescue Service,102306,Operational Responses,EDF Energy,EDF Energy,1,202407,06/10/2023,P6,9108577,"-34,181.45 ","34,181.45 ",2100,Electricity,1027,Carlton,"3,687.65 "
Nottinghamshire Fire and Rescue Service,102306,Operational Responses,EDF Energy,EDF Energy,1,202407,06/10/2023,P6,9108577,"-34,181.45 ","34,181.45 ",2100,Electricity,1027,Carlton,"3,893.38 "
Nottinghamshire Fire and Rescue Service,102306,Operational Responses,EDF Energy,EDF Energy,1,202407,06/10/2023,P6,9108577,"-34,181.45 ","34,181.45 ",2100,Electricity,1029,Highfields Station,"8,043.12 "
Nottinghamshire Fire and Rescue Service,102306,Management & Support Services,EDF Energy,EDF Energy,1,202407,06/10/2023,P6,9108577,"-34,181.45 ","34,181.45 ",2100,Electricity,1030,Service Development Centre,"3,396.44 "
Nottinghamshire Fire and Rescue Service,102376,Management & Support Services,EDF Energy,EDF Energy,1,202407,06/10/2023,P6,9108577,"-34,181.45 ","34,181.45 ",2100,Electricity,1035,Headquarters,"1,465.07 "
Nottinghamshire Fire and Rescue Service,100357,Management & Support Services,EDF Energy,EDF Energy,1,202407,06/10/2023,P6,9108577,"-34,181.45 ","34,181.45 ",2100,Electricity,2087,Estates Department (Previously Premises),"4,645.30 "
Nottinghamshire Fire and Rescue Service,103923,Operational Responses,EDF Energy,EDF Energy,1,202407,06/10/2023,P6,9108580,"-3,507.96 ","3,507.96 ",2100,Electricity,1010,Harworth,7.31 
Nottinghamshire Fire and Rescue Service,102306,Operational Responses,EDF Energy,EDF Energy,1,202407,06/10/2023,P6,9108580,"-3,507.96 ","3,507.96 ",2100,Electricity,1010,Harworth,"2,917.21 "
Nottinghamshire Fire and Rescue Service,102306,Operational Responses,EDF Energy,EDF Energy,1,202407,09/10/2023,P6,9108581,-618.64 ,618.64 ,2100,Electricity,1007,Warsop,515.53 
Nottinghamshire Fire and Rescue Service,103981,Operational Responses,EDF Energy,EDF Energy,1,202407,06/10/2023,P6,9108583,-539.50 ,539.50 ,2100,Electricity,1028,East Leake,449.58 
Nottinghamshire Fire and Rescue Service,103981,Operational Responses,EDF Energy,EDF Energy,1,202407,06/10/2023,P6,9108584,-609.64 ,609.64 ,2100,Electricity,1015,Collingham,508.03 
Nottinghamshire Fire and Rescue Service,103358,Operational Responses,EDF Energy,EDF Energy,1,202407,06/10/2023,P6,9108591,-335.21 ,335.21 ,2100,Electricity,1019,West Bridgford,319.24 
Nottinghamshire Fire and Rescue Service,103064,Operational Responses,EDF Energy,EDF Energy,1,202407,06/10/2023,P6,9108763,-369.43 ,369.43 ,2100,Electricity,1019,West Bridgford,351.83 
Nottinghamshire Fire and Rescue Service,101100,Operational Responses,EDF Energy,EDF Energy,1,202407,10/10/2023,P6,9108764,-580.98 ,580.98 ,2100,Electricity,1007,Warsop,484.15 
Nottinghamshire Fire and Rescue Service,102190,Operational Responses,EDF Energy,EDF Energy,1,202407,14/10/2023,P6,9108765,"-1,578.28 ","1,578.28 ",2100,Electricity,1011,Misterton,2.05 
Nottinghamshire Fire and Rescue Service,103443,Operational Responses,EDF Energy,EDF Energy,1,202407,14/10/2023,P6,9108765,"-1,578.28 ","1,578.28 ",2100,Electricity,1011,Misterton,"1,313.53 "
Nottinghamshire Fire and Rescue Service,100019,Management & Support Services,E.On Next,E.On Next,1,202407,08/08/2023,P6,9108417,"1,165.58 ","-1,165.58 ",2100,Electricity,1046,Stockhill House,"-1,109.62 "
Nottinghamshire Fire and Rescue Service,100019,Operational Responses,EDF Energy,EDF Energy,1,202407,06/10/2023,P6,9108568,"6,471.20 ","-6,471.20 ",2100,Electricity,1019,West Bridgford,"-5,392.67 "
Nottinghamshire Fire and Rescue Service,103874,Operational Responses,EDF Energy,EDF Energy,1,202407,06/10/2023,P6,9108569,"5,821.67 ","-5,821.67 ",2100,Electricity,1019,West Bridgford,"-4,851.39 "
Nottinghamshire Fire and Rescue Service,100178,Operational Responses,EDF Energy,EDF Energy,1,202407,06/10/2023,P6,9108570,"7,326.99 ","-7,326.99 ",2100,Electricity,1019,West Bridgford,"-6,105.83 "
Nottinghamshire Fire and Rescue Service,101001,Operational Responses,EDF Energy,EDF Energy,1,202407,06/10/2023,P6,9108571,"7,209.30 ","-7,209.30 ",2100,Electricity,1019,West Bridgford,"-6,007.75 "
Nottinghamshire Fire and Rescue Service,101001,Operational Responses,EDF Energy,EDF Energy,1,202407,06/10/2023,P6,9108572,"9,964.65 ","-9,964.65 ",2100,Electricity,1019,West Bridgford,"-8,303.87 "
Nottinghamshire Fire and Rescue Service,102072,Operational Responses,EDF Energy,EDF Energy,1,202407,06/10/2023,P6,9108573,"10,216.62 ","-10,216.62 ",2100,Electricity,1019,West Bridgford,"-8,513.85 "
Nottinghamshire Fire and Rescue Service,102215,Operational Responses,EDF Energy,EDF Energy,1,202407,06/10/2023,P6,9108592,"11,116.89 ","-11,116.89 ",2100,Electricity,1019,West Bridgford,"-9,283.50 "
Nottinghamshire Fire and Rescue Service,101001,Operational Responses,EDF Energy,EDF Energy,1,202407,06/10/2023,P6,9108592,"11,116.89 ","-11,116.89 ",2100,Electricity,1019,West Bridgford,23.31 
Nottinghamshire Fire and Rescue Service,101001,Operational Responses,EDF Energy,EDF Energy,1,202407,10/10/2023,P6,9108756,618.64 ,-618.64 ,2100,Electricity,1007,Warsop,-515.53 
Nottinghamshire Fire and Rescue Service,102280,Operational Responses,Nottingham City Council,Nottingham City Council,4,202407,09/10/2023,P6,9108566,"-1,519.94 ","1,519.94 ",2101,Gas,1003,London Road,"1,266.62 "
Nottinghamshire Fire and Rescue Service,102376,Operational Responses,Total Gas & Power Limited,Total Gas & Power Limited,5,202407,05/10/2023,P6,9108578,-351.39 ,351.39 ,2101,Gas,1026,Arnold,334.66 
Nottinghamshire Fire and Rescue Service,100202,Operational Responses,Total Gas & Power Limited,Total Gas & Power Limited,5,202407,12/10/2023,P6,9108766,-626.97 ,626.97 ,2101,Gas,1024,Eastwood,522.47 
Nottinghamshire Fire and Rescue Service,103092,Operational Responses,Total Gas & Power Limited,Total Gas & Power Limited,5,202407,12/10/2023,P6,9108770,-770.18 ,770.18 ,2101,Gas,1019,West Bridgford,641.81 
Nottinghamshire Fire and Rescue Service,103935,Operational Responses,Total Gas & Power Limited,Total Gas & Power Limited,5,202407,12/10/2023,P6,9108771,-281.80 ,281.80 ,2101,Gas,1012,Retford,268.37 
Nottinghamshire Fire and Rescue Service,102874,Operational Responses,Total Gas & Power Limited,Total Gas & Power Limited,5,202407,12/10/2023,P6,9108773,-882.16 ,882.16 ,2101,Gas,1026,Arnold,735.14 
Nottinghamshire Fire and Rescue Service,102874,Operational Responses,Total Gas & Power Limited,Total Gas & Power Limited,5,202407,12/10/2023,P6,9108775,-362.31 ,362.31 ,2101,Gas,1016,Newark,345.05 
Nottinghamshire Fire and Rescue Service,101867,Operational Responses,Total Gas & Power Limited,Total Gas & Power Limited,5,202407,12/10/2023,P6,9108776,"-1,483.54 ","1,483.54 ",2101,Gas,1001,Mansfield,"1,236.28 "
Nottinghamshire Fire and Rescue Service,102964,Operational Responses,Total Gas & Power Limited,Total Gas & Power Limited,5,202407,12/10/2023,P6,9108777,-504.66 ,504.66 ,2101,Gas,1029,Highfields Station,480.62 
Nottinghamshire Fire and Rescue Service,104115,Operational Responses,Total Gas & Power Limited,Total Gas & Power Limited,5,202407,12/10/2023,P6,9108778,"-1,157.76 ","1,157.76 ",2101,Gas,1001,Mansfield,964.80 
Nottinghamshire Fire and Rescue Service,104291,Operational Responses,Total Gas & Power Limited,Total Gas & Power Limited,5,202407,12/10/2023,P6,9108780,-999.96 ,999.96 ,2101,Gas,1006,Edwinstowe,833.31 
Nottinghamshire Fire and Rescue Service,103377,Operational Responses,Total Gas & Power Limited,Total Gas & Power Limited,5,202407,12/10/2023,P6,9108781,"-1,942.20 ","1,942.20 ",2101,Gas,1005,Ashfield,"1,618.50 "
Nottinghamshire Fire and Rescue Service,103275,Operational Responses,Total Gas & Power Limited,Total Gas & Power Limited,5,202407,12/10/2023,P6,9108782,-411.93 ,411.93 ,2101,Gas,1010,Harworth,392.32 
Nottinghamshire Fire and Rescue Service,103275,Management & Support Services,Total Gas & Power Limited,Total Gas & Power Limited,5,202407,12/10/2023,P6,9108787,"-1,105.62 ","1,105.62 ",2101,Gas,1030,Service Development Centre,921.35 
Nottinghamshire Fire and Rescue Service,100557,Operational Responses,Total Gas & Power Limited,Total Gas & Power Limited,5,202407,12/10/2023,P6,9108788,-779.27 ,779.27 ,2101,Gas,1020,Stockhill,649.40 
Nottinghamshire Fire and Rescue Service,104291,Operational Responses,Nottingham City Council (City Treasurer),Nottingham City Council (City Treasurer),1,202407,12/09/2023,P6,9108799,"-1,478.15 ","1,478.15 ",2101,Gas,1003,London Road,"1,231.79 "
Nottinghamshire Fire and Rescue Service,104248,Operational Responses,Total Gas & Power Limited,Total Gas & Power Limited,5,202407,24/10/2023,P6,9108831,-272.02 ,272.02 ,2101,Gas,1006,Edwinstowe,259.07 
Nottinghamshire Fire and Rescue Service,102228,Operational Responses,Total Gas & Power Limited,Total Gas & Power Limited,5,202407,24/10/2023,P6,9108832,"-1,065.10 ","1,065.10 ",2101,Gas,1006,Edwinstowe,887.59 
Nottinghamshire Fire and Rescue Service,103064,Operational Responses,Total Gas & Power Limited,Total Gas & Power Limited,5,202407,24/10/2023,P6,9108833,-389.95 ,389.95 ,2101,Gas,1006,Edwinstowe,371.38 
Nottinghamshire Fire and Rescue Service,100467,Operational Responses,Total Gas & Power Limited,Total Gas & Power Limited,5,202407,24/10/2023,P6,9108834,"-1,340.21 ","1,340.21 ",2101,Gas,1006,Edwinstowe,"1,116.85 "
Nottinghamshire Fire and Rescue Service,100125,Operational Responses,Total Gas & Power Limited,Total Gas & Power Limited,5,202407,05/10/2023,P6,9108563,738.43 ,-738.43 ,2101,Gas,1026,Arnold,-615.36 
Nottinghamshire Fire and Rescue Service,103714,Operational Responses,Total Gas & Power Limited,Total Gas & Power Limited,5,202407,24/10/2023,P6,9108829,999.96 ,-999.96 ,2101,Gas,1006,Edwinstowe,-833.31 
Nottinghamshire Fire and Rescue Service,103337,Operational Responses,Advanced Demand Side Management Limited,Advanced Demand Side Management Limited,5,202407,01/10/2023,P6,9108798,"-8,785.76 ","8,785.76 ",2103,Water Rates,1001,Mansfield,-41.16 
Nottinghamshire Fire and Rescue Service,104020,Operational Responses,Advanced Demand Side Management Limited,Advanced Demand Side Management Limited,5,202407,01/10/2023,P6,9108798,"-8,785.76 ","8,785.76 ",2103,Water Rates,1001,Mansfield,-39.81 
Nottinghamshire Fire and Rescue Service,100289,Operational Responses,Advanced Demand Side Management Limited,Advanced Demand Side Management Limited,5,202407,01/10/2023,P6,9108798,"-8,785.76 ","8,785.76 ",2103,Water Rates,1001,Mansfield,-34.05 
Nottinghamshire Fire and Rescue Service,103483,Operational Responses,Advanced Demand Side Management Limited,Advanced Demand Side Management Limited,5,202407,01/10/2023,P6,9108798,"-8,785.76 ","8,785.76 ",2103,Water Rates,1001,Mansfield,-32.94 
Nottinghamshire Fire and Rescue Service,102379,Operational Responses,Advanced Demand Side Management Limited,Advanced Demand Side Management Limited,5,202407,01/10/2023,P6,9108798,"-8,785.76 ","8,785.76 ",2103,Water Rates,1001,Mansfield,2.32 
Nottinghamshire Fire and Rescue Service,104233,Operational Responses,Advanced Demand Side Management Limited,Advanced Demand Side Management Limited,5,202407,01/10/2023,P6,9108798,"-8,785.76 ","8,785.76 ",2103,Water Rates,1001,Mansfield,2.40 
Nottinghamshire Fire and Rescue Service,100357,Operational Responses,Advanced Demand Side Management Limited,Advanced Demand Side Management Limited,5,202407,01/10/2023,P6,9108798,"-8,785.76 ","8,785.76 ",2103,Water Rates,1001,Mansfield,22.12 
Nottinghamshire Fire and Rescue Service,101100,Operational Responses,Advanced Demand Side Management Limited,Advanced Demand Side Management Limited,5,202407,01/10/2023,P6,9108798,"-8,785.76 ","8,785.76 ",2103,Water Rates,1001,Mansfield,39.82 
Nottinghamshire Fire and Rescue Service,102744,Operational Responses,Advanced Demand Side Management Limited,Advanced Demand Side Management Limited,5,202407,01/10/2023,P6,9108798,"-8,785.76 ","8,785.76 ",2103,Water Rates,1001,Mansfield,41.17 
Nottinghamshire Fire and Rescue Service,102744,Operational Responses,Advanced Demand Side Management Limited,Advanced Demand Side Management Limited,5,202407,01/10/2023,P6,9108798,"-8,785.76 ","8,785.76 ",2103,Water Rates,1002,Blidworth,-2.55 
Nottinghamshire Fire and Rescue Service,102744,Operational Responses,Advanced Demand Side Management Limited,Advanced Demand Side Management Limited,5,202407,01/10/2023,P6,9108798,"-8,785.76 ","8,785.76 ",2103,Water Rates,1002,Blidworth,-2.47 
Nottinghamshire Fire and Rescue Service,100055,Operational Responses,Advanced Demand Side Management Limited,Advanced Demand Side Management Limited,5,202407,01/10/2023,P6,9108798,"-8,785.76 ","8,785.76 ",2103,Water Rates,1002,Blidworth,17.20 
Nottinghamshire Fire and Rescue Service,102744,Operational Responses,Advanced Demand Side Management Limited,Advanced Demand Side Management Limited,5,202407,01/10/2023,P6,9108798,"-8,785.76 ","8,785.76 ",2103,Water Rates,1002,Blidworth,17.77 
Nottinghamshire Fire and Rescue Service,102744,Operational Responses,Advanced Demand Side Management Limited,Advanced Demand Side Management Limited,5,202407,01/10/2023,P6,9108798,"-8,785.76 ","8,785.76 ",2103,Water Rates,1003,London Road,68.21 
Nottinghamshire Fire and Rescue Service,102744,Operational Responses,Advanced Demand Side Management Limited,Advanced Demand Side Management Limited,5,202407,01/10/2023,P6,9108798,"-8,785.76 ","8,785.76 ",2103,Water Rates,1005,Ashfield,-56.74 
Nottinghamshire Fire and Rescue Service,102744,Operational Responses,Advanced Demand Side Management Limited,Advanced Demand Side Management Limited,5,202407,01/10/2023,P6,9108798,"-8,785.76 ","8,785.76 ",2103,Water Rates,1005,Ashfield,-54.90 
Nottinghamshire Fire and Rescue Service,102744,Operational Responses,Advanced Demand Side Management Limited,Advanced Demand Side Management Limited,5,202407,01/10/2023,P6,9108798,"-8,785.76 ","8,785.76 ",2103,Water Rates,1005,Ashfield,54.87 
Nottinghamshire Fire and Rescue Service,102744,Operational Responses,Advanced Demand Side Management Limited,Advanced Demand Side Management Limited,5,202407,01/10/2023,P6,9108798,"-8,785.76 ","8,785.76 ",2103,Water Rates,1005,Ashfield,56.71 
Nottinghamshire Fire and Rescue Service,102744,Operational Responses,Advanced Demand Side Management Limited,Advanced Demand Side Management Limited,5,202407,01/10/2023,P6,9108798,"-8,785.76 ","8,785.76 ",2103,Water Rates,1006,Edwinstowe,-50.56 
Nottinghamshire Fire and Rescue Service,102744,Operational Responses,Advanced Demand Side Management Limited,Advanced Demand Side Management Limited,5,202407,01/10/2023,P6,9108798,"-8,785.76 ","8,785.76 ",2103,Water Rates,1006,Edwinstowe,-48.94 
Nottinghamshire Fire and Rescue Service,102744,Operational Responses,Advanced Demand Side Management Limited,Advanced Demand Side Management Limited,5,202407,01/10/2023,P6,9108798,"-8,785.76 ","8,785.76 ",2103,Water Rates,1006,Edwinstowe,56.35 
Nottinghamshire Fire and Rescue Service,102744,Operational Responses,Advanced Demand Side Management Limited,Advanced Demand Side Management Limited,5,202407,01/10/2023,P6,9108798,"-8,785.76 ","8,785.76 ",2103,Water Rates,1006,Edwinstowe,76.11 
Nottinghamshire Fire and Rescue Service,104098,Operational Responses,Advanced Demand Side Management Limited,Advanced Demand Side Management Limited,5,202407,01/10/2023,P6,9108798,"-8,785.76 ","8,785.76 ",2103,Water Rates,1006,Edwinstowe,77.98 
Nottinghamshire Fire and Rescue Service,102744,Operational Responses,Advanced Demand Side Management Limited,Advanced Demand Side Management Limited,5,202407,01/10/2023,P6,9108798,"-8,785.76 ","8,785.76 ",2103,Water Rates,1006,Edwinstowe,78.65 
Nottinghamshire Fire and Rescue Service,102744,Operational Responses,Advanced Demand Side Management Limited,Advanced Demand Side Management Limited,5,202407,01/10/2023,P6,9108798,"-8,785.76 ","8,785.76 ",2103,Water Rates,1007,Warsop,-19.92 
Nottinghamshire Fire and Rescue Service,102744,Operational Responses,Advanced Demand Side Management Limited,Advanced Demand Side Management Limited,5,202407,01/10/2023,P6,9108798,"-8,785.76 ","8,785.76 ",2103,Water Rates,1007,Warsop,-19.88 
Nottinghamshire Fire and Rescue Service,102744,Operational Responses,Advanced Demand Side Management Limited,Advanced Demand Side Management Limited,5,202407,01/10/2023,P6,9108798,"-8,785.76 ","8,785.76 ",2103,Water Rates,1007,Warsop,-19.06 
Nottinghamshire Fire and Rescue Service,102744,Operational Responses,Advanced Demand Side Management Limited,Advanced Demand Side Management Limited,5,202407,01/10/2023,P6,9108798,"-8,785.76 ","8,785.76 ",2103,Water Rates,1007,Warsop,14.94 
Nottinghamshire Fire and Rescue Service,102744,Operational Responses,Advanced Demand Side Management Limited,Advanced Demand Side Management Limited,5,202407,01/10/2023,P6,9108798,"-8,785.76 ","8,785.76 ",2103,Water Rates,1007,Warsop,16.70 
Nottinghamshire Fire and Rescue Service,103837,Operational Responses,Advanced Demand Side Management Limited,Advanced Demand Side Management Limited,5,202407,01/10/2023,P6,9108798,"-8,785.76 ","8,785.76 ",2103,Water Rates,1007,Warsop,17.57 
Nottinghamshire Fire and Rescue Service,100290,Operational Responses,Advanced Demand Side Management Limited,Advanced Demand Side Management Limited,5,202407,01/10/2023,P6,9108798,"-8,785.76 ","8,785.76 ",2103,Water Rates,1007,Warsop,18.64 
Nottinghamshire Fire and Rescue Service,100290,Operational Responses,Advanced Demand Side Management Limited,Advanced Demand Side Management Limited,5,202407,01/10/2023,P6,9108798,"-8,785.76 ","8,785.76 ",2103,Water Rates,1008,Worksop,-77.51 
Nottinghamshire Fire and Rescue Service,103849,Operational Responses,Advanced Demand Side Management Limited,Advanced Demand Side Management Limited,5,202407,01/10/2023,P6,9108798,"-8,785.76 ","8,785.76 ",2103,Water Rates,1008,Worksop,547.36 
Nottinghamshire Fire and Rescue Service,101867,Operational Responses,Advanced Demand Side Management Limited,Advanced Demand Side Management Limited,5,202407,01/10/2023,P6,9108798,"-8,785.76 ","8,785.76 ",2103,Water Rates,1008,Worksop,565.61 
Nottinghamshire Fire and Rescue Service,100299,Operational Responses,Advanced Demand Side Management Limited,Advanced Demand Side Management Limited,5,202407,01/10/2023,P6,9108798,"-8,785.76 ","8,785.76 ",2103,Water Rates,1010,Harworth,-24.14 
Nottinghamshire Fire and Rescue Service,104213,Operational Responses,Advanced Demand Side Management Limited,Advanced Demand Side Management Limited,5,202407,01/10/2023,P6,9108798,"-8,785.76 ","8,785.76 ",2103,Water Rates,1010,Harworth,-22.15 
Nottinghamshire Fire and Rescue Service,104306,Operational Responses,Advanced Demand Side Management Limited,Advanced Demand Side Management Limited,5,202407,01/10/2023,P6,9108798,"-8,785.76 ","8,785.76 ",2103,Water Rates,1010,Harworth,-17.95 
Nottinghamshire Fire and Rescue Service,102072,Operational Responses,Advanced Demand Side Management Limited,Advanced Demand Side Management Limited,5,202407,01/10/2023,P6,9108798,"-8,785.76 ","8,785.76 ",2103,Water Rates,1010,Harworth,13.21 
Nottinghamshire Fire and Rescue Service,103874,Operational Responses,Advanced Demand Side Management Limited,Advanced Demand Side Management Limited,5,202407,01/10/2023,P6,9108798,"-8,785.76 ","8,785.76 ",2103,Water Rates,1010,Harworth,15.67 
Nottinghamshire Fire and Rescue Service,102558,Operational Responses,Advanced Demand Side Management Limited,Advanced Demand Side Management Limited,5,202407,01/10/2023,P6,9108798,"-8,785.76 ","8,785.76 ",2103,Water Rates,1010,Harworth,17.95 
Nottinghamshire Fire and Rescue Service,104277,Operational Responses,Advanced Demand Side Management Limited,Advanced Demand Side Management Limited,5,202407,01/10/2023,P6,9108798,"-8,785.76 ","8,785.76 ",2103,Water Rates,1010,Harworth,20.36 
Nottinghamshire Fire and Rescue Service,103377,Operational Responses,Advanced Demand Side Management Limited,Advanced Demand Side Management Limited,5,202407,01/10/2023,P6,9108798,"-8,785.76 ","8,785.76 ",2103,Water Rates,1011,Misterton,-7.68 
Nottinghamshire Fire and Rescue Service,102228,Operational Responses,Advanced Demand Side Management Limited,Advanced Demand Side Management Limited,5,202407,01/10/2023,P6,9108798,"-8,785.76 ","8,785.76 ",2103,Water Rates,1011,Misterton,-7.34 
Nottinghamshire Fire and Rescue Service,103820,Operational Responses,Advanced Demand Side Management Limited,Advanced Demand Side Management Limited,5,202407,01/10/2023,P6,9108798,"-8,785.76 ","8,785.76 ",2103,Water Rates,1011,Misterton,-4.82 
Nottinghamshire Fire and Rescue Service,103820,Operational Responses,Advanced Demand Side Management Limited,Advanced Demand Side Management Limited,5,202407,01/10/2023,P6,9108798,"-8,785.76 ","8,785.76 ",2103,Water Rates,1011,Misterton,3.57 
Nottinghamshire Fire and Rescue Service,104194,Operational Responses,Advanced Demand Side Management Limited,Advanced Demand Side Management Limited,5,202407,01/10/2023,P6,9108798,"-8,785.76 ","8,785.76 ",2103,Water Rates,1011,Misterton,5.59 
Nottinghamshire Fire and Rescue Service,101851,Operational Responses,Advanced Demand Side Management Limited,Advanced Demand Side Management Limited,5,202407,01/10/2023,P6,9108798,"-8,785.76 ","8,785.76 ",2103,Water Rates,1011,Misterton,6.22 
Nottinghamshire Fire and Rescue Service,102376,Operational Responses,Advanced Demand Side Management Limited,Advanced Demand Side Management Limited,5,202407,01/10/2023,P6,9108798,"-8,785.76 ","8,785.76 ",2103,Water Rates,1011,Misterton,7.74 
Nottinghamshire Fire and Rescue Service,102280,Operational Responses,Advanced Demand Side Management Limited,Advanced Demand Side Management Limited,5,202407,01/10/2023,P6,9108798,"-8,785.76 ","8,785.76 ",2103,Water Rates,1012,Retford,-80.08 
Nottinghamshire Fire and Rescue Service,102280,Operational Responses,Advanced Demand Side Management Limited,Advanced Demand Side Management Limited,5,202407,01/10/2023,P6,9108798,"-8,785.76 ","8,785.76 ",2103,Water Rates,1012,Retford,-36.38 
Nottinghamshire Fire and Rescue Service,102280,Operational Responses,Advanced Demand Side Management Limited,Advanced Demand Side Management Limited,5,202407,01/10/2023,P6,9108798,"-8,785.76 ","8,785.76 ",2103,Water Rates,1012,Retford,35.21 
Nottinghamshire Fire and Rescue Service,102280,Operational Responses,Advanced Demand Side Management Limited,Advanced Demand Side Management Limited,5,202407,01/10/2023,P6,9108798,"-8,785.76 ","8,785.76 ",2103,Water Rates,1012,Retford,36.38 
Nottinghamshire Fire and Rescue Service,102280,Operational Responses,Advanced Demand Side Management Limited,Advanced Demand Side Management Limited,5,202407,01/10/2023,P6,9108798,"-8,785.76 ","8,785.76 ",2103,Water Rates,1012,Retford,151.43 
Nottinghamshire Fire and Rescue Service,102280,Operational Responses,Advanced Demand Side Management Limited,Advanced Demand Side Management Limited,5,202407,01/10/2023,P6,9108798,"-8,785.76 ","8,785.76 ",2103,Water Rates,1013,Tuxford,-66.23 
Nottinghamshire Fire and Rescue Service,102280,Operational Responses,Advanced Demand Side Management Limited,Advanced Demand Side Management Limited,5,202407,01/10/2023,P6,9108798,"-8,785.76 ","8,785.76 ",2103,Water Rates,1013,Tuxford,-21.51 
Nottinghamshire Fire and Rescue Service,102280,Operational Responses,Advanced Demand Side Management Limited,Advanced Demand Side Management Limited,5,202407,01/10/2023,P6,9108798,"-8,785.76 ","8,785.76 ",2103,Water Rates,1013,Tuxford,19.20 
Nottinghamshire Fire and Rescue Service,102280,Operational Responses,Advanced Demand Side Management Limited,Advanced Demand Side Management Limited,5,202407,01/10/2023,P6,9108798,"-8,785.76 ","8,785.76 ",2103,Water Rates,1013,Tuxford,19.94 
Nottinghamshire Fire and Rescue Service,102280,Operational Responses,Advanced Demand Side Management Limited,Advanced Demand Side Management Limited,5,202407,01/10/2023,P6,9108798,"-8,785.76 ","8,785.76 ",2103,Water Rates,1013,Tuxford,62.22 
Nottinghamshire Fire and Rescue Service,102280,Operational Responses,Advanced Demand Side Management Limited,Advanced Demand Side Management Limited,5,202407,01/10/2023,P6,9108798,"-8,785.76 ","8,785.76 ",2103,Water Rates,1013,Tuxford,64.30 
Nottinghamshire Fire and Rescue Service,102280,Operational Responses,Advanced Demand Side Management Limited,Advanced Demand Side Management Limited,5,202407,01/10/2023,P6,9108798,"-8,785.76 ","8,785.76 ",2103,Water Rates,1014,Southwell,-18.18 
Nottinghamshire Fire and Rescue Service,102280,Operational Responses,Advanced Demand Side Management Limited,Advanced Demand Side Management Limited,5,202407,01/10/2023,P6,9108798,"-8,785.76 ","8,785.76 ",2103,Water Rates,1014,Southwell,-17.20 
Nottinghamshire Fire and Rescue Service,102280,Operational Responses,Advanced Demand Side Management Limited,Advanced Demand Side Management Limited,5,202407,01/10/2023,P6,9108798,"-8,785.76 ","8,785.76 ",2103,Water Rates,1014,Southwell,-17.06 
Nottinghamshire Fire and Rescue Service,102280,Operational Responses,Advanced Demand Side Management Limited,Advanced Demand Side Management Limited,5,202407,01/10/2023,P6,9108798,"-8,785.76 ","8,785.76 ",2103,Water Rates,1014,Southwell,-16.00 
Nottinghamshire Fire and Rescue Service,102280,Operational Responses,Advanced Demand Side Management Limited,Advanced Demand Side Management Limited,5,202407,01/10/2023,P6,9108798,"-8,785.76 ","8,785.76 ",2103,Water Rates,1014,Southwell,16.00 
Nottinghamshire Fire and Rescue Service,102280,Operational Responses,Advanced Demand Side Management Limited,Advanced Demand Side Management Limited,5,202407,01/10/2023,P6,9108798,"-8,785.76 ","8,785.76 ",2103,Water Rates,1014,Southwell,16.50 
Nottinghamshire Fire and Rescue Service,102261,Operational Responses,Advanced Demand Side Management Limited,Advanced Demand Side Management Limited,5,202407,01/10/2023,P6,9108798,"-8,785.76 ","8,785.76 ",2103,Water Rates,1014,Southwell,16.98 
Nottinghamshire Fire and Rescue Service,102078,Operational Responses,Advanced Demand Side Management Limited,Advanced Demand Side Management Limited,5,202407,01/10/2023,P6,9108798,"-8,785.76 ","8,785.76 ",2103,Water Rates,1014,Southwell,17.57 
Nottinghamshire Fire and Rescue Service,100321,Operational Responses,Advanced Demand Side Management Limited,Advanced Demand Side Management Limited,5,202407,01/10/2023,P6,9108798,"-8,785.76 ","8,785.76 ",2103,Water Rates,1014,Southwell,17.98 
Nottinghamshire Fire and Rescue Service,103766,Operational Responses,Advanced Demand Side Management Limited,Advanced Demand Side Management Limited,5,202407,01/10/2023,P6,9108798,"-8,785.76 ","8,785.76 ",2103,Water Rates,1015,Collingham,-23.92 
Nottinghamshire Fire and Rescue Service,104216,Operational Responses,Advanced Demand Side Management Limited,Advanced Demand Side Management Limited,5,202407,01/10/2023,P6,9108798,"-8,785.76 ","8,785.76 ",2103,Water Rates,1015,Collingham,-23.87 
Nottinghamshire Fire and Rescue Service,104216,Operational Responses,Advanced Demand Side Management Limited,Advanced Demand Side Management Limited,5,202407,01/10/2023,P6,9108798,"-8,785.76 ","8,785.76 ",2103,Water Rates,1015,Collingham,23.11 
Nottinghamshire Fire and Rescue Service,104216,Operational Responses,Advanced Demand Side Management Limited,Advanced Demand Side Management Limited,5,202407,01/10/2023,P6,9108798,"-8,785.76 ","8,785.76 ",2103,Water Rates,1015,Collingham,23.87 
Nottinghamshire Fire and Rescue Service,104216,Operational Responses,Advanced Demand Side Management Limited,Advanced Demand Side Management Limited,5,202407,01/10/2023,P6,9108798,"-8,785.76 ","8,785.76 ",2103,Water Rates,1015,Collingham,30.99 
Nottinghamshire Fire and Rescue Service,101712,Operational Responses,Advanced Demand Side Management Limited,Advanced Demand Side Management Limited,5,202407,01/10/2023,P6,9108798,"-8,785.76 ","8,785.76 ",2103,Water Rates,1016,Newark,-97.69 
Nottinghamshire Fire and Rescue Service,104216,Operational Responses,Advanced Demand Side Management Limited,Advanced Demand Side Management Limited,5,202407,01/10/2023,P6,9108798,"-8,785.76 ","8,785.76 ",2103,Water Rates,1016,Newark,-93.83 
Nottinghamshire Fire and Rescue Service,104216,Operational Responses,Advanced Demand Side Management Limited,Advanced Demand Side Management Limited,5,202407,01/10/2023,P6,9108798,"-8,785.76 ","8,785.76 ",2103,Water Rates,1016,Newark,-81.69 
Nottinghamshire Fire and Rescue Service,104216,Operational Responses,Advanced Demand Side Management Limited,Advanced Demand Side Management Limited,5,202407,01/10/2023,P6,9108798,"-8,785.76 ","8,785.76 ",2103,Water Rates,1016,Newark,-2.69 
Nottinghamshire Fire and Rescue Service,104216,Operational Responses,Advanced Demand Side Management Limited,Advanced Demand Side Management Limited,5,202407,01/10/2023,P6,9108798,"-8,785.76 ","8,785.76 ",2103,Water Rates,1016,Newark,-2.59 
Nottinghamshire Fire and Rescue Service,104216,Operational Responses,Advanced Demand Side Management Limited,Advanced Demand Side Management Limited,5,202407,01/10/2023,P6,9108798,"-8,785.76 ","8,785.76 ",2103,Water Rates,1016,Newark,2.59 
Nottinghamshire Fire and Rescue Service,104216,Operational Responses,Advanced Demand Side Management Limited,Advanced Demand Side Management Limited,5,202407,01/10/2023,P6,9108798,"-8,785.76 ","8,785.76 ",2103,Water Rates,1016,Newark,2.69 
Nottinghamshire Fire and Rescue Service,104216,Operational Responses,Advanced Demand Side Management Limited,Advanced Demand Side Management Limited,5,202407,01/10/2023,P6,9108798,"-8,785.76 ","8,785.76 ",2103,Water Rates,1016,Newark,81.69 
Nottinghamshire Fire and Rescue Service,104216,Operational Responses,Advanced Demand Side Management Limited,Advanced Demand Side Management Limited,5,202407,01/10/2023,P6,9108798,"-8,785.76 ","8,785.76 ",2103,Water Rates,1016,Newark,87.27 
Nottinghamshire Fire and Rescue Service,104216,Operational Responses,Advanced Demand Side Management Limited,Advanced Demand Side Management Limited,5,202407,01/10/2023,P6,9108798,"-8,785.76 ","8,785.76 ",2103,Water Rates,1016,Newark,94.42 
Nottinghamshire Fire and Rescue Service,104216,Operational Responses,Advanced Demand Side Management Limited,Advanced Demand Side Management Limited,5,202407,01/10/2023,P6,9108798,"-8,785.76 ","8,785.76 ",2103,Water Rates,1016,Newark,96.69 
Nottinghamshire Fire and Rescue Service,104216,Operational Responses,Advanced Demand Side Management Limited,Advanced Demand Side Management Limited,5,202407,01/10/2023,P6,9108798,"-8,785.76 ","8,785.76 ",2103,Water Rates,1017,Bingham,-11.70 
Nottinghamshire Fire and Rescue Service,104216,Operational Responses,Advanced Demand Side Management Limited,Advanced Demand Side Management Limited,5,202407,01/10/2023,P6,9108798,"-8,785.76 ","8,785.76 ",2103,Water Rates,1017,Bingham,-9.73 
Nottinghamshire Fire and Rescue Service,104216,Operational Responses,Advanced Demand Side Management Limited,Advanced Demand Side Management Limited,5,202407,01/10/2023,P6,9108798,"-8,785.76 ","8,785.76 ",2103,Water Rates,1017,Bingham,9.26 
Nottinghamshire Fire and Rescue Service,101712,Operational Responses,Advanced Demand Side Management Limited,Advanced Demand Side Management Limited,5,202407,01/10/2023,P6,9108798,"-8,785.76 ","8,785.76 ",2103,Water Rates,1017,Bingham,11.45 
Nottinghamshire Fire and Rescue Service,101712,Operational Responses,Advanced Demand Side Management Limited,Advanced Demand Side Management Limited,5,202407,01/10/2023,P6,9108798,"-8,785.76 ","8,785.76 ",2103,Water Rates,1017,Bingham,11.70 
Nottinghamshire Fire and Rescue Service,104216,Operational Responses,Advanced Demand Side Management Limited,Advanced Demand Side Management Limited,5,202407,01/10/2023,P6,9108798,"-8,785.76 ","8,785.76 ",2103,Water Rates,1019,West Bridgford,-217.30 
Nottinghamshire Fire and Rescue Service,104216,Operational Responses,Advanced Demand Side Management Limited,Advanced Demand Side Management Limited,5,202407,01/10/2023,P6,9108798,"-8,785.76 ","8,785.76 ",2103,Water Rates,1019,West Bridgford,-190.36 
Nottinghamshire Fire and Rescue Service,104216,Operational Responses,Advanced Demand Side Management Limited,Advanced Demand Side Management Limited,5,202407,01/10/2023,P6,9108798,"-8,785.76 ","8,785.76 ",2103,Water Rates,1019,West Bridgford,-118.21 
Nottinghamshire Fire and Rescue Service,104216,Operational Responses,Advanced Demand Side Management Limited,Advanced Demand Side Management Limited,5,202407,01/10/2023,P6,9108798,"-8,785.76 ","8,785.76 ",2103,Water Rates,1019,West Bridgford,57.60 
Nottinghamshire Fire and Rescue Service,104216,Operational Responses,Advanced Demand Side Management Limited,Advanced Demand Side Management Limited,5,202407,01/10/2023,P6,9108798,"-8,785.76 ","8,785.76 ",2103,Water Rates,1019,West Bridgford,125.91 
Nottinghamshire Fire and Rescue Service,104216,Operational Responses,Advanced Demand Side Management Limited,Advanced Demand Side Management Limited,5,202407,01/10/2023,P6,9108798,"-8,785.76 ","8,785.76 ",2103,Water Rates,1019,West Bridgford,126.48 
Nottinghamshire Fire and Rescue Service,104216,Operational Responses,Advanced Demand Side Management Limited,Advanced Demand Side Management Limited,5,202407,01/10/2023,P6,9108798,"-8,785.76 ","8,785.76 ",2103,Water Rates,1019,West Bridgford,188.84 
Nottinghamshire Fire and Rescue Service,104216,Operational Responses,Advanced Demand Side Management Limited,Advanced Demand Side Management Limited,5,202407,01/10/2023,P6,9108798,"-8,785.76 ","8,785.76 ",2103,Water Rates,1020,Stockhill,-13.21 
Nottinghamshire Fire and Rescue Service,104216,Operational Responses,Advanced Demand Side Management Limited,Advanced Demand Side Management Limited,5,202407,01/10/2023,P6,9108798,"-8,785.76 ","8,785.76 ",2103,Water Rates,1020,Stockhill,-11.04 
Nottinghamshire Fire and Rescue Service,104216,Operational Responses,Advanced Demand Side Management Limited,Advanced Demand Side Management Limited,5,202407,01/10/2023,P6,9108798,"-8,785.76 ","8,785.76 ",2103,Water Rates,1020,Stockhill,0.54 
Nottinghamshire Fire and Rescue Service,103406,Operational Responses,Advanced Demand Side Management Limited,Advanced Demand Side Management Limited,5,202407,01/10/2023,P6,9108798,"-8,785.76 ","8,785.76 ",2103,Water Rates,1020,Stockhill,2.40 
Nottinghamshire Fire and Rescue Service,103814,Operational Responses,Advanced Demand Side Management Limited,Advanced Demand Side Management Limited,5,202407,01/10/2023,P6,9108798,"-8,785.76 ","8,785.76 ",2103,Water Rates,1020,Stockhill,11.28 
Nottinghamshire Fire and Rescue Service,101802,Operational Responses,Advanced Demand Side Management Limited,Advanced Demand Side Management Limited,5,202407,01/10/2023,P6,9108798,"-8,785.76 ","8,785.76 ",2103,Water Rates,1023,Stapleford,-48.94 
Nottinghamshire Fire and Rescue Service,101802,Operational Responses,Advanced Demand Side Management Limited,Advanced Demand Side Management Limited,5,202407,01/10/2023,P6,9108798,"-8,785.76 ","8,785.76 ",2103,Water Rates,1023,Stapleford,-47.36 
Nottinghamshire Fire and Rescue Service,104134,Operational Responses,Advanced Demand Side Management Limited,Advanced Demand Side Management Limited,5,202407,01/10/2023,P6,9108798,"-8,785.76 ","8,785.76 ",2103,Water Rates,1023,Stapleford,47.37 
Nottinghamshire Fire and Rescue Service,104292,Operational Responses,Advanced Demand Side Management Limited,Advanced Demand Side Management Limited,5,202407,01/10/2023,P6,9108798,"-8,785.76 ","8,785.76 ",2103,Water Rates,1023,Stapleford,48.95 
Nottinghamshire Fire and Rescue Service,104216,Operational Responses,Advanced Demand Side Management Limited,Advanced Demand Side Management Limited,5,202407,01/10/2023,P6,9108798,"-8,785.76 ","8,785.76 ",2103,Water Rates,1024,Eastwood,-21.41 
Nottinghamshire Fire and Rescue Service,104216,Operational Responses,Advanced Demand Side Management Limited,Advanced Demand Side Management Limited,5,202407,01/10/2023,P6,9108798,"-8,785.76 ","8,785.76 ",2103,Water Rates,1024,Eastwood,-20.73 
Nottinghamshire Fire and Rescue Service,104216,Operational Responses,Advanced Demand Side Management Limited,Advanced Demand Side Management Limited,5,202407,01/10/2023,P6,9108798,"-8,785.76 ","8,785.76 ",2103,Water Rates,1024,Eastwood,22.15 
Nottinghamshire Fire and Rescue Service,104216,Operational Responses,Advanced Demand Side Management Limited,Advanced Demand Side Management Limited,5,202407,01/10/2023,P6,9108798,"-8,785.76 ","8,785.76 ",2103,Water Rates,1024,Eastwood,22.89 
Nottinghamshire Fire and Rescue Service,104216,Operational Responses,Advanced Demand Side Management Limited,Advanced Demand Side Management Limited,5,202407,01/10/2023,P6,9108798,"-8,785.76 ","8,785.76 ",2103,Water Rates,1026,Arnold,-102.17 
Nottinghamshire Fire and Rescue Service,104216,Operational Responses,Advanced Demand Side Management Limited,Advanced Demand Side Management Limited,5,202407,01/10/2023,P6,9108798,"-8,785.76 ","8,785.76 ",2103,Water Rates,1026,Arnold,-90.89 
Nottinghamshire Fire and Rescue Service,104216,Operational Responses,Advanced Demand Side Management Limited,Advanced Demand Side Management Limited,5,202407,01/10/2023,P6,9108798,"-8,785.76 ","8,785.76 ",2103,Water Rates,1026,Arnold,-90.40 
Nottinghamshire Fire and Rescue Service,104216,Operational Responses,Advanced Demand Side Management Limited,Advanced Demand Side Management Limited,5,202407,01/10/2023,P6,9108798,"-8,785.76 ","8,785.76 ",2103,Water Rates,1026,Arnold,88.37 
Nottinghamshire Fire and Rescue Service,104216,Operational Responses,Advanced Demand Side Management Limited,Advanced Demand Side Management Limited,5,202407,01/10/2023,P6,9108798,"-8,785.76 ","8,785.76 ",2103,Water Rates,1026,Arnold,92.37 
Nottinghamshire Fire and Rescue Service,104216,Operational Responses,Advanced Demand Side Management Limited,Advanced Demand Side Management Limited,5,202407,01/10/2023,P6,9108798,"-8,785.76 ","8,785.76 ",2103,Water Rates,1026,Arnold,102.17 
Nottinghamshire Fire and Rescue Service,104216,Operational Responses,Advanced Demand Side Management Limited,Advanced Demand Side Management Limited,5,202407,01/10/2023,P6,9108798,"-8,785.76 ","8,785.76 ",2103,Water Rates,1026,Arnold,107.47 
Nottinghamshire Fire and Rescue Service,104216,Operational Responses,Advanced Demand Side Management Limited,Advanced Demand Side Management Limited,5,202407,01/10/2023,P6,9108798,"-8,785.76 ","8,785.76 ",2103,Water Rates,1027,Carlton,-25.33 
Nottinghamshire Fire and Rescue Service,102190,Operational Responses,Advanced Demand Side Management Limited,Advanced Demand Side Management Limited,5,202407,01/10/2023,P6,9108798,"-8,785.76 ","8,785.76 ",2103,Water Rates,1027,Carlton,-24.51 
Nottinghamshire Fire and Rescue Service,104134,Operational Responses,Advanced Demand Side Management Limited,Advanced Demand Side Management Limited,5,202407,01/10/2023,P6,9108798,"-8,785.76 ","8,785.76 ",2103,Water Rates,1027,Carlton,26.22 
Nottinghamshire Fire and Rescue Service,102307,Operational Responses,Advanced Demand Side Management Limited,Advanced Demand Side Management Limited,5,202407,01/10/2023,P6,9108798,"-8,785.76 ","8,785.76 ",2103,Water Rates,1027,Carlton,27.10 
Nottinghamshire Fire and Rescue Service,102190,Operational Responses,Advanced Demand Side Management Limited,Advanced Demand Side Management Limited,5,202407,01/10/2023,P6,9108798,"-8,785.76 ","8,785.76 ",2103,Water Rates,1028,East Leake,-2.40 
Nottinghamshire Fire and Rescue Service,104301,Operational Responses,Advanced Demand Side Management Limited,Advanced Demand Side Management Limited,5,202407,01/10/2023,P6,9108798,"-8,785.76 ","8,785.76 ",2103,Water Rates,1028,East Leake,-2.32 
Nottinghamshire Fire and Rescue Service,104301,Operational Responses,Advanced Demand Side Management Limited,Advanced Demand Side Management Limited,5,202407,01/10/2023,P6,9108798,"-8,785.76 ","8,785.76 ",2103,Water Rates,1028,East Leake,2.32 
Nottinghamshire Fire and Rescue Service,104134,Operational Responses,Advanced Demand Side Management Limited,Advanced Demand Side Management Limited,5,202407,01/10/2023,P6,9108798,"-8,785.76 ","8,785.76 ",2103,Water Rates,1028,East Leake,2.40 
Nottinghamshire Fire and Rescue Service,102119,Operational Responses,Advanced Demand Side Management Limited,Advanced Demand Side Management Limited,5,202407,01/10/2023,P6,9108798,"-8,785.76 ","8,785.76 ",2103,Water Rates,1029,Highfields Station,-271.93 
Nottinghamshire Fire and Rescue Service,103923,Operational Responses,Advanced Demand Side Management Limited,Advanced Demand Side Management Limited,5,202407,01/10/2023,P6,9108798,"-8,785.76 ","8,785.76 ",2103,Water Rates,1029,Highfields Station,-263.14 
Nottinghamshire Fire and Rescue Service,104110,Operational Responses,Advanced Demand Side Management Limited,Advanced Demand Side Management Limited,5,202407,01/10/2023,P6,9108798,"-8,785.76 ","8,785.76 ",2103,Water Rates,1029,Highfields Station,264.10 
Nottinghamshire Fire and Rescue Service,104293,Operational Responses,Advanced Demand Side Management Limited,Advanced Demand Side Management Limited,5,202407,01/10/2023,P6,9108798,"-8,785.76 ","8,785.76 ",2103,Water Rates,1029,Highfields Station,272.91 
Nottinghamshire Fire and Rescue Service,101001,Management & Support Services,Advanced Demand Side Management Limited,Advanced Demand Side Management Limited,5,202407,01/10/2023,P6,9108798,"-8,785.76 ","8,785.76 ",2103,Water Rates,1030,Service Development Centre,-503.33 
Nottinghamshire Fire and Rescue Service,101001,Management & Support Services,Advanced Demand Side Management Limited,Advanced Demand Side Management Limited,5,202407,01/10/2023,P6,9108798,"-8,785.76 ","8,785.76 ",2103,Water Rates,1030,Service Development Centre,-487.07 
Nottinghamshire Fire and Rescue Service,103874,Management & Support Services,Advanced Demand Side Management Limited,Advanced Demand Side Management Limited,5,202407,01/10/2023,P6,9108798,"-8,785.76 ","8,785.76 ",2103,Water Rates,1030,Service Development Centre,539.00 
Nottinghamshire Fire and Rescue Service,103837,Management & Support Services,Advanced Demand Side Management Limited,Advanced Demand Side Management Limited,5,202407,01/10/2023,P6,9108798,"-8,785.76 ","8,785.76 ",2103,Water Rates,1030,Service Development Centre,561.67 
Nottinghamshire Fire and Rescue Service,102280,Management & Support Services,Advanced Demand Side Management Limited,Advanced Demand Side Management Limited,5,202407,01/10/2023,P6,9108798,"-8,785.76 ","8,785.76 ",2103,Water Rates,1030,Service Development Centre,815.37 
Nottinghamshire Fire and Rescue Service,102280,Management & Support Services,Advanced Demand Side Management Limited,Advanced Demand Side Management Limited,5,202407,01/10/2023,P6,9108798,"-8,785.76 ","8,785.76 ",2103,Water Rates,1030,Service Development Centre,842.56 
Nottinghamshire Fire and Rescue Service,102280,Management & Support Services,Advanced Demand Side Management Limited,Advanced Demand Side Management Limited,5,202407,01/10/2023,P6,9108798,"-8,785.76 ","8,785.76 ",2103,Water Rates,1035,Headquarters,-258.81 
Nottinghamshire Fire and Rescue Service,102280,Management & Support Services,Advanced Demand Side Management Limited,Advanced Demand Side Management Limited,5,202407,01/10/2023,P6,9108798,"-8,785.76 ","8,785.76 ",2103,Water Rates,1035,Headquarters,-250.45 
Nottinghamshire Fire and Rescue Service,102280,Management & Support Services,Advanced Demand Side Management Limited,Advanced Demand Side Management Limited,5,202407,01/10/2023,P6,9108798,"-8,785.76 ","8,785.76 ",2103,Water Rates,1035,Headquarters,252.14 
Nottinghamshire Fire and Rescue Service,102280,Management & Support Services,Advanced Demand Side Management Limited,Advanced Demand Side Management Limited,5,202407,01/10/2023,P6,9108798,"-8,785.76 ","8,785.76 ",2103,Water Rates,1035,Headquarters,260.56 
Nottinghamshire Fire and Rescue Service,102280,Prevention & Education,Advanced Demand Side Management Limited,Advanced Demand Side Management Limited,5,202407,01/10/2023,P6,9108798,"-8,785.76 ","8,785.76 ",2103,Water Rates,1036,Clifton Community Safety Centre,-16.44 
Nottinghamshire Fire and Rescue Service,102280,Prevention & Education,Advanced Demand Side Management Limited,Advanced Demand Side Management Limited,5,202407,01/10/2023,P6,9108798,"-8,785.76 ","8,785.76 ",2103,Water Rates,1036,Clifton Community Safety Centre,-15.90 
Nottinghamshire Fire and Rescue Service,102280,Prevention & Education,Advanced Demand Side Management Limited,Advanced Demand Side Management Limited,5,202407,01/10/2023,P6,9108798,"-8,785.76 ","8,785.76 ",2103,Water Rates,1036,Clifton Community Safety Centre,13.56 
Nottinghamshire Fire and Rescue Service,102280,Prevention & Education,Advanced Demand Side Management Limited,Advanced Demand Side Management Limited,5,202407,01/10/2023,P6,9108798,"-8,785.76 ","8,785.76 ",2103,Water Rates,1036,Clifton Community Safety Centre,14.02 
Nottinghamshire Fire and Rescue Service,102280,Operational Responses,Advanced Demand Side Management Limited,Advanced Demand Side Management Limited,5,202407,01/10/2023,P6,9108798,"-8,785.76 ","8,785.76 ",2104,Sewerage and Environmental,1001,Mansfield,-209.52 
Nottinghamshire Fire and Rescue Service,102280,Operational Responses,Advanced Demand Side Management Limited,Advanced Demand Side Management Limited,5,202407,01/10/2023,P6,9108798,"-8,785.76 ","8,785.76 ",2104,Sewerage and Environmental,1001,Mansfield,-202.76 
Nottinghamshire Fire and Rescue Service,102280,Operational Responses,Advanced Demand Side Management Limited,Advanced Demand Side Management Limited,5,202407,01/10/2023,P6,9108798,"-8,785.76 ","8,785.76 ",2104,Sewerage and Environmental,1001,Mansfield,-23.33 
Nottinghamshire Fire and Rescue Service,102280,Operational Responses,Advanced Demand Side Management Limited,Advanced Demand Side Management Limited,5,202407,01/10/2023,P6,9108798,"-8,785.76 ","8,785.76 ",2104,Sewerage and Environmental,1001,Mansfield,-22.58 
Nottinghamshire Fire and Rescue Service,102280,Operational Responses,Advanced Demand Side Management Limited,Advanced Demand Side Management Limited,5,202407,01/10/2023,P6,9108798,"-8,785.76 ","8,785.76 ",2104,Sewerage and Environmental,1001,Mansfield,2.19 
Nottinghamshire Fire and Rescue Service,102280,Operational Responses,Advanced Demand Side Management Limited,Advanced Demand Side Management Limited,5,202407,01/10/2023,P6,9108798,"-8,785.76 ","8,785.76 ",2104,Sewerage and Environmental,1001,Mansfield,2.26 
Nottinghamshire Fire and Rescue Service,102280,Operational Responses,Advanced Demand Side Management Limited,Advanced Demand Side Management Limited,5,202407,01/10/2023,P6,9108798,"-8,785.76 ","8,785.76 ",2104,Sewerage and Environmental,1001,Mansfield,202.77 
Nottinghamshire Fire and Rescue Service,102280,Operational Responses,Advanced Demand Side Management Limited,Advanced Demand Side Management Limited,5,202407,01/10/2023,P6,9108798,"-8,785.76 ","8,785.76 ",2104,Sewerage and Environmental,1001,Mansfield,209.52 
Nottinghamshire Fire and Rescue Service,102280,Operational Responses,Advanced Demand Side Management Limited,Advanced Demand Side Management Limited,5,202407,01/10/2023,P6,9108798,"-8,785.76 ","8,785.76 ",2104,Sewerage and Environmental,1002,Blidworth,-12.24 
Nottinghamshire Fire and Rescue Service,102280,Operational Responses,Advanced Demand Side Management Limited,Advanced Demand Side Management Limited,5,202407,01/10/2023,P6,9108798,"-8,785.76 ","8,785.76 ",2104,Sewerage and Environmental,1002,Blidworth,-11.85 
Nottinghamshire Fire and Rescue Service,102280,Operational Responses,Advanced Demand Side Management Limited,Advanced Demand Side Management Limited,5,202407,01/10/2023,P6,9108798,"-8,785.76 ","8,785.76 ",2104,Sewerage and Environmental,1002,Blidworth,21.66 
Nottinghamshire Fire and Rescue Service,102280,Operational Responses,Advanced Demand Side Management Limited,Advanced Demand Side Management Limited,5,202407,01/10/2023,P6,9108798,"-8,785.76 ","8,785.76 ",2104,Sewerage and Environmental,1002,Blidworth,22.38 
Nottinghamshire Fire and Rescue Service,102280,Operational Responses,Advanced Demand Side Management Limited,Advanced Demand Side Management Limited,5,202407,01/10/2023,P6,9108798,"-8,785.76 ","8,785.76 ",2104,Sewerage and Environmental,1003,London Road,45.90 
Nottinghamshire Fire and Rescue Service,102280,Operational Responses,Advanced Demand Side Management Limited,Advanced Demand Side Management Limited,5,202407,01/10/2023,P6,9108798,"-8,785.76 ","8,785.76 ",2104,Sewerage and Environmental,1005,Ashfield,-91.88 
Nottinghamshire Fire and Rescue Service,101001,Operational Responses,Advanced Demand Side Management Limited,Advanced Demand Side Management Limited,5,202407,01/10/2023,P6,9108798,"-8,785.76 ","8,785.76 ",2104,Sewerage and Environmental,1005,Ashfield,-88.91 
Nottinghamshire Fire and Rescue Service,102495,Operational Responses,Advanced Demand Side Management Limited,Advanced Demand Side Management Limited,5,202407,01/10/2023,P6,9108798,"-8,785.76 ","8,785.76 ",2104,Sewerage and Environmental,1005,Ashfield,88.89 
Nottinghamshire Fire and Rescue Service,102495,Operational Responses,Advanced Demand Side Management Limited,Advanced Demand Side Management Limited,5,202407,01/10/2023,P6,9108798,"-8,785.76 ","8,785.76 ",2104,Sewerage and Environmental,1005,Ashfield,91.86 
Nottinghamshire Fire and Rescue Service,102603,Operational Responses,Advanced Demand Side Management Limited,Advanced Demand Side Management Limited,5,202407,01/10/2023,P6,9108798,"-8,785.76 ","8,785.76 ",2104,Sewerage and Environmental,1006,Edwinstowe,-141.30 
Nottinghamshire Fire and Rescue Service,100357,Operational Responses,Advanced Demand Side Management Limited,Advanced Demand Side Management Limited,5,202407,01/10/2023,P6,9108798,"-8,785.76 ","8,785.76 ",2104,Sewerage and Environmental,1006,Edwinstowe,-136.75 
Nottinghamshire Fire and Rescue Service,104053,Operational Responses,Advanced Demand Side Management Limited,Advanced Demand Side Management Limited,5,202407,01/10/2023,P6,9108798,"-8,785.76 ","8,785.76 ",2104,Sewerage and Environmental,1006,Edwinstowe,154.39 
Nottinghamshire Fire and Rescue Service,101001,Operational Responses,Advanced Demand Side Management Limited,Advanced Demand Side Management Limited,5,202407,01/10/2023,P6,9108798,"-8,785.76 ","8,785.76 ",2104,Sewerage and Environmental,1006,Edwinstowe,154.85 
Nottinghamshire Fire and Rescue Service,104045,Operational Responses,Advanced Demand Side Management Limited,Advanced Demand Side Management Limited,5,202407,01/10/2023,P6,9108798,"-8,785.76 ","8,785.76 ",2104,Sewerage and Environmental,1006,Edwinstowe,160.01 
Nottinghamshire Fire and Rescue Service,104140,Operational Responses,Advanced Demand Side Management Limited,Advanced Demand Side Management Limited,5,202407,01/10/2023,P6,9108798,"-8,785.76 ","8,785.76 ",2104,Sewerage and Environmental,1007,Warsop,-13.93 
Nottinghamshire Fire and Rescue Service,101001,Operational Responses,Advanced Demand Side Management Limited,Advanced Demand Side Management Limited,5,202407,01/10/2023,P6,9108798,"-8,785.76 ","8,785.76 ",2104,Sewerage and Environmental,1007,Warsop,-13.90 
Nottinghamshire Fire and Rescue Service,102495,Operational Responses,Advanced Demand Side Management Limited,Advanced Demand Side Management Limited,5,202407,01/10/2023,P6,9108798,"-8,785.76 ","8,785.76 ",2104,Sewerage and Environmental,1007,Warsop,-13.34 
Nottinghamshire Fire and Rescue Service,102495,Operational Responses,Advanced Demand Side Management Limited,Advanced Demand Side Management Limited,5,202407,01/10/2023,P6,9108798,"-8,785.76 ","8,785.76 ",2104,Sewerage and Environmental,1007,Warsop,10.18 
Nottinghamshire Fire and Rescue Service,102190,Operational Responses,Advanced Demand Side Management Limited,Advanced Demand Side Management Limited,5,202407,01/10/2023,P6,9108798,"-8,785.76 ","8,785.76 ",2104,Sewerage and Environmental,1007,Warsop,12.35 
Nottinghamshire Fire and Rescue Service,102190,Operational Responses,Advanced Demand Side Management Limited,Advanced Demand Side Management Limited,5,202407,01/10/2023,P6,9108798,"-8,785.76 ","8,785.76 ",2104,Sewerage and Environmental,1007,Warsop,12.75 
Nottinghamshire Fire and Rescue Service,102190,Operational Responses,Advanced Demand Side Management Limited,Advanced Demand Side Management Limited,5,202407,01/10/2023,P6,9108798,"-8,785.76 ","8,785.76 ",2104,Sewerage and Environmental,1007,Warsop,13.14 
Nottinghamshire Fire and Rescue Service,102190,Operational Responses,Advanced Demand Side Management Limited,Advanced Demand Side Management Limited,5,202407,01/10/2023,P6,9108798,"-8,785.76 ","8,785.76 ",2104,Sewerage and Environmental,1008,Worksop,-233.92 
Nottinghamshire Fire and Rescue Service,102306,Operational Responses,Advanced Demand Side Management Limited,Advanced Demand Side Management Limited,5,202407,01/10/2023,P6,9108798,"-8,785.76 ","8,785.76 ",2104,Sewerage and Environmental,1008,Worksop,541.00 
Nottinghamshire Fire and Rescue Service,102306,Operational Responses,Advanced Demand Side Management Limited,Advanced Demand Side Management Limited,5,202407,01/10/2023,P6,9108798,"-8,785.76 ","8,785.76 ",2104,Sewerage and Environmental,1008,Worksop,559.04 
Nottinghamshire Fire and Rescue Service,100468,Operational Responses,Advanced Demand Side Management Limited,Advanced Demand Side Management Limited,5,202407,01/10/2023,P6,9108798,"-8,785.76 ","8,785.76 ",2104,Sewerage and Environmental,1010,Harworth,-16.74 
Nottinghamshire Fire and Rescue Service,100468,Operational Responses,Advanced Demand Side Management Limited,Advanced Demand Side Management Limited,5,202407,01/10/2023,P6,9108798,"-8,785.76 ","8,785.76 ",2104,Sewerage and Environmental,1010,Harworth,-15.42 
Nottinghamshire Fire and Rescue Service,103371,Operational Responses,Advanced Demand Side Management Limited,Advanced Demand Side Management Limited,5,202407,01/10/2023,P6,9108798,"-8,785.76 ","8,785.76 ",2104,Sewerage and Environmental,1010,Harworth,-12.59 
Nottinghamshire Fire and Rescue Service,102744,Operational Responses,Advanced Demand Side Management Limited,Advanced Demand Side Management Limited,5,202407,01/10/2023,P6,9108798,"-8,785.76 ","8,785.76 ",2104,Sewerage and Environmental,1010,Harworth,7.51 
Nottinghamshire Fire and Rescue Service,102744,Operational Responses,Advanced Demand Side Management Limited,Advanced Demand Side Management Limited,5,202407,01/10/2023,P6,9108798,"-8,785.76 ","8,785.76 ",2104,Sewerage and Environmental,1010,Harworth,10.86 
Nottinghamshire Fire and Rescue Service,102744,Operational Responses,Advanced Demand Side Management Limited,Advanced Demand Side Management Limited,5,202407,01/10/2023,P6,9108798,"-8,785.76 ","8,785.76 ",2104,Sewerage and Environmental,1010,Harworth,12.59 
Nottinghamshire Fire and Rescue Service,102744,Operational Responses,Advanced Demand Side Management Limited,Advanced Demand Side Management Limited,5,202407,01/10/2023,P6,9108798,"-8,785.76 ","8,785.76 ",2104,Sewerage and Environmental,1010,Harworth,13.01 
Nottinghamshire Fire and Rescue Service,104098,Operational Responses,Advanced Demand Side Management Limited,Advanced Demand Side Management Limited,5,202407,01/10/2023,P6,9108798,"-8,785.76 ","8,785.76 ",2104,Sewerage and Environmental,1011,Misterton,40.08 
Nottinghamshire Fire and Rescue Service,104098,Operational Responses,Advanced Demand Side Management Limited,Advanced Demand Side Management Limited,5,202407,01/10/2023,P6,9108798,"-8,785.76 ","8,785.76 ",2104,Sewerage and Environmental,1012,Retford,-57.20 
Nottinghamshire Fire and Rescue Service,104098,Operational Responses,Advanced Demand Side Management Limited,Advanced Demand Side Management Limited,5,202407,01/10/2023,P6,9108798,"-8,785.76 ","8,785.76 ",2104,Sewerage and Environmental,1012,Retford,-27.03 
Nottinghamshire Fire and Rescue Service,104098,Operational Responses,Advanced Demand Side Management Limited,Advanced Demand Side Management Limited,5,202407,01/10/2023,P6,9108798,"-8,785.76 ","8,785.76 ",2104,Sewerage and Environmental,1012,Retford,26.17 
Nottinghamshire Fire and Rescue Service,104098,Operational Responses,Advanced Demand Side Management Limited,Advanced Demand Side Management Limited,5,202407,01/10/2023,P6,9108798,"-8,785.76 ","8,785.76 ",2104,Sewerage and Environmental,1012,Retford,27.03 
Nottinghamshire Fire and Rescue Service,104098,Operational Responses,Advanced Demand Side Management Limited,Advanced Demand Side Management Limited,5,202407,01/10/2023,P6,9108798,"-8,785.76 ","8,785.76 ",2104,Sewerage and Environmental,1012,Retford,103.01 
Nottinghamshire Fire and Rescue Service,104098,Operational Responses,Advanced Demand Side Management Limited,Advanced Demand Side Management Limited,5,202407,01/10/2023,P6,9108798,"-8,785.76 ","8,785.76 ",2104,Sewerage and Environmental,1012,Retford,141.00 
Nottinghamshire Fire and Rescue Service,104098,Operational Responses,Advanced Demand Side Management Limited,Advanced Demand Side Management Limited,5,202407,01/10/2023,P6,9108798,"-8,785.76 ","8,785.76 ",2104,Sewerage and Environmental,1013,Tuxford,-153.98 
Nottinghamshire Fire and Rescue Service,104098,Operational Responses,Advanced Demand Side Management Limited,Advanced Demand Side Management Limited,5,202407,01/10/2023,P6,9108798,"-8,785.76 ","8,785.76 ",2104,Sewerage and Environmental,1013,Tuxford,-119.57 
Nottinghamshire Fire and Rescue Service,104098,Operational Responses,Advanced Demand Side Management Limited,Advanced Demand Side Management Limited,5,202407,01/10/2023,P6,9108798,"-8,785.76 ","8,785.76 ",2104,Sewerage and Environmental,1013,Tuxford,118.55 
Nottinghamshire Fire and Rescue Service,104098,Operational Responses,Advanced Demand Side Management Limited,Advanced Demand Side Management Limited,5,202407,01/10/2023,P6,9108798,"-8,785.76 ","8,785.76 ",2104,Sewerage and Environmental,1013,Tuxford,120.42 
Nottinghamshire Fire and Rescue Service,104098,Operational Responses,Advanced Demand Side Management Limited,Advanced Demand Side Management Limited,5,202407,01/10/2023,P6,9108798,"-8,785.76 ","8,785.76 ",2104,Sewerage and Environmental,1013,Tuxford,147.73 
Nottinghamshire Fire and Rescue Service,104098,Operational Responses,Advanced Demand Side Management Limited,Advanced Demand Side Management Limited,5,202407,01/10/2023,P6,9108798,"-8,785.76 ","8,785.76 ",2104,Sewerage and Environmental,1013,Tuxford,152.65 
Nottinghamshire Fire and Rescue Service,104311,Operational Responses,Advanced Demand Side Management Limited,Advanced Demand Side Management Limited,5,202407,01/10/2023,P6,9108798,"-8,785.76 ","8,785.76 ",2104,Sewerage and Environmental,1014,Southwell,-91.28 
Nottinghamshire Fire and Rescue Service,101001,Operational Responses,Advanced Demand Side Management Limited,Advanced Demand Side Management Limited,5,202407,01/10/2023,P6,9108798,"-8,785.76 ","8,785.76 ",2104,Sewerage and Environmental,1014,Southwell,-88.96 
Nottinghamshire Fire and Rescue Service,100778,Operational Responses,Advanced Demand Side Management Limited,Advanced Demand Side Management Limited,5,202407,01/10/2023,P6,9108798,"-8,785.76 ","8,785.76 ",2104,Sewerage and Environmental,1014,Southwell,-87.88 
Nottinghamshire Fire and Rescue Service,100229,Operational Responses,Advanced Demand Side Management Limited,Advanced Demand Side Management Limited,5,202407,01/10/2023,P6,9108798,"-8,785.76 ","8,785.76 ",2104,Sewerage and Environmental,1014,Southwell,-85.06 
Nottinghamshire Fire and Rescue Service,100229,Operational Responses,Advanced Demand Side Management Limited,Advanced Demand Side Management Limited,5,202407,01/10/2023,P6,9108798,"-8,785.76 ","8,785.76 ",2104,Sewerage and Environmental,1014,Southwell,85.06 
Nottinghamshire Fire and Rescue Service,104292,Operational Responses,Advanced Demand Side Management Limited,Advanced Demand Side Management Limited,5,202407,01/10/2023,P6,9108798,"-8,785.76 ","8,785.76 ",2104,Sewerage and Environmental,1014,Southwell,86.10 
Nottinghamshire Fire and Rescue Service,104256,Operational Responses,Advanced Demand Side Management Limited,Advanced Demand Side Management Limited,5,202407,01/10/2023,P6,9108798,"-8,785.76 ","8,785.76 ",2104,Sewerage and Environmental,1014,Southwell,87.64 
Nottinghamshire Fire and Rescue Service,104256,Operational Responses,Advanced Demand Side Management Limited,Advanced Demand Side Management Limited,5,202407,01/10/2023,P6,9108798,"-8,785.76 ","8,785.76 ",2104,Sewerage and Environmental,1014,Southwell,87.88 
Nottinghamshire Fire and Rescue Service,104256,Operational Responses,Advanced Demand Side Management Limited,Advanced Demand Side Management Limited,5,202407,01/10/2023,P6,9108798,"-8,785.76 ","8,785.76 ",2104,Sewerage and Environmental,1014,Southwell,88.79 
Nottinghamshire Fire and Rescue Service,104256,Operational Responses,Advanced Demand Side Management Limited,Advanced Demand Side Management Limited,5,202407,01/10/2023,P6,9108798,"-8,785.76 ","8,785.76 ",2104,Sewerage and Environmental,1015,Collingham,-70.17 
Nottinghamshire Fire and Rescue Service,104256,Operational Responses,Advanced Demand Side Management Limited,Advanced Demand Side Management Limited,5,202407,01/10/2023,P6,9108798,"-8,785.76 ","8,785.76 ",2104,Sewerage and Environmental,1015,Collingham,-68.46 
Nottinghamshire Fire and Rescue Service,104256,Operational Responses,Advanced Demand Side Management Limited,Advanced Demand Side Management Limited,5,202407,01/10/2023,P6,9108798,"-8,785.76 ","8,785.76 ",2104,Sewerage and Environmental,1015,Collingham,67.91 
Nottinghamshire Fire and Rescue Service,104256,Operational Responses,Advanced Demand Side Management Limited,Advanced Demand Side Management Limited,5,202407,01/10/2023,P6,9108798,"-8,785.76 ","8,785.76 ",2104,Sewerage and Environmental,1015,Collingham,70.17 
Nottinghamshire Fire and Rescue Service,104256,Operational Responses,Advanced Demand Side Management Limited,Advanced Demand Side Management Limited,5,202407,01/10/2023,P6,9108798,"-8,785.76 ","8,785.76 ",2104,Sewerage and Environmental,1015,Collingham,75.08 
Nottinghamshire Fire and Rescue Service,104256,Operational Responses,Advanced Demand Side Management Limited,Advanced Demand Side Management Limited,5,202407,01/10/2023,P6,9108798,"-8,785.76 ","8,785.76 ",2104,Sewerage and Environmental,1016,Newark,-413.15 
Nottinghamshire Fire and Rescue Service,104256,Operational Responses,Advanced Demand Side Management Limited,Advanced Demand Side Management Limited,5,202407,01/10/2023,P6,9108798,"-8,785.76 ","8,785.76 ",2104,Sewerage and Environmental,1016,Newark,-410.58 
Nottinghamshire Fire and Rescue Service,104256,Operational Responses,Advanced Demand Side Management Limited,Advanced Demand Side Management Limited,5,202407,01/10/2023,P6,9108798,"-8,785.76 ","8,785.76 ",2104,Sewerage and Environmental,1016,Newark,-391.28 
Nottinghamshire Fire and Rescue Service,104256,Operational Responses,Advanced Demand Side Management Limited,Advanced Demand Side Management Limited,5,202407,01/10/2023,P6,9108798,"-8,785.76 ","8,785.76 ",2104,Sewerage and Environmental,1016,Newark,-183.90 
Nottinghamshire Fire and Rescue Service,104256,Operational Responses,Advanced Demand Side Management Limited,Advanced Demand Side Management Limited,5,202407,01/10/2023,P6,9108798,"-8,785.76 ","8,785.76 ",2104,Sewerage and Environmental,1016,Newark,-177.97 
Nottinghamshire Fire and Rescue Service,104256,Operational Responses,Advanced Demand Side Management Limited,Advanced Demand Side Management Limited,5,202407,01/10/2023,P6,9108798,"-8,785.76 ","8,785.76 ",2104,Sewerage and Environmental,1016,Newark,177.97 
Nottinghamshire Fire and Rescue Service,104256,Operational Responses,Advanced Demand Side Management Limited,Advanced Demand Side Management Limited,5,202407,01/10/2023,P6,9108798,"-8,785.76 ","8,785.76 ",2104,Sewerage and Environmental,1016,Newark,183.90 
Nottinghamshire Fire and Rescue Service,104256,Operational Responses,Advanced Demand Side Management Limited,Advanced Demand Side Management Limited,5,202407,01/10/2023,P6,9108798,"-8,785.76 ","8,785.76 ",2104,Sewerage and Environmental,1016,Newark,391.28 
Nottinghamshire Fire and Rescue Service,104256,Operational Responses,Advanced Demand Side Management Limited,Advanced Demand Side Management Limited,5,202407,01/10/2023,P6,9108798,"-8,785.76 ","8,785.76 ",2104,Sewerage and Environmental,1016,Newark,399.76 
Nottinghamshire Fire and Rescue Service,104256,Operational Responses,Advanced Demand Side Management Limited,Advanced Demand Side Management Limited,5,202407,01/10/2023,P6,9108798,"-8,785.76 ","8,785.76 ",2104,Sewerage and Environmental,1016,Newark,404.31 
Nottinghamshire Fire and Rescue Service,104256,Operational Responses,Advanced Demand Side Management Limited,Advanced Demand Side Management Limited,5,202407,01/10/2023,P6,9108798,"-8,785.76 ","8,785.76 ",2104,Sewerage and Environmental,1016,Newark,406.98 
Nottinghamshire Fire and Rescue Service,104256,Operational Responses,Advanced Demand Side Management Limited,Advanced Demand Side Management Limited,5,202407,01/10/2023,P6,9108798,"-8,785.76 ","8,785.76 ",2104,Sewerage and Environmental,1017,Bingham,-85.34 
Nottinghamshire Fire and Rescue Service,104256,Operational Responses,Advanced Demand Side Management Limited,Advanced Demand Side Management Limited,5,202407,01/10/2023,P6,9108798,"-8,785.76 ","8,785.76 ",2104,Sewerage and Environmental,1017,Bingham,-81.80 
Nottinghamshire Fire and Rescue Service,104256,Operational Responses,Advanced Demand Side Management Limited,Advanced Demand Side Management Limited,5,202407,01/10/2023,P6,9108798,"-8,785.76 ","8,785.76 ",2104,Sewerage and Environmental,1017,Bingham,81.63 
Nottinghamshire Fire and Rescue Service,104256,Operational Responses,Advanced Demand Side Management Limited,Advanced Demand Side Management Limited,5,202407,01/10/2023,P6,9108798,"-8,785.76 ","8,785.76 ",2104,Sewerage and Environmental,1017,Bingham,81.80 
Nottinghamshire Fire and Rescue Service,104256,Operational Responses,Advanced Demand Side Management Limited,Advanced Demand Side Management Limited,5,202407,01/10/2023,P6,9108798,"-8,785.76 ","8,785.76 ",2104,Sewerage and Environmental,1017,Bingham,85.34 
Nottinghamshire Fire and Rescue Service,104256,Operational Responses,Advanced Demand Side Management Limited,Advanced Demand Side Management Limited,5,202407,01/10/2023,P6,9108798,"-8,785.76 ","8,785.76 ",2104,Sewerage and Environmental,1019,West Bridgford,-327.04 
Nottinghamshire Fire and Rescue Service,104256,Operational Responses,Advanced Demand Side Management Limited,Advanced Demand Side Management Limited,5,202407,01/10/2023,P6,9108798,"-8,785.76 ","8,785.76 ",2104,Sewerage and Environmental,1019,West Bridgford,-309.09 
Nottinghamshire Fire and Rescue Service,104256,Operational Responses,Advanced Demand Side Management Limited,Advanced Demand Side Management Limited,5,202407,01/10/2023,P6,9108798,"-8,785.76 ","8,785.76 ",2104,Sewerage and Environmental,1019,West Bridgford,-255.17 
Nottinghamshire Fire and Rescue Service,104256,Operational Responses,Advanced Demand Side Management Limited,Advanced Demand Side Management Limited,5,202407,01/10/2023,P6,9108798,"-8,785.76 ","8,785.76 ",2104,Sewerage and Environmental,1019,West Bridgford,142.42 
Nottinghamshire Fire and Rescue Service,104256,Operational Responses,Advanced Demand Side Management Limited,Advanced Demand Side Management Limited,5,202407,01/10/2023,P6,9108798,"-8,785.76 ","8,785.76 ",2104,Sewerage and Environmental,1019,West Bridgford,257.95 
Nottinghamshire Fire and Rescue Service,104256,Operational Responses,Advanced Demand Side Management Limited,Advanced Demand Side Management Limited,5,202407,01/10/2023,P6,9108798,"-8,785.76 ","8,785.76 ",2104,Sewerage and Environmental,1019,West Bridgford,265.23 
Nottinghamshire Fire and Rescue Service,104256,Operational Responses,Advanced Demand Side Management Limited,Advanced Demand Side Management Limited,5,202407,01/10/2023,P6,9108798,"-8,785.76 ","8,785.76 ",2104,Sewerage and Environmental,1019,West Bridgford,266.55 
Nottinghamshire Fire and Rescue Service,104256,Operational Responses,Advanced Demand Side Management Limited,Advanced Demand Side Management Limited,5,202407,01/10/2023,P6,9108798,"-8,785.76 ","8,785.76 ",2104,Sewerage and Environmental,1020,Stockhill,-191.11 
Nottinghamshire Fire and Rescue Service,104256,Operational Responses,Advanced Demand Side Management Limited,Advanced Demand Side Management Limited,5,202407,01/10/2023,P6,9108798,"-8,785.76 ","8,785.76 ",2104,Sewerage and Environmental,1020,Stockhill,-183.78 
Nottinghamshire Fire and Rescue Service,104256,Operational Responses,Advanced Demand Side Management Limited,Advanced Demand Side Management Limited,5,202407,01/10/2023,P6,9108798,"-8,785.76 ","8,785.76 ",2104,Sewerage and Environmental,1020,Stockhill,170.86 
Nottinghamshire Fire and Rescue Service,104256,Operational Responses,Advanced Demand Side Management Limited,Advanced Demand Side Management Limited,5,202407,01/10/2023,P6,9108798,"-8,785.76 ","8,785.76 ",2104,Sewerage and Environmental,1020,Stockhill,177.97 
Nottinghamshire Fire and Rescue Service,104256,Operational Responses,Advanced Demand Side Management Limited,Advanced Demand Side Management Limited,5,202407,01/10/2023,P6,9108798,"-8,785.76 ","8,785.76 ",2104,Sewerage and Environmental,1020,Stockhill,183.90 
Nottinghamshire Fire and Rescue Service,104256,Operational Responses,Advanced Demand Side Management Limited,Advanced Demand Side Management Limited,5,202407,01/10/2023,P6,9108798,"-8,785.76 ","8,785.76 ",2104,Sewerage and Environmental,1023,Stapleford,-109.46 
Nottinghamshire Fire and Rescue Service,104256,Operational Responses,Advanced Demand Side Management Limited,Advanced Demand Side Management Limited,5,202407,01/10/2023,P6,9108798,"-8,785.76 ","8,785.76 ",2104,Sewerage and Environmental,1023,Stapleford,-105.95 
Nottinghamshire Fire and Rescue Service,104256,Operational Responses,Advanced Demand Side Management Limited,Advanced Demand Side Management Limited,5,202407,01/10/2023,P6,9108798,"-8,785.76 ","8,785.76 ",2104,Sewerage and Environmental,1023,Stapleford,105.95 
Nottinghamshire Fire and Rescue Service,104256,Operational Responses,Advanced Demand Side Management Limited,Advanced Demand Side Management Limited,5,202407,01/10/2023,P6,9108798,"-8,785.76 ","8,785.76 ",2104,Sewerage and Environmental,1023,Stapleford,109.47 
Nottinghamshire Fire and Rescue Service,104256,Operational Responses,Advanced Demand Side Management Limited,Advanced Demand Side Management Limited,5,202407,01/10/2023,P6,9108798,"-8,785.76 ","8,785.76 ",2104,Sewerage and Environmental,1024,Eastwood,-51.70 
Nottinghamshire Fire and Rescue Service,104256,Operational Responses,Advanced Demand Side Management Limited,Advanced Demand Side Management Limited,5,202407,01/10/2023,P6,9108798,"-8,785.76 ","8,785.76 ",2104,Sewerage and Environmental,1024,Eastwood,-50.03 
Nottinghamshire Fire and Rescue Service,104256,Operational Responses,Advanced Demand Side Management Limited,Advanced Demand Side Management Limited,5,202407,01/10/2023,P6,9108798,"-8,785.76 ","8,785.76 ",2104,Sewerage and Environmental,1024,Eastwood,50.98 
Nottinghamshire Fire and Rescue Service,104256,Operational Responses,Advanced Demand Side Management Limited,Advanced Demand Side Management Limited,5,202407,01/10/2023,P6,9108798,"-8,785.76 ","8,785.76 ",2104,Sewerage and Environmental,1024,Eastwood,52.68 
Nottinghamshire Fire and Rescue Service,104256,Operational Responses,Advanced Demand Side Management Limited,Advanced Demand Side Management Limited,5,202407,01/10/2023,P6,9108798,"-8,785.76 ","8,785.76 ",2104,Sewerage and Environmental,1026,Arnold,-171.58 
Nottinghamshire Fire and Rescue Service,104256,Operational Responses,Advanced Demand Side Management Limited,Advanced Demand Side Management Limited,5,202407,01/10/2023,P6,9108798,"-8,785.76 ","8,785.76 ",2104,Sewerage and Environmental,1026,Arnold,-167.51 
Nottinghamshire Fire and Rescue Service,104256,Operational Responses,Advanced Demand Side Management Limited,Advanced Demand Side Management Limited,5,202407,01/10/2023,P6,9108798,"-8,785.76 ","8,785.76 ",2104,Sewerage and Environmental,1026,Arnold,-167.19 
Nottinghamshire Fire and Rescue Service,104256,Operational Responses,Advanced Demand Side Management Limited,Advanced Demand Side Management Limited,5,202407,01/10/2023,P6,9108798,"-8,785.76 ","8,785.76 ",2104,Sewerage and Environmental,1026,Arnold,162.39 
Nottinghamshire Fire and Rescue Service,104256,Operational Responses,Advanced Demand Side Management Limited,Advanced Demand Side Management Limited,5,202407,01/10/2023,P6,9108798,"-8,785.76 ","8,785.76 ",2104,Sewerage and Environmental,1026,Arnold,171.58 
Nottinghamshire Fire and Rescue Service,104256,Operational Responses,Advanced Demand Side Management Limited,Advanced Demand Side Management Limited,5,202407,01/10/2023,P6,9108798,"-8,785.76 ","8,785.76 ",2104,Sewerage and Environmental,1026,Arnold,177.29 
Nottinghamshire Fire and Rescue Service,104256,Operational Responses,Advanced Demand Side Management Limited,Advanced Demand Side Management Limited,5,202407,01/10/2023,P6,9108798,"-8,785.76 ","8,785.76 ",2104,Sewerage and Environmental,1026,Arnold,178.59 
Nottinghamshire Fire and Rescue Service,104256,Operational Responses,Advanced Demand Side Management Limited,Advanced Demand Side Management Limited,5,202407,01/10/2023,P6,9108798,"-8,785.76 ","8,785.76 ",2104,Sewerage and Environmental,1027,Carlton,-197.41 
Nottinghamshire Fire and Rescue Service,104256,Operational Responses,Advanced Demand Side Management Limited,Advanced Demand Side Management Limited,5,202407,01/10/2023,P6,9108798,"-8,785.76 ","8,785.76 ",2104,Sewerage and Environmental,1027,Carlton,-191.05 
Nottinghamshire Fire and Rescue Service,104256,Operational Responses,Advanced Demand Side Management Limited,Advanced Demand Side Management Limited,5,202407,01/10/2023,P6,9108798,"-8,785.76 ","8,785.76 ",2104,Sewerage and Environmental,1027,Carlton,192.19 
Nottinghamshire Fire and Rescue Service,104256,Operational Responses,Advanced Demand Side Management Limited,Advanced Demand Side Management Limited,5,202407,01/10/2023,P6,9108798,"-8,785.76 ","8,785.76 ",2104,Sewerage and Environmental,1027,Carlton,198.59 
Nottinghamshire Fire and Rescue Service,104256,Operational Responses,Advanced Demand Side Management Limited,Advanced Demand Side Management Limited,5,202407,01/10/2023,P6,9108798,"-8,785.76 ","8,785.76 ",2104,Sewerage and Environmental,1028,East Leake,-2.26 
Nottinghamshire Fire and Rescue Service,104256,Operational Responses,Advanced Demand Side Management Limited,Advanced Demand Side Management Limited,5,202407,01/10/2023,P6,9108798,"-8,785.76 ","8,785.76 ",2104,Sewerage and Environmental,1028,East Leake,-2.19 
Nottinghamshire Fire and Rescue Service,104256,Operational Responses,Advanced Demand Side Management Limited,Advanced Demand Side Management Limited,5,202407,01/10/2023,P6,9108798,"-8,785.76 ","8,785.76 ",2104,Sewerage and Environmental,1028,East Leake,2.19 
Nottinghamshire Fire and Rescue Service,104256,Operational Responses,Advanced Demand Side Management Limited,Advanced Demand Side Management Limited,5,202407,01/10/2023,P6,9108798,"-8,785.76 ","8,785.76 ",2104,Sewerage and Environmental,1028,East Leake,2.26 
Nottinghamshire Fire and Rescue Service,104256,Operational Responses,Advanced Demand Side Management Limited,Advanced Demand Side Management Limited,5,202407,01/10/2023,P6,9108798,"-8,785.76 ","8,785.76 ",2104,Sewerage and Environmental,1029,Highfields Station,-181.59 
Nottinghamshire Fire and Rescue Service,104256,Operational Responses,Advanced Demand Side Management Limited,Advanced Demand Side Management Limited,5,202407,01/10/2023,P6,9108798,"-8,785.76 ","8,785.76 ",2104,Sewerage and Environmental,1029,Highfields Station,-175.74 
Nottinghamshire Fire and Rescue Service,104256,Operational Responses,Advanced Demand Side Management Limited,Advanced Demand Side Management Limited,5,202407,01/10/2023,P6,9108798,"-8,785.76 ","8,785.76 ",2104,Sewerage and Environmental,1029,Highfields Station,176.38 
Nottinghamshire Fire and Rescue Service,104256,Operational Responses,Advanced Demand Side Management Limited,Advanced Demand Side Management Limited,5,202407,01/10/2023,P6,9108798,"-8,785.76 ","8,785.76 ",2104,Sewerage and Environmental,1029,Highfields Station,182.24 
Nottinghamshire Fire and Rescue Service,104256,Management & Support Services,Advanced Demand Side Management Limited,Advanced Demand Side Management Limited,5,202407,01/10/2023,P6,9108798,"-8,785.76 ","8,785.76 ",2104,Sewerage and Environmental,1030,Service Development Centre,-335.71 
Nottinghamshire Fire and Rescue Service,104256,Management & Support Services,Advanced Demand Side Management Limited,Advanced Demand Side Management Limited,5,202407,01/10/2023,P6,9108798,"-8,785.76 ","8,785.76 ",2104,Sewerage and Environmental,1030,Service Development Centre,-324.89 
Nottinghamshire Fire and Rescue Service,104256,Management & Support Services,Advanced Demand Side Management Limited,Advanced Demand Side Management Limited,5,202407,01/10/2023,P6,9108798,"-8,785.76 ","8,785.76 ",2104,Sewerage and Environmental,1030,Service Development Centre,543.55 
Nottinghamshire Fire and Rescue Service,104256,Management & Support Services,Advanced Demand Side Management Limited,Advanced Demand Side Management Limited,5,202407,01/10/2023,P6,9108798,"-8,785.76 ","8,785.76 ",2104,Sewerage and Environmental,1030,Service Development Centre,561.67 
Nottinghamshire Fire and Rescue Service,104256,Management & Support Services,Advanced Demand Side Management Limited,Advanced Demand Side Management Limited,5,202407,01/10/2023,P6,9108798,"-8,785.76 ","8,785.76 ",2104,Sewerage and Environmental,1035,Headquarters,-172.85 
Nottinghamshire Fire and Rescue Service,104256,Management & Support Services,Advanced Demand Side Management Limited,Advanced Demand Side Management Limited,5,202407,01/10/2023,P6,9108798,"-8,785.76 ","8,785.76 ",2104,Sewerage and Environmental,1035,Headquarters,-167.28 
Nottinghamshire Fire and Rescue Service,104256,Management & Support Services,Advanced Demand Side Management Limited,Advanced Demand Side Management Limited,5,202407,01/10/2023,P6,9108798,"-8,785.76 ","8,785.76 ",2104,Sewerage and Environmental,1035,Headquarters,168.41 
Nottinghamshire Fire and Rescue Service,104256,Management & Support Services,Advanced Demand Side Management Limited,Advanced Demand Side Management Limited,5,202407,01/10/2023,P6,9108798,"-8,785.76 ","8,785.76 ",2104,Sewerage and Environmental,1035,Headquarters,174.02 
Nottinghamshire Fire and Rescue Service,104256,Prevention & Education,Advanced Demand Side Management Limited,Advanced Demand Side Management Limited,5,202407,01/10/2023,P6,9108798,"-8,785.76 ","8,785.76 ",2104,Sewerage and Environmental,1036,Clifton Community Safety Centre,-65.22 
Nottinghamshire Fire and Rescue Service,104256,Prevention & Education,Advanced Demand Side Management Limited,Advanced Demand Side Management Limited,5,202407,01/10/2023,P6,9108798,"-8,785.76 ","8,785.76 ",2104,Sewerage and Environmental,1036,Clifton Community Safety Centre,-63.12 
Nottinghamshire Fire and Rescue Service,104256,Prevention & Education,Advanced Demand Side Management Limited,Advanced Demand Side Management Limited,5,202407,01/10/2023,P6,9108798,"-8,785.76 ","8,785.76 ",2104,Sewerage and Environmental,1036,Clifton Community Safety Centre,61.56 
Nottinghamshire Fire and Rescue Service,104256,Prevention & Education,Advanced Demand Side Management Limited,Advanced Demand Side Management Limited,5,202407,01/10/2023,P6,9108798,"-8,785.76 ","8,785.76 ",2104,Sewerage and Environmental,1036,Clifton Community Safety Centre,63.61 
Nottinghamshire Fire and Rescue Service,104256,Operational Responses,NCC Sundry Debtors,NCC Sundry Debtors,4,202407,01/10/2023,P6,9108420,"-1,980.19 ","1,980.19 ",2201,Grounds Maintenance,1001,Mansfield,38.10 
Nottinghamshire Fire and Rescue Service,104256,Operational Responses,NCC Sundry Debtors,NCC Sundry Debtors,4,202407,01/10/2023,P6,9108420,"-1,980.19 ","1,980.19 ",2201,Grounds Maintenance,1002,Blidworth,67.84 
Nottinghamshire Fire and Rescue Service,104256,Operational Responses,NCC Sundry Debtors,NCC Sundry Debtors,4,202407,01/10/2023,P6,9108420,"-1,980.19 ","1,980.19 ",2201,Grounds Maintenance,1003,London Road,46.25 
Nottinghamshire Fire and Rescue Service,104256,Operational Responses,NCC Sundry Debtors,NCC Sundry Debtors,4,202407,01/10/2023,P6,9108420,"-1,980.19 ","1,980.19 ",2201,Grounds Maintenance,1005,Ashfield,218.75 
Nottinghamshire Fire and Rescue Service,104256,Operational Responses,NCC Sundry Debtors,NCC Sundry Debtors,4,202407,01/10/2023,P6,9108420,"-1,980.19 ","1,980.19 ",2201,Grounds Maintenance,1006,Edwinstowe,45.28 
Nottinghamshire Fire and Rescue Service,104256,Operational Responses,NCC Sundry Debtors,NCC Sundry Debtors,4,202407,01/10/2023,P6,9108420,"-1,980.19 ","1,980.19 ",2201,Grounds Maintenance,1007,Warsop,7.50 
Nottinghamshire Fire and Rescue Service,104256,Operational Responses,NCC Sundry Debtors,NCC Sundry Debtors,4,202407,01/10/2023,P6,9108420,"-1,980.19 ","1,980.19 ",2201,Grounds Maintenance,1008,Worksop,45.85 
Nottinghamshire Fire and Rescue Service,104256,Operational Responses,NCC Sundry Debtors,NCC Sundry Debtors,4,202407,01/10/2023,P6,9108420,"-1,980.19 ","1,980.19 ",2201,Grounds Maintenance,1010,Harworth,44.25 
Nottinghamshire Fire and Rescue Service,104256,Operational Responses,NCC Sundry Debtors,NCC Sundry Debtors,4,202407,01/10/2023,P6,9108420,"-1,980.19 ","1,980.19 ",2201,Grounds Maintenance,1011,Misterton,39.50 
Nottinghamshire Fire and Rescue Service,104256,Operational Responses,NCC Sundry Debtors,NCC Sundry Debtors,4,202407,01/10/2023,P6,9108420,"-1,980.19 ","1,980.19 ",2201,Grounds Maintenance,1012,Retford,26.76 
Nottinghamshire Fire and Rescue Service,104256,Operational Responses,NCC Sundry Debtors,NCC Sundry Debtors,4,202407,01/10/2023,P6,9108420,"-1,980.19 ","1,980.19 ",2201,Grounds Maintenance,1013,Tuxford,30.00 
Nottinghamshire Fire and Rescue Service,104256,Operational Responses,NCC Sundry Debtors,NCC Sundry Debtors,4,202407,01/10/2023,P6,9108420,"-1,980.19 ","1,980.19 ",2201,Grounds Maintenance,1014,Southwell,36.13 
Nottinghamshire Fire and Rescue Service,104256,Operational Responses,NCC Sundry Debtors,NCC Sundry Debtors,4,202407,01/10/2023,P6,9108420,"-1,980.19 ","1,980.19 ",2201,Grounds Maintenance,1015,Collingham,40.80 
Nottinghamshire Fire and Rescue Service,104256,Operational Responses,NCC Sundry Debtors,NCC Sundry Debtors,4,202407,01/10/2023,P6,9108420,"-1,980.19 ","1,980.19 ",2201,Grounds Maintenance,1016,Newark,40.00 
Nottinghamshire Fire and Rescue Service,104256,Operational Responses,NCC Sundry Debtors,NCC Sundry Debtors,4,202407,01/10/2023,P6,9108420,"-1,980.19 ","1,980.19 ",2201,Grounds Maintenance,1017,Bingham,64.08 
Nottinghamshire Fire and Rescue Service,104256,Operational Responses,NCC Sundry Debtors,NCC Sundry Debtors,4,202407,01/10/2023,P6,9108420,"-1,980.19 ","1,980.19 ",2201,Grounds Maintenance,1019,West Bridgford,84.48 
Nottinghamshire Fire and Rescue Service,104256,Operational Responses,NCC Sundry Debtors,NCC Sundry Debtors,4,202407,01/10/2023,P6,9108420,"-1,980.19 ","1,980.19 ",2201,Grounds Maintenance,1020,Stockhill,216.10 
Nottinghamshire Fire and Rescue Service,104256,Operational Responses,NCC Sundry Debtors,NCC Sundry Debtors,4,202407,01/10/2023,P6,9108420,"-1,980.19 ","1,980.19 ",2201,Grounds Maintenance,1023,Stapleford,80.50 
Nottinghamshire Fire and Rescue Service,104256,Operational Responses,NCC Sundry Debtors,NCC Sundry Debtors,4,202407,01/10/2023,P6,9108420,"-1,980.19 ","1,980.19 ",2201,Grounds Maintenance,1024,Eastwood,28.75 
Nottinghamshire Fire and Rescue Service,104256,Operational Responses,NCC Sundry Debtors,NCC Sundry Debtors,4,202407,01/10/2023,P6,9108420,"-1,980.19 ","1,980.19 ",2201,Grounds Maintenance,1026,Arnold,22.08 
Nottinghamshire Fire and Rescue Service,104256,Operational Responses,NCC Sundry Debtors,NCC Sundry Debtors,4,202407,01/10/2023,P6,9108420,"-1,980.19 ","1,980.19 ",2201,Grounds Maintenance,1027,Carlton,39.58 
Nottinghamshire Fire and Rescue Service,104256,Operational Responses,NCC Sundry Debtors,NCC Sundry Debtors,4,202407,01/10/2023,P6,9108420,"-1,980.19 ","1,980.19 ",2201,Grounds Maintenance,1028,East Leake,133.75 
Nottinghamshire Fire and Rescue Service,104256,Operational Responses,NCC Sundry Debtors,NCC Sundry Debtors,4,202407,01/10/2023,P6,9108420,"-1,980.19 ","1,980.19 ",2201,Grounds Maintenance,1029,Highfields Station,97.08 
Nottinghamshire Fire and Rescue Service,104256,Management & Support Services,NCC Sundry Debtors,NCC Sundry Debtors,4,202407,01/10/2023,P6,9108420,"-1,980.19 ","1,980.19 ",2201,Grounds Maintenance,1030,Service Development Centre,156.75 
Nottinghamshire Fire and Rescue Service,104256,Operational Responses,NCC Sundry Debtors,NCC Sundry Debtors,4,202407,01/10/2023,P6,9108431,"-39,783.70 ","39,783.70 ",2204,Contract Cleaning,1001,Mansfield,"2,845.17 "
Nottinghamshire Fire and Rescue Service,104256,Operational Responses,NCC Sundry Debtors,NCC Sundry Debtors,4,202407,01/10/2023,P6,9108431,"-39,783.70 ","39,783.70 ",2204,Contract Cleaning,1002,Blidworth,268.77 
Nottinghamshire Fire and Rescue Service,104256,Operational Responses,NCC Sundry Debtors,NCC Sundry Debtors,4,202407,01/10/2023,P6,9108431,"-39,783.70 ","39,783.70 ",2204,Contract Cleaning,1003,London Road,"3,037.54 "
Nottinghamshire Fire and Rescue Service,104256,Operational Responses,NCC Sundry Debtors,NCC Sundry Debtors,4,202407,01/10/2023,P6,9108431,"-39,783.70 ","39,783.70 ",2204,Contract Cleaning,1005,Ashfield,"1,498.54 "
Nottinghamshire Fire and Rescue Service,104256,Operational Responses,NCC Sundry Debtors,NCC Sundry Debtors,4,202407,01/10/2023,P6,9108431,"-39,783.70 ","39,783.70 ",2204,Contract Cleaning,1006,Edwinstowe,"1,152.27 "
Nottinghamshire Fire and Rescue Service,104256,Operational Responses,NCC Sundry Debtors,NCC Sundry Debtors,4,202407,01/10/2023,P6,9108431,"-39,783.70 ","39,783.70 ",2204,Contract Cleaning,1007,Warsop,230.29 
Nottinghamshire Fire and Rescue Service,104256,Operational Responses,NCC Sundry Debtors,NCC Sundry Debtors,4,202407,01/10/2023,P6,9108431,"-39,783.70 ","39,783.70 ",2204,Contract Cleaning,1008,Worksop,"1,883.29 "
Nottinghamshire Fire and Rescue Service,104256,Operational Responses,NCC Sundry Debtors,NCC Sundry Debtors,4,202407,01/10/2023,P6,9108431,"-39,783.70 ","39,783.70 ",2204,Contract Cleaning,1010,Harworth,422.67 
Nottinghamshire Fire and Rescue Service,104256,Operational Responses,NCC Sundry Debtors,NCC Sundry Debtors,4,202407,01/10/2023,P6,9108431,"-39,783.70 ","39,783.70 ",2204,Contract Cleaning,1011,Misterton,345.72 
Nottinghamshire Fire and Rescue Service,104256,Operational Responses,NCC Sundry Debtors,NCC Sundry Debtors,4,202407,01/10/2023,P6,9108431,"-39,783.70 ","39,783.70 ",2204,Contract Cleaning,1012,Retford,"1,921.77 "
Nottinghamshire Fire and Rescue Service,104256,Operational Responses,NCC Sundry Debtors,NCC Sundry Debtors,4,202407,01/10/2023,P6,9108431,"-39,783.70 ","39,783.70 ",2204,Contract Cleaning,1013,Tuxford,268.77 
Nottinghamshire Fire and Rescue Service,104256,Operational Responses,NCC Sundry Debtors,NCC Sundry Debtors,4,202407,01/10/2023,P6,9108431,"-39,783.70 ","39,783.70 ",2204,Contract Cleaning,1014,Southwell,384.19 
Nottinghamshire Fire and Rescue Service,104256,Operational Responses,NCC Sundry Debtors,NCC Sundry Debtors,4,202407,01/10/2023,P6,9108431,"-39,783.70 ","39,783.70 ",2204,Contract Cleaning,1015,Collingham,384.19 
Nottinghamshire Fire and Rescue Service,104256,Operational Responses,NCC Sundry Debtors,NCC Sundry Debtors,4,202407,01/10/2023,P6,9108431,"-39,783.70 ","39,783.70 ",2204,Contract Cleaning,1016,Newark,"1,498.54 "
Nottinghamshire Fire and Rescue Service,104256,Operational Responses,NCC Sundry Debtors,NCC Sundry Debtors,4,202407,01/10/2023,P6,9108431,"-39,783.70 ","39,783.70 ",2204,Contract Cleaning,1017,Bingham,268.77 
Nottinghamshire Fire and Rescue Service,104256,Operational Responses,NCC Sundry Debtors,NCC Sundry Debtors,4,202407,01/10/2023,P6,9108431,"-39,783.70 ","39,783.70 ",2204,Contract Cleaning,1019,West Bridgford,"2,306.52 "
Nottinghamshire Fire and Rescue Service,104256,Operational Responses,NCC Sundry Debtors,NCC Sundry Debtors,4,202407,01/10/2023,P6,9108431,"-39,783.70 ","39,783.70 ",2204,Contract Cleaning,1020,Stockhill,"1,883.29 "
Nottinghamshire Fire and Rescue Service,104256,Operational Responses,NCC Sundry Debtors,NCC Sundry Debtors,4,202407,01/10/2023,P6,9108431,"-39,783.70 ","39,783.70 ",2204,Contract Cleaning,1023,Stapleford,615.04 
Nottinghamshire Fire and Rescue Service,104256,Operational Responses,NCC Sundry Debtors,NCC Sundry Debtors,4,202407,01/10/2023,P6,9108431,"-39,783.70 ","39,783.70 ",2204,Contract Cleaning,1024,Eastwood,422.67 
Nottinghamshire Fire and Rescue Service,104256,Operational Responses,NCC Sundry Debtors,NCC Sundry Debtors,4,202407,01/10/2023,P6,9108431,"-39,783.70 ","39,783.70 ",2204,Contract Cleaning,1026,Arnold,"1,402.35 "
Nottinghamshire Fire and Rescue Service,104256,Operational Responses,NCC Sundry Debtors,NCC Sundry Debtors,4,202407,01/10/2023,P6,9108431,"-39,783.70 ","39,783.70 ",2204,Contract Cleaning,1027,Carlton,"2,652.79 "
Nottinghamshire Fire and Rescue Service,104256,Operational Responses,NCC Sundry Debtors,NCC Sundry Debtors,4,202407,01/10/2023,P6,9108431,"-39,783.70 ","39,783.70 ",2204,Contract Cleaning,1028,East Leake,268.77 
Nottinghamshire Fire and Rescue Service,104256,Operational Responses,NCC Sundry Debtors,NCC Sundry Debtors,4,202407,01/10/2023,P6,9108431,"-39,783.70 ","39,783.70 ",2204,Contract Cleaning,1029,Highfields Station,"5,075.59 "
Nottinghamshire Fire and Rescue Service,104256,Management & Support Services,NCC Sundry Debtors,NCC Sundry Debtors,4,202407,01/10/2023,P6,9108431,"-39,783.70 ","39,783.70 ",2204,Contract Cleaning,1030,Service Development Centre,"2,115.57 "
Nottinghamshire Fire and Rescue Service,104256,Operational Responses,NCC Sundry Debtors,NCC Sundry Debtors,4,202407,01/10/2023,P6,9108392,-848.00 ,848.00 ,2205,Window Cleaning,1001,Mansfield,50.00 
Nottinghamshire Fire and Rescue Service,104256,Operational Responses,NCC Sundry Debtors,NCC Sundry Debtors,4,202407,01/10/2023,P6,9108392,-848.00 ,848.00 ,2205,Window Cleaning,1002,Blidworth,20.00 
Nottinghamshire Fire and Rescue Service,104256,Operational Responses,NCC Sundry Debtors,NCC Sundry Debtors,4,202407,01/10/2023,P6,9108392,-848.00 ,848.00 ,2205,Window Cleaning,1003,London Road,41.67 
Nottinghamshire Fire and Rescue Service,104256,Operational Responses,NCC Sundry Debtors,NCC Sundry Debtors,4,202407,01/10/2023,P6,9108392,-848.00 ,848.00 ,2205,Window Cleaning,1005,Ashfield,33.33 
Nottinghamshire Fire and Rescue Service,104256,Operational Responses,NCC Sundry Debtors,NCC Sundry Debtors,4,202407,01/10/2023,P6,9108392,-848.00 ,848.00 ,2205,Window Cleaning,1006,Edwinstowe,33.33 
Nottinghamshire Fire and Rescue Service,104256,Operational Responses,NCC Sundry Debtors,NCC Sundry Debtors,4,202407,01/10/2023,P6,9108392,-848.00 ,848.00 ,2205,Window Cleaning,1007,Warsop,21.67 
Nottinghamshire Fire and Rescue Service,104256,Operational Responses,NCC Sundry Debtors,NCC Sundry Debtors,4,202407,01/10/2023,P6,9108392,-848.00 ,848.00 ,2205,Window Cleaning,1008,Worksop,20.00 
Nottinghamshire Fire and Rescue Service,104256,Operational Responses,NCC Sundry Debtors,NCC Sundry Debtors,4,202407,01/10/2023,P6,9108392,-848.00 ,848.00 ,2205,Window Cleaning,1010,Harworth,21.67 
Nottinghamshire Fire and Rescue Service,104256,Operational Responses,NCC Sundry Debtors,NCC Sundry Debtors,4,202407,01/10/2023,P6,9108392,-848.00 ,848.00 ,2205,Window Cleaning,1011,Misterton,20.00 
Nottinghamshire Fire and Rescue Service,104256,Operational Responses,NCC Sundry Debtors,NCC Sundry Debtors,4,202407,01/10/2023,P6,9108392,-848.00 ,848.00 ,2205,Window Cleaning,1012,Retford,50.00 
Nottinghamshire Fire and Rescue Service,104256,Operational Responses,NCC Sundry Debtors,NCC Sundry Debtors,4,202407,01/10/2023,P6,9108392,-848.00 ,848.00 ,2205,Window Cleaning,1013,Tuxford,18.33 
Nottinghamshire Fire and Rescue Service,104256,Operational Responses,NCC Sundry Debtors,NCC Sundry Debtors,4,202407,01/10/2023,P6,9108392,-848.00 ,848.00 ,2205,Window Cleaning,1014,Southwell,16.67 
Nottinghamshire Fire and Rescue Service,104256,Operational Responses,NCC Sundry Debtors,NCC Sundry Debtors,4,202407,01/10/2023,P6,9108392,-848.00 ,848.00 ,2205,Window Cleaning,1015,Collingham,18.33 
Nottinghamshire Fire and Rescue Service,104256,Operational Responses,NCC Sundry Debtors,NCC Sundry Debtors,4,202407,01/10/2023,P6,9108392,-848.00 ,848.00 ,2205,Window Cleaning,1016,Newark,25.00 
Nottinghamshire Fire and Rescue Service,104256,Operational Responses,NCC Sundry Debtors,NCC Sundry Debtors,4,202407,01/10/2023,P6,9108392,-848.00 ,848.00 ,2205,Window Cleaning,1017,Bingham,16.67 
Nottinghamshire Fire and Rescue Service,104256,Operational Responses,NCC Sundry Debtors,NCC Sundry Debtors,4,202407,01/10/2023,P6,9108392,-848.00 ,848.00 ,2205,Window Cleaning,1019,West Bridgford,50.00 
Nottinghamshire Fire and Rescue Service,104256,Operational Responses,NCC Sundry Debtors,NCC Sundry Debtors,4,202407,01/10/2023,P6,9108392,-848.00 ,848.00 ,2205,Window Cleaning,1020,Stockhill,50.00 
Nottinghamshire Fire and Rescue Service,104256,Operational Responses,NCC Sundry Debtors,NCC Sundry Debtors,4,202407,01/10/2023,P6,9108392,-848.00 ,848.00 ,2205,Window Cleaning,1023,Stapleford,18.33 
Nottinghamshire Fire and Rescue Service,104256,Operational Responses,NCC Sundry Debtors,NCC Sundry Debtors,4,202407,01/10/2023,P6,9108392,-848.00 ,848.00 ,2205,Window Cleaning,1024,Eastwood,20.00 
Nottinghamshire Fire and Rescue Service,104256,Operational Responses,NCC Sundry Debtors,NCC Sundry Debtors,4,202407,01/10/2023,P6,9108392,-848.00 ,848.00 ,2205,Window Cleaning,1026,Arnold,25.00 
Nottinghamshire Fire and Rescue Service,104256,Operational Responses,NCC Sundry Debtors,NCC Sundry Debtors,4,202407,01/10/2023,P6,9108392,-848.00 ,848.00 ,2205,Window Cleaning,1027,Carlton,33.33 
Nottinghamshire Fire and Rescue Service,104256,Operational Responses,NCC Sundry Debtors,NCC Sundry Debtors,4,202407,01/10/2023,P6,9108392,-848.00 ,848.00 ,2205,Window Cleaning,1028,East Leake,16.67 
Nottinghamshire Fire and Rescue Service,104256,Operational Responses,NCC Sundry Debtors,NCC Sundry Debtors,4,202407,01/10/2023,P6,9108392,-848.00 ,848.00 ,2205,Window Cleaning,1029,Highfields Station,66.67 
Nottinghamshire Fire and Rescue Service,104256,Management & Support Services,NCC Sundry Debtors,NCC Sundry Debtors,4,202407,01/10/2023,P6,9108392,-848.00 ,848.00 ,2205,Window Cleaning,1030,Service Development Centre,20.00 
Nottinghamshire Fire and Rescue Service,104256,Operational Responses,Amptron Electrical Services,Amptron Electrical Services,1,202407,30/09/2023,P6,9108430,-307.20 ,307.20 ,2300,Boarding Up Premises,1005,Ashfield,256.00 
Nottinghamshire Fire and Rescue Service,104256,Management & Support Services,Teletrac Navman (UK) Limited,Teletrac Navman (UK) Limited,5,202407,01/10/2023,P6,9108401,"-1,071.96 ","1,071.96 ",3100,Fleet Maintenance - Planned,2084,Engineering,893.30 
Nottinghamshire Fire and Rescue Service,104256,Management & Support Services,Angloco Limited,Angloco Limited,1,202407,31/08/2023,P6,9108497,"-15,611.64 ","15,611.64 ",3100,Fleet Maintenance - Planned,2084,Engineering,"13,009.70 "
Nottinghamshire Fire and Rescue Service,104256,Management & Support Services,Amptron Electrical Services,Amptron Electrical Services,1,202407,30/09/2023,P6,9108511,-766.84 ,766.84 ,3100,Fleet Maintenance - Planned,2084,Engineering,639.03 
Nottinghamshire Fire and Rescue Service,104256,Management & Support Services,Keltruck Limited,Keltruck Limited,1,202407,05/10/2023,P6,9108538,"-2,167.52 ","2,167.52 ",3100,Fleet Maintenance - Planned,2084,Engineering,"1,806.27 "
Nottinghamshire Fire and Rescue Service,104256,Management & Support Services,Civica Uk Limited,Civica Uk Limited,1,202407,11/10/2023,P6,9108601,"-5,880.00 ","5,880.00 ",3100,Fleet Maintenance - Planned,2084,Engineering,"4,900.00 "
Nottinghamshire Fire and Rescue Service,104256,Management & Support Services,VIA East Midlands Ltd,VIA East Midlands Ltd,5,202407,08/09/2023,P6,9108611,"-15,149.44 ","15,149.44 ",3100,Fleet Maintenance - Planned,2084,Engineering,"12,643.31 "
Nottinghamshire Fire and Rescue Service,104256,Management & Support Services,Wheely-Safe Limited,Wheely-Safe Limited,5,202407,18/10/2023,P6,9108740,"-6,638.52 ","6,638.52 ",3101,Fleet Modification,2084,Engineering,"5,532.10 "
Nottinghamshire Fire and Rescue Service,104256,Management & Support Services,Merridale Ltd,Merridale Ltd,1,202407,04/10/2023,P6,9108605,-458.40 ,458.40 ,3102,Vehicle Maintenance Outsourced,2084,Engineering,382.00 
Nottinghamshire Fire and Rescue Service,104256,Management & Support Services,Keltruck Limited,Keltruck Limited,1,202407,12/10/2023,P6,9108609,-630.00 ,630.00 ,3102,Vehicle Maintenance Outsourced,2084,Engineering,525.00 
Nottinghamshire Fire and Rescue Service,104256,Management & Support Services,VIA East Midlands Ltd,VIA East Midlands Ltd,5,202407,08/09/2023,P6,9108612,"-62,737.30 ","62,737.30 ",3103,Fleet Maintenance - Unplanned,2084,Engineering,"52,281.08 "
Nottinghamshire Fire and Rescue Service,104256,Operational Responses,CERTAS,CERTAS,5,202407,01/09/2023,P6,9108444,"-1,498.44 ","1,498.44 ",3200,Fuel - Vehicle,1027,Carlton,"1,248.70 "
Nottinghamshire Fire and Rescue Service,104256,Operational Responses,CERTAS,CERTAS,5,202407,01/09/2023,P6,9108445,"-8,856.76 ","8,856.76 ",3200,Fuel - Vehicle,1013,Tuxford,"7,380.63 "
Nottinghamshire Fire and Rescue Service,104256,Operational Responses,CERTAS,CERTAS,5,202407,31/08/2023,P6,9108446,"-2,996.88 ","2,996.88 ",3200,Fuel - Vehicle,1005,Ashfield,"2,497.40 "
Nottinghamshire Fire and Rescue Service,104256,Operational Responses,CERTAS,CERTAS,5,202407,31/08/2023,P6,9108447,-377.62 ,377.62 ,3200,Fuel - Vehicle,1016,Newark,314.68 
Nottinghamshire Fire and Rescue Service,104256,Operational Responses,CERTAS,CERTAS,5,202407,12/10/2023,P6,9108632,"-10,698.38 ","10,698.38 ",3200,Fuel - Vehicle,1029,Highfields Station,"8,915.32 "
Nottinghamshire Fire and Rescue Service,104256,Management & Support Services,Drivercheck Ltd,Drivercheck Ltd,1,202407,30/09/2023,P6,9108631,-438.30 ,438.30 ,3203,Motor Tax / Licenses,2084,Engineering,365.25 
Nottinghamshire Fire and Rescue Service,104256,Management & Support Services,Enterprise Rent-A-Car,Enterprise Rent-A-Car,1,202407,31/08/2023,P6,9108514,-913.26 ,913.26 ,3400,Hire of Fleet Vehicles,2084,Engineering,761.05 
Nottinghamshire Fire and Rescue Service,104256,Management & Support Services,Lithium3 Technology Recruitment Limited,Lithium3 Technology Recruitment Limited,5,202407,25/10/2023,P6,9108841,-950.88 ,950.88 ,3500,Casual Mileage,2097,ICT Service Operations,32.40 
Nottinghamshire Fire and Rescue Service,104256,Management & Support Services,Apollo Signs & Engraving,Apollo Signs & Engraving,5,202407,02/10/2023,P6,9108400,"-1,118.09 ","1,118.09 ",4000,Operational Equipment Purchase,2084,Engineering,931.74 
Nottinghamshire Fire and Rescue Service,104256,Management & Support Services,Terberg DTS UK Limited,Terberg DTS UK Limited,5,202407,04/10/2023,P6,9108499,-658.78 ,658.78 ,4000,Operational Equipment Purchase,2084,Engineering,548.98 
Nottinghamshire Fire and Rescue Service,104256,Management & Support Services,Weber Rescue Uk Ltd,Weber Rescue Uk Ltd,1,202407,12/10/2023,P6,9108708,"-5,104.80 ","5,104.80 ",4000,Operational Equipment Purchase,2084,Engineering,"4,254.00 "
Nottinghamshire Fire and Rescue Service,104256,Management & Support Services,Flogas Britian Limited,Flogas Britian Limited,1,202407,15/09/2023,P6,9108813,"-1,289.57 ","1,289.57 ",4006,Oxygen and Other Gases,2084,Engineering,"1,074.64 "
Nottinghamshire Fire and Rescue Service,104256,Management & Support Services,Flogas Britian Limited,Flogas Britian Limited,1,202407,15/10/2023,P6,9108819,"-1,289.57 ","1,289.57 ",4006,Oxygen and Other Gases,2084,Engineering,"1,074.64 "
Nottinghamshire Fire and Rescue Service,104256,Management & Support Services,Nottinghamshire Police and Crime Commissioner,Nottinghamshire Police and Crime Commissioner,4,202407,12/10/2023,P6,9108597,-520.58 ,520.58 ,4007,Equipment Annual Service,2084,Engineering,520.58 
Nottinghamshire Fire and Rescue Service,104256,Management & Support Services,Bureau Veritas UK Limited,Bureau Veritas UK Limited,5,202407,13/10/2023,P6,9108615,"-1,860.00 ","1,860.00 ",4007,Equipment Annual Service,2084,Engineering,"1,550.00 "
Nottinghamshire Fire and Rescue Service,104256,Management & Support Services,GTT EMEA Ltd,GTT EMEA Ltd,5,202407,25/09/2023,P6,9108435,"-16,509.11 ","16,509.11 ",4101,Computer Software Maintenance Contracts,2095,ICT Digital Transformation,"13,801.65 "
Nottinghamshire Fire and Rescue Service,104256,Management & Support Services,Bytes Software Services Ltd,Bytes Software Services Ltd,5,202407,29/09/2023,P6,9108443,"-2,280.00 ","2,280.00 ",4101,Computer Software Maintenance Contracts,2097,ICT Service Operations,"1,900.00 "
Nottinghamshire Fire and Rescue Service,104256,Management & Support Services,IT Governance Limited,IT Governance Limited,5,202407,29/09/2023,P6,9108519,"-3,871.80 ","3,871.80 ",4101,Computer Software Maintenance Contracts,2097,ICT Service Operations,"3,226.50 "
Nottinghamshire Fire and Rescue Service,104256,Management & Support Services,Airwave Solutions Ltd,Airwave Solutions Ltd,1,202407,11/10/2023,P6,9108625,-949.78 ,949.78 ,4101,Computer Software Maintenance Contracts,2097,ICT Service Operations,791.49 
Nottinghamshire Fire and Rescue Service,104256,Management & Support Services,Zoho Corporation Private Limited,Zoho Corporation Private Limited,5,202407,24/10/2023,P6,9108804,"-2,136.00 ","2,136.00 ",4101,Computer Software Maintenance Contracts,2097,ICT Service Operations,"1,780.00 "
Nottinghamshire Fire and Rescue Service,104256,Management & Support Services,Softcat Limited,Softcat Limited,5,202407,20/10/2023,P6,9108805,"-18,655.20 ","18,655.20 ",4101,Computer Software Maintenance Contracts,2097,ICT Service Operations,"15,546.00 "
Nottinghamshire Fire and Rescue Service,104256,Management & Support Services,GTT EMEA Ltd,GTT EMEA Ltd,5,202407,25/10/2023,P6,9108842,"-16,244.74 ","16,244.74 ",4101,Computer Software Maintenance Contracts,2095,ICT Digital Transformation,"13,537.28 "
Nottinghamshire Fire and Rescue Service,104256,Management & Support Services,Bytes Software Services Ltd,Bytes Software Services Ltd,5,202407,12/04/2023,P6,9108843,"-167,161.64 ","167,161.64 ",4101,Computer Software Maintenance Contracts,2097,ICT Service Operations,"139,301.36 "
Nottinghamshire Fire and Rescue Service,104256,Management & Support Services,Ergo Computing UK,Ergo Computing UK,5,202407,27/09/2023,P6,9108672,-731.71 ,731.71 ,4102,Computer Consumables,2097,ICT Service Operations,609.76 
Nottinghamshire Fire and Rescue Service,104256,Management & Support Services,Ricoh Uk Ltd,Ricoh Uk Ltd,1,202407,05/10/2023,P6,9108849,"-1,447.60 ","1,447.60 ",4105,Photocopier,2097,ICT Service Operations,"1,206.33 "
Nottinghamshire Fire and Rescue Service,104256,Management & Support Services,Ricoh Uk Ltd,Ricoh Uk Ltd,1,202407,05/10/2023,P6,9108850,"-4,202.46 ","4,202.46 ",4105,Photocopier,2097,ICT Service Operations,"3,502.05 "
Nottinghamshire Fire and Rescue Service,104256,Management & Support Services,Ricoh Uk Ltd,Ricoh Uk Ltd,1,202407,05/10/2023,P6,9108851,"-1,143.65 ","1,143.65 ",4105,Photocopier,2097,ICT Service Operations,953.04 
Nottinghamshire Fire and Rescue Service,104256,Management & Support Services,Ricoh Uk Ltd,Ricoh Uk Ltd,1,202407,05/10/2023,P6,9108852,-489.74 ,489.74 ,4105,Photocopier,2097,ICT Service Operations,408.12 
Nottinghamshire Fire and Rescue Service,104256,Management & Support Services,Ricoh Uk Ltd,Ricoh Uk Ltd,1,202407,10/10/2023,P6,9108853,"-2,319.29 ","2,319.29 ",4105,Photocopier,2097,ICT Service Operations,"1,932.74 "
Nottinghamshire Fire and Rescue Service,104256,Management & Support Services,Home Office,Home Office,4,202407,29/09/2023,P6,9108548,"-68,702.81 ","68,702.81 ",4204,FireLink Contract Charges,2097,ICT Service Operations,"57,252.34 "
Nottinghamshire Fire and Rescue Service,104256,Management & Support Services,Risual Limited,Risual Limited,5,202407,20/09/2023,P6,9108433,"-1,780.22 ","1,780.22 ",4301,Phones - Landline,2097,ICT Service Operations,"1,483.52 "
Nottinghamshire Fire and Rescue Service,104256,Management & Support Services,Daisy Corporate Services Trading Limited,Daisy Corporate Services Trading Limited,1,202407,01/10/2023,P6,9108517,"-1,826.45 ","1,826.45 ",4301,Phones - Landline,2096,ICT Service Transformation,"1,522.04 "
Nottinghamshire Fire and Rescue Service,104256,Management & Support Services,EE,EE,1,202407,01/09/2023,P6,9108673,"-3,973.16 ","3,973.16 ",4302,Phones - Mobiles,2097,ICT Service Operations,"3,310.97 "
Nottinghamshire Fire and Rescue Service,104256,Management & Support Services,EE,EE,1,202407,01/10/2023,P6,9108674,"-3,970.08 ","3,970.08 ",4302,Phones - Mobiles,2097,ICT Service Operations,"3,308.40 "
Nottinghamshire Fire and Rescue Service,104256,Prevention and Education ,Nottinghamshire Police and Crime Commissioner,Nottinghamshire Police and Crime Commissioner,4,202407,28/09/2023,P6,9108405,-806.51 ,806.51 ,4400,Clothing and Uniform,2026,Fire Investigation,331.77 
Nottinghamshire Fire and Rescue Service,104256,Prevention and Education ,Nottinghamshire Police and Crime Commissioner,Nottinghamshire Police and Crime Commissioner,4,202407,28/09/2023,P6,9108405,-806.51 ,806.51 ,4400,Clothing and Uniform,2026,Fire Investigation,340.32 
Nottinghamshire Fire and Rescue Service,104256,Management & Support Services,Smalley's Gentleman's Outfitters,Smalley's Gentleman's Outfitters,10,202407,14/02/2023,P6,9108734,"-1,552.00 ","1,552.00 ",4400,Clothing and Uniform,2086,Procurement,"1,552.00 "
Nottinghamshire Fire and Rescue Service,104256,Operational Responses,Smalley's Gentleman's Outfitters,Smalley's Gentleman's Outfitters,10,202407,02/10/2023,P6,9108838,"-1,642.00 ","1,642.00 ",4400,Clothing and Uniform,1016,Newark,771.00 
Nottinghamshire Fire and Rescue Service,104256,Management and supoort services ,Smalley's Gentleman's Outfitters,Smalley's Gentleman's Outfitters,10,202407,02/10/2023,P6,9108838,"-1,642.00 ","1,642.00 ",4400,Clothing and Uniform,2072,"Assurance, Risk and Operational Training",100.00 
Nottinghamshire Fire and Rescue Service,104256,Management & Support Services,Smalley's Gentleman's Outfitters,Smalley's Gentleman's Outfitters,10,202407,02/10/2023,P6,9108838,"-1,642.00 ","1,642.00 ",4400,Clothing and Uniform,2073,Assurance and Risk,771.00 
Nottinghamshire Fire and Rescue Service,104256,Management & Support Services,Safeglove,Safeglove,1,202407,04/10/2023,P6,9108479,"-1,094.40 ","1,094.40 ",4401,Protective Clothing,2086,Procurement,912.00 
Nottinghamshire Fire and Rescue Service,104256,Management & Support Services,Rosenbauer UK Plc,Rosenbauer UK Plc,1,202407,29/09/2023,P6,9108727,-677.76 ,677.76 ,4401,Protective Clothing,1030,Service Development Centre,9.80 
Nottinghamshire Fire and Rescue Service,104256,Management & Support Services,Rosenbauer UK Plc,Rosenbauer UK Plc,1,202407,29/09/2023,P6,9108727,-677.76 ,677.76 ,4401,Protective Clothing,1030,Service Development Centre,555.00 
Nottinghamshire Fire and Rescue Service,104256,Management & Support Services,Eastern Shires Purchasing Organisation,Eastern Shires Purchasing Organisation,1,202407,29/09/2023,P6,9108407,-307.86 ,307.86 ,4500,Furniture,2087,Estates Department (Previously Premises),256.55 
Nottinghamshire Fire and Rescue Service,104256,Management & Support Services,Fine Foods Exchange,Fine Foods Exchange,5,202407,03/10/2023,P6,9108432,-387.60 ,387.60 ,4523,Catering/Food & Beverages,2059,Corporate Training,323.00 
Nottinghamshire Fire and Rescue Service,104256,Management & Support Services,JSMTC (Joint Service Mountain Training Centre),JSMTC (Joint Service Mountain Training Centre),5,202407,29/09/2023,P6,9108495,-277.62 ,277.62 ,4523,Catering/Food & Beverages,2059,Corporate Training,277.62 
Nottinghamshire Fire and Rescue Service,104256,Management & Support Services,Brakes,Brakes,1,202407,16/10/2023,P6,9108795,-291.65 ,291.65 ,4523,Catering/Food & Beverages,2059,Corporate Training,88.78 
Nottinghamshire Fire and Rescue Service,104256,Management & Support Services,Brakes,Brakes,1,202407,16/10/2023,P6,9108795,-291.65 ,291.65 ,4523,Catering/Food & Beverages,2059,Corporate Training,185.11 
Nottinghamshire Fire and Rescue Service,104256,Management & Support Services,Redbrick Print Solutions LLP,Redbrick Print Solutions LLP,5,202407,21/09/2023,P6,9108388,-288.00 ,288.00 ,4534,Carriage and Packaging,2054,Equalities Team,15.00 
Nottinghamshire Fire and Rescue Service,104256,Management & Support Services,William Sugden & sons Limited,William Sugden & sons Limited,5,202407,19/09/2023,P6,9108396,-345.00 ,345.00 ,4534,Carriage and Packaging,2086,Procurement,287.50 
Nottinghamshire Fire and Rescue Service,104256,Management & Support Services,Redbrick Print Solutions LLP,Redbrick Print Solutions LLP,5,202407,29/09/2023,P6,9108411,"-3,024.00 ","3,024.00 ",4534,Carriage and Packaging,2054,Equalities Team,20.00 
Nottinghamshire Fire and Rescue Service,104256,Management & Support Services,Redbrick Print Solutions LLP,Redbrick Print Solutions LLP,5,202407,29/09/2023,P6,9108412,"-1,392.00 ","1,392.00 ",4534,Carriage and Packaging,2054,Equalities Team,20.00 
Nottinghamshire Fire and Rescue Service,104256,Management & Support Services,Rosenbauer UK Plc,Rosenbauer UK Plc,1,202407,29/09/2023,P6,9108428,"-7,272.58 ","7,272.58 ",4534,Carriage and Packaging,9999,Default,60.00 
Nottinghamshire Fire and Rescue Service,104256,Management & Support Services,Northern Diver (International) Ltd,Northern Diver (International) Ltd,1,202407,22/09/2023,P6,9108482,-345.00 ,345.00 ,4534,Carriage and Packaging,9999,Default,9.50 
Nottinghamshire Fire and Rescue Service,104256,Management & Support Services,Northern Diver (International) Ltd,Northern Diver (International) Ltd,1,202407,29/09/2023,P6,9108483,-252.60 ,252.60 ,4534,Carriage and Packaging,2086,Procurement,9.50 
Nottinghamshire Fire and Rescue Service,104256,Management & Support Services,Northern Diver (International) Ltd,Northern Diver (International) Ltd,1,202407,21/09/2023,P6,9108491,-601.80 ,601.80 ,4534,Carriage and Packaging,2086,Procurement,9.50 
Nottinghamshire Fire and Rescue Service,104256,Management & Support Services,Lemaitre Ltd,Lemaitre Ltd,1,202407,29/09/2023,P6,9108594,"-2,176.80 ","2,176.80 ",4534,Carriage and Packaging,2086,Procurement,68.00 
Nottinghamshire Fire and Rescue Service,104256,Management & Support Services,Rosenbauer UK Plc,Rosenbauer UK Plc,1,202407,19/10/2023,P6,9108747,-293.76 ,293.76 ,4534,Carriage and Packaging,9999,Default,9.80 
Nottinghamshire Fire and Rescue Service,104256,Management & Support Services,Northern Diver (International) Ltd,Northern Diver (International) Ltd,1,202407,17/10/2023,P6,9108758,-475.80 ,475.80 ,4534,Carriage and Packaging,9999,Default,9.50 
Nottinghamshire Fire and Rescue Service,104256,Management & Support Services,Specialised Canvas Group,Specialised Canvas Group,1,202407,19/10/2023,P6,9108759,-321.87 ,321.87 ,4534,Carriage and Packaging,9999,Default,15.61 
Nottinghamshire Fire and Rescue Service,104256,Management & Support Services,Specialised Canvas Group,Specialised Canvas Group,1,202407,24/10/2023,P6,9108807,-867.93 ,867.93 ,4534,Carriage and Packaging,9999,Default,27.95 
Nottinghamshire Fire and Rescue Service,104256,Management & Support Services,Hot Pack International,Hot Pack International,5,202407,23/10/2023,P6,9108828,"-1,378.00 ","1,378.00 ",4534,Carriage and Packaging,9999,Default,63.00 
Nottinghamshire Fire and Rescue Service,104256,Management & Support Services,Synergy Health Laboratory Services Ltd,Synergy Health Laboratory Services Ltd,5,202407,30/08/2023,P6,9108496,-684.18 ,684.18 ,4551,Medical Fees,2058,HR Support,570.15 
Nottinghamshire Fire and Rescue Service,104256,Management & Support Services,Synergy Health Laboratory Services Ltd,Synergy Health Laboratory Services Ltd,5,202407,04/10/2023,P6,9108539,-684.18 ,684.18 ,4551,Medical Fees,2058,HR Support,570.15 
Nottinghamshire Fire and Rescue Service,104256,Management & Support Services,Flu Xpress Limited,Flu Xpress Limited,5,202407,02/10/2023,P6,9108408,"-1,642.50 ","1,642.50 ",4552,Occupational Health Costs,2061,Occupational Health & Fitness,"1,642.50 "
Nottinghamshire Fire and Rescue Service,104256,Management & Support Services,Trinity Occupational and Public Health Solutions Ltd,Trinity Occupational and Public Health Solutions Ltd,5,202407,29/09/2023,P6,9108523,"-4,100.00 ","4,100.00 ",4552,Occupational Health Costs,2061,Occupational Health & Fitness,"4,100.00 "
Nottinghamshire Fire and Rescue Service,104256,Management & Support Services,Valentine Occupational Health Limited,Valentine Occupational Health Limited,5,202407,02/10/2023,P6,9108524,-342.00 ,342.00 ,4552,Occupational Health Costs,2061,Occupational Health & Fitness,285.00 
Nottinghamshire Fire and Rescue Service,104256,Management & Support Services,Nottinghamshire Relate,Nottinghamshire Relate,1,202407,30/09/2023,P6,9108814,"-1,000.00 ","1,000.00 ",4552,Occupational Health Costs,2061,Occupational Health & Fitness,"1,000.00 "
Nottinghamshire Fire and Rescue Service,104256,Management & Support Services,Synergy Health Laboratory Services Ltd,Synergy Health Laboratory Services Ltd,5,202407,16/10/2023,P6,9108835,-281.53 ,281.53 ,4552,Occupational Health Costs,2061,Occupational Health & Fitness,17.91 
Nottinghamshire Fire and Rescue Service,104256,Management & Support Services,Synergy Health Laboratory Services Ltd,Synergy Health Laboratory Services Ltd,5,202407,16/10/2023,P6,9108835,-281.53 ,281.53 ,4552,Occupational Health Costs,2061,Occupational Health & Fitness,216.70 
Nottinghamshire Fire and Rescue Service,104256,Prevention & Education,Bishop Property Consultants Ltd,Bishop Property Consultants Ltd,5,202407,04/10/2023,P6,9108450,"-2,160.00 ","2,160.00 ",4553,Professional Fees - Estates Related,1036,Clifton Community Safety Centre,"1,800.00 "
Nottinghamshire Fire and Rescue Service,104256,Management & Support Services,Suzanne Ross (2thrive Consultancy),Suzanne Ross (2thrive Consultancy),5,202407,01/10/2023,P6,9108526,-900.00 ,900.00 ,4554,Consultancy Fees - Non Estates Related,2049,Professional Support,900.00 
Nottinghamshire Fire and Rescue Service,104256,Management & Support Services,Suzanne Ross (2thrive Consultancy),Suzanne Ross (2thrive Consultancy),5,202407,03/09/2023,P6,9108536,-840.00 ,840.00 ,4554,Consultancy Fees - Non Estates Related,2049,Professional Support,840.00 
Nottinghamshire Fire and Rescue Service,104256,Management & Support Services,The Community Heartbeat Trust Charity/The Heartbeat Trust (Solutions) Limited,The Community Heartbeat Trust Charity/The Heartbeat Trust (Solutions) Limited,5,202407,25/09/2023,P6,9108545,"-3,477.60 ","3,477.60 ",4554,Consultancy Fees - Non Estates Related,2068,Prevention,"2,898.00 "
Nottinghamshire Fire and Rescue Service,104256,Management & Support Services,(Vanessa Boon trading as) Energise - people development & diversity,(Vanessa Boon trading as) Energise - people development & diversity,5,202407,25/10/2023,P6,9108827,"-1,600.00 ","1,600.00 ",4554,Consultancy Fees - Non Estates Related,2054,Equalities Team,"1,600.00 "
Nottinghamshire Fire and Rescue Service,104256,Management & Support Services,Zellis,Zellis,5,202407,27/09/2023,P6,9108533,-464.33 ,464.33 ,4555,Disclosure Checks,2049,Professional Support,180.00 
Nottinghamshire Fire and Rescue Service,104256,Management & Support Services,Zellis,Zellis,5,202407,27/09/2023,P6,9108533,-464.33 ,464.33 ,4555,Disclosure Checks,2049,Professional Support,236.94 
Nottinghamshire Fire and Rescue Service,104256,Management & Support Services,AA Global Language Services Limited,AA Global Language Services Limited,5,202407,30/09/2023,P6,9108716,-256.80 ,256.80 ,4556,Translation and Interpretation Services,2054,Equalities Team,214.00 
Nottinghamshire Fire and Rescue Service,104256,Management & Support Services,Nuffield Sailing Centre,Nuffield Sailing Centre,1,202407,05/10/2023,P6,9108500,-880.00 ,880.00 ,4561,Overnight Accomodation,2059,Corporate Training,840.00 
Nottinghamshire Fire and Rescue Service,104256,Management & Support Services,Pixel Financial Management Limited,Pixel Financial Management Limited,5,202407,26/07/2023,P6,9108719,"-1,764.00 ","1,764.00 ",4581,Subscriptions,2081,Finance,"1,470.00 "
Nottinghamshire Fire and Rescue Service,104256,Management & Support Services,Redbrick Print Solutions LLP,Redbrick Print Solutions LLP,5,202407,21/09/2023,P6,9108388,-288.00 ,288.00 ,4583,Marketing and Publicity,2054,Equalities Team,225.00 
Nottinghamshire Fire and Rescue Service,104256,Management & Support Services,Redbrick Print Solutions LLP,Redbrick Print Solutions LLP,5,202407,29/09/2023,P6,9108411,"-3,024.00 ","3,024.00 ",4583,Marketing and Publicity,2054,Equalities Team,"2,500.00 "
Nottinghamshire Fire and Rescue Service,104256,Management & Support Services,Redbrick Print Solutions LLP,Redbrick Print Solutions LLP,5,202407,29/09/2023,P6,9108412,"-1,392.00 ","1,392.00 ",4583,Marketing and Publicity,2054,Equalities Team,"1,140.00 "
Nottinghamshire Fire and Rescue Service,104256,Management & Support Services,Smidr 73 Design,Smidr 73 Design,10,202407,24/10/2023,P6,9108820,-300.00 ,300.00 ,4583,Marketing and Publicity,2093,Command Suite,300.00 
Nottinghamshire Fire and Rescue Service,104256,Management & Support Services,Firefighter Protection Uk,Firefighter Protection Uk,1,202407,28/09/2023,P6,9108461,"-1,443.96 ","1,443.96 ",4594,Training/ Teaching Equipment,2059,Corporate Training,"1,203.30 "
Nottinghamshire Fire and Rescue Service,104256,Management & Support Services,B D Motor Spares,B D Motor Spares,1,202407,03/10/2023,P6,9108472,"-5,040.00 ","5,040.00 ",4594,Training/ Teaching Equipment,2059,Corporate Training,"4,200.00 "
Nottinghamshire Fire and Rescue Service,104256,Management & Support Services,Kingsfield Computer Products Ltd,Kingsfield Computer Products Ltd,1,202407,10/10/2023,P6,9108540,"-1,692.00 ","1,692.00 ",4594,Training/ Teaching Equipment,2059,Corporate Training,"1,410.00 "
Nottinghamshire Fire and Rescue Service,104256,Management & Support Services,Lemaitre Ltd,Lemaitre Ltd,1,202407,29/09/2023,P6,9108594,"-2,176.80 ","2,176.80 ",4594,Training/ Teaching Equipment,2059,Corporate Training,"1,746.00 "
Nottinghamshire Fire and Rescue Service,104256,Management & Support Services,"RS Medical, Training And Simulation","RS Medical, Training And Simulation",10,202407,16/10/2023,P6,9108710,-259.95 ,259.95 ,4594,Training/ Teaching Equipment,2059,Corporate Training,9.95 
Nottinghamshire Fire and Rescue Service,104256,Management & Support Services,"RS Medical, Training And Simulation","RS Medical, Training And Simulation",10,202407,16/10/2023,P6,9108710,-259.95 ,259.95 ,4594,Training/ Teaching Equipment,2059,Corporate Training,250.00 
Nottinghamshire Fire and Rescue Service,104256,Management & Support Services,Vision Support Services Ltd,Vision Support Services Ltd,5,202407,11/10/2023,P6,9108596,-975.13 ,975.13 ,4600,Community Safety Delivery Consumables,2068,Prevention,812.61 
Nottinghamshire Fire and Rescue Service,104256,Management & Support Services,Vision Support Services Ltd,Vision Support Services Ltd,5,202407,23/10/2023,P6,9108801,"-2,469.60 ","2,469.60 ",4600,Community Safety Delivery Consumables,2068,Prevention,"2,058.00 "
Nottinghamshire Fire and Rescue Service,104256,Management & Support Services,Browne Jacobson LLP,Browne Jacobson LLP,1,202407,12/09/2023,P6,9108637,-769.20 ,769.20 ,7002,Legal Services,2084,Engineering,641.00 
Nottinghamshire Fire and Rescue Service,104256,Prevention & Education,Browne Jacobson LLP,Browne Jacobson LLP,1,202407,27/09/2023,P6,9108656,"-1,118.28 ","1,118.28 ",7002,Legal Services,1036,Clifton Community Safety Centre,516.90 
Nottinghamshire Fire and Rescue Service,104256,Management & Support Services,Dot Promotional Clothing,Dot Promotional Clothing,1,202407,28/09/2023,P6,9108389,-540.00 ,540.00 ,B314,Stock ,9999,Default,450.00 
Nottinghamshire Fire and Rescue Service,104256,Management & Support Services,Bristol Uniforms Limited,Bristol Uniforms Limited,1,202407,28/09/2023,P6,9108393,-779.93 ,779.93 ,B314,Stock ,9999,Default,649.94 
Nottinghamshire Fire and Rescue Service,104256,Management & Support Services,New Balance Athletic Shoes (UK) Limited,New Balance Athletic Shoes (UK) Limited,5,202407,27/09/2023,P6,9108394,-456.05 ,456.05 ,B314,Stock ,9999,Default,380.04 
Nottinghamshire Fire and Rescue Service,104256,Management & Support Services,Dot Promotional Clothing,Dot Promotional Clothing,1,202407,02/10/2023,P6,9108415,-261.00 ,261.00 ,B314,Stock ,9999,Default,217.50 
Nottinghamshire Fire and Rescue Service,104256,Management & Support Services,Rosenbauer UK Plc,Rosenbauer UK Plc,1,202407,29/09/2023,P6,9108428,"-7,272.58 ","7,272.58 ",B314,Stock ,9999,Default,"6,000.48 "
Nottinghamshire Fire and Rescue Service,104256,Management & Support Services,Aero Healthcare Limited,Aero Healthcare Limited,5,202407,29/09/2023,P6,9108437,-361.80 ,361.80 ,B314,Stock ,9999,Default,301.50 
Nottinghamshire Fire and Rescue Service,104256,Management & Support Services,Bristol Uniforms Limited,Bristol Uniforms Limited,1,202407,02/10/2023,P6,9108440,"-1,115.69 ","1,115.69 ",B314,Stock ,9999,Default,929.74 
Nottinghamshire Fire and Rescue Service,104256,Management & Support Services,Bristol Uniforms Limited,Bristol Uniforms Limited,1,202407,02/10/2023,P6,9108442,"-7,094.30 ","7,094.30 ",B314,Stock ,9999,Default,"5,911.92 "
Nottinghamshire Fire and Rescue Service,104256,Management & Support Services,Bristol Uniforms Limited,Bristol Uniforms Limited,1,202407,03/10/2023,P6,9108453,"-1,244.35 ","1,244.35 ",B314,Stock ,9999,Default,"1,036.96 "
Nottinghamshire Fire and Rescue Service,104256,Management & Support Services,Complete Business Solutions Group Ltd,Complete Business Solutions Group Ltd,1,202407,03/10/2023,P6,9108454,-522.60 ,522.60 ,B314,Stock ,9999,Default,435.50 
Nottinghamshire Fire and Rescue Service,104256,Management & Support Services,Bristol Uniforms Limited,Bristol Uniforms Limited,1,202407,19/09/2023,P6,9108456,-933.26 ,933.26 ,B314,Stock ,9999,Default,777.72 
Nottinghamshire Fire and Rescue Service,104256,Management & Support Services,Bristol Uniforms Limited,Bristol Uniforms Limited,1,202407,28/09/2023,P6,9108457,"-1,530.91 ","1,530.91 ",B314,Stock ,9999,Default,"1,275.76 "
Nottinghamshire Fire and Rescue Service,104256,Management & Support Services,Dot Promotional Clothing,Dot Promotional Clothing,1,202407,05/10/2023,P6,9108474,-380.88 ,380.88 ,B314,Stock ,9999,Default,317.40 
Nottinghamshire Fire and Rescue Service,104256,Management & Support Services,Dot Promotional Clothing,Dot Promotional Clothing,1,202407,05/10/2023,P6,9108476,-288.00 ,288.00 ,B314,Stock ,9999,Default,240.00 
Nottinghamshire Fire and Rescue Service,104256,Management & Support Services,Bristol Uniforms Limited,Bristol Uniforms Limited,1,202407,04/10/2023,P6,9108477,-351.29 ,351.29 ,B314,Stock ,9999,Default,292.74 
Nottinghamshire Fire and Rescue Service,104256,Management & Support Services,Northern Diver (International) Ltd,Northern Diver (International) Ltd,1,202407,22/09/2023,P6,9108482,-345.00 ,345.00 ,B314,Stock ,9999,Default,278.00 
Nottinghamshire Fire and Rescue Service,104256,Management & Support Services,Northern Diver (International) Ltd,Northern Diver (International) Ltd,1,202407,29/09/2023,P6,9108483,-252.60 ,252.60 ,B314,Stock ,9999,Default,201.00 
Nottinghamshire Fire and Rescue Service,104256,Management & Support Services,Bristol Uniforms Limited,Bristol Uniforms Limited,1,202407,02/10/2023,P6,9108484,"-3,169.68 ","3,169.68 ",B314,Stock ,9999,Default,"2,641.40 "
Nottinghamshire Fire and Rescue Service,104256,Management & Support Services,Eastern Shires Purchasing Organisation,Eastern Shires Purchasing Organisation,1,202407,03/10/2023,P6,9108487,-469.56 ,469.56 ,B314,Stock ,9999,Default,391.30 
Nottinghamshire Fire and Rescue Service,104256,Management & Support Services,Northern Diver (International) Ltd,Northern Diver (International) Ltd,1,202407,21/09/2023,P6,9108491,-601.80 ,601.80 ,B314,Stock ,9999,Default,492.00 
Nottinghamshire Fire and Rescue Service,104256,Management & Support Services,Joseph Gleave and Son Limited -Joseph Gleave and Son (Holdings) Limited,Joseph Gleave and Son Limited -Joseph Gleave and Son (Holdings) Limited,5,202407,06/10/2023,P6,9108492,-299.90 ,299.90 ,B314,Stock ,9999,Default,249.92 
Nottinghamshire Fire and Rescue Service,102655,Management & Support Services,Joseph Gleave and Son Limited -Joseph Gleave and Son (Holdings) Limited,Joseph Gleave and Son Limited -Joseph Gleave and Son (Holdings) Limited,5,202407,06/10/2023,P6,9108494,-344.16 ,344.16 ,B314,Stock ,9999,Default,286.80 
Nottinghamshire Fire and Rescue Service,102864,Management & Support Services,Dot Promotional Clothing,Dot Promotional Clothing,1,202407,05/10/2023,P6,9108498,-507.84 ,507.84 ,B314,Stock ,9999,Default,423.20 
Nottinghamshire Fire and Rescue Service,103849,Management & Support Services,Bristol Uniforms Limited,Bristol Uniforms Limited,1,202407,10/10/2023,P6,9108512,-456.00 ,456.00 ,B314,Stock ,9999,Default,380.00 
Nottinghamshire Fire and Rescue Service,102864,Management & Support Services,MPL (Yorkshire) Ltd,MPL (Yorkshire) Ltd,5,202407,10/10/2023,P6,9108547,-615.60 ,615.60 ,B314,Stock ,9999,Default,513.00 
Nottinghamshire Fire and Rescue Service,103871,Management & Support Services,Aero Healthcare Limited,Aero Healthcare Limited,5,202407,18/07/2023,P6,9108554,"-1,582.80 ","1,582.80 ",B314,Stock ,9999,Default,"1,319.01 "
Nottinghamshire Fire and Rescue Service,103582,Management & Support Services,Eastern Shires Purchasing Organisation,Eastern Shires Purchasing Organisation,1,202407,10/10/2023,P6,9108555,-861.66 ,861.66 ,B314,Stock ,9999,Default,718.05 
Nottinghamshire Fire and Rescue Service,100468,Management & Support Services,FireAngel Safety Technology Limited,FireAngel Safety Technology Limited,1,202407,11/10/2023,P6,9108598,"-15,600.00 ","15,600.00 ",B314,Stock ,9999,Default,"13,000.00 "
Nottinghamshire Fire and Rescue Service,100468,Management & Support Services,Complete Business Solutions Group Ltd,Complete Business Solutions Group Ltd,1,202407,13/10/2023,P6,9108620,-267.00 ,267.00 ,B314,Stock ,9999,Default,222.50 
Nottinghamshire Fire and Rescue Service,102376,Management & Support Services,Bristol Uniforms Limited,Bristol Uniforms Limited,1,202407,11/10/2023,P6,9108621,-633.94 ,633.94 ,B314,Stock ,9999,Default,528.28 
Nottinghamshire Fire and Rescue Service,102376,Management & Support Services,Thomas Kneale & Co Ltd,Thomas Kneale & Co Ltd,1,202407,11/10/2023,P6,9108629,"-3,353.40 ","3,353.40 ",B314,Stock ,9999,Default,"2,794.50 "
Nottinghamshire Fire and Rescue Service,102376,Management & Support Services,Vimpex Limited,Vimpex Limited,5,202407,13/10/2023,P6,9108669,"-1,260.00 ","1,260.00 ",B314,Stock ,9999,Default,"1,050.00 "
Nottinghamshire Fire and Rescue Service,104020,Management & Support Services,Dot Promotional Clothing,Dot Promotional Clothing,1,202407,06/10/2023,P6,9108705,-748.20 ,748.20 ,B314,Stock ,9999,Default,623.50 
Nottinghamshire Fire and Rescue Service,102203,Management & Support Services,Dot Promotional Clothing,Dot Promotional Clothing,1,202407,16/10/2023,P6,9108709,"-1,033.20 ","1,033.20 ",B314,Stock ,9999,Default,861.00 
Nottinghamshire Fire and Rescue Service,101844,Management & Support Services,Yorkshire Purchasing Organisation,Yorkshire Purchasing Organisation,1,202407,11/10/2023,P6,9108728,-975.48 ,975.48 ,B314,Stock ,9999,Default,812.90 
Nottinghamshire Fire and Rescue Service,100125,Management & Support Services,Eastern Shires Purchasing Organisation,Eastern Shires Purchasing Organisation,1,202407,17/10/2023,P6,9108729,-413.04 ,413.04 ,B314,Stock ,9999,Default,344.20 
Nottinghamshire Fire and Rescue Service,100357,Management & Support Services,Rosenbauer UK Plc,Rosenbauer UK Plc,1,202407,19/10/2023,P6,9108747,-293.76 ,293.76 ,B314,Stock ,9999,Default,235.00 
Nottinghamshire Fire and Rescue Service,103242,Management & Support Services,Dot Promotional Clothing,Dot Promotional Clothing,1,202407,20/10/2023,P6,9108751,"-1,078.87 ","1,078.87 ",B314,Stock ,9999,Default,899.06 
Nottinghamshire Fire and Rescue Service,102203,Management & Support Services,Dot Promotional Clothing,Dot Promotional Clothing,1,202407,20/10/2023,P6,9108752,-288.00 ,288.00 ,B314,Stock ,9999,Default,240.00 
Nottinghamshire Fire and Rescue Service,104307,Management & Support Services,Dot Promotional Clothing,Dot Promotional Clothing,1,202407,20/10/2023,P6,9108754,-380.88 ,380.88 ,B314,Stock ,9999,Default,317.40 
Nottinghamshire Fire and Rescue Service,102280,Management & Support Services,Dot Promotional Clothing,Dot Promotional Clothing,1,202407,20/10/2023,P6,9108755,-914.11 ,914.11 ,B314,Stock ,9999,Default,761.76 
Nottinghamshire Fire and Rescue Service,102280,Management & Support Services,Northern Diver (International) Ltd,Northern Diver (International) Ltd,1,202407,17/10/2023,P6,9108758,-475.80 ,475.80 ,B314,Stock ,9999,Default,387.00 
Nottinghamshire Fire and Rescue Service,102280,Management & Support Services,Specialised Canvas Group,Specialised Canvas Group,1,202407,19/10/2023,P6,9108759,-321.87 ,321.87 ,B314,Stock ,9999,Default,252.62 
Nottinghamshire Fire and Rescue Service,102280,Management & Support Services,William Sugden & sons Limited,William Sugden & sons Limited,5,202407,23/10/2023,P6,9108800,"-1,775.11 ","1,775.11 ",B314,Stock ,9999,Default,"1,479.26 "
Nottinghamshire Fire and Rescue Service,102280,Management & Support Services,William Sugden & sons Limited,William Sugden & sons Limited,5,202407,23/10/2023,P6,9108803,-479.76 ,479.76 ,B314,Stock ,9999,Default,399.80 
Nottinghamshire Fire and Rescue Service,102280,Management & Support Services,Specialised Canvas Group,Specialised Canvas Group,1,202407,24/10/2023,P6,9108807,-867.93 ,867.93 ,B314,Stock ,9999,Default,695.32 
Nottinghamshire Fire and Rescue Service,102280,Management & Support Services,Bristol Uniforms Limited,Bristol Uniforms Limited,1,202407,19/10/2023,P6,9108809,"-1,005.91 ","1,005.91 ",B314,Stock ,9999,Default,838.26 
Nottinghamshire Fire and Rescue Service,102280,Management & Support Services,Bristol Uniforms Limited,Bristol Uniforms Limited,1,202407,19/10/2023,P6,9108810,"-1,005.91 ","1,005.91 ",B314,Stock ,9999,Default,838.26 
Nottinghamshire Fire and Rescue Service,102280,Management & Support Services,Bristol Uniforms Limited,Bristol Uniforms Limited,1,202407,19/10/2023,P6,9108811,-670.61 ,670.61 ,B314,Stock ,9999,Default,558.84 
Nottinghamshire Fire and Rescue Service,102280,Management & Support Services,MPL (Yorkshire) Ltd,MPL (Yorkshire) Ltd,5,202407,20/10/2023,P6,9108812,-270.00 ,270.00 ,B314,Stock ,9999,Default,225.00 
Nottinghamshire Fire and Rescue Service,102280,Management & Support Services,New Balance Athletic Shoes (UK) Limited,New Balance Athletic Shoes (UK) Limited,5,202407,24/10/2023,P6,9108817,-532.06 ,532.06 ,B314,Stock ,9999,Default,443.38 
Nottinghamshire Fire and Rescue Service,102280,Management & Support Services,Hot Pack International,Hot Pack International,5,202407,23/10/2023,P6,9108828,"-1,378.00 ","1,378.00 ",B314,Stock ,9999,Default,"1,302.40 "
Nottinghamshire Fire and Rescue Service,102280,Management & Support Services,SME HCI Ltd (Trading as Vivup),SME HCI Ltd (Trading as Vivup),5,202407,01/03/2025,P6,9108633,-541.55 ,541.55 ,B900,Payover Debit,9999,Default,451.29 
Nottinghamshire Fire and Rescue Service,102280,Management & Support Services,SME HCI Ltd (Trading as Vivup),SME HCI Ltd (Trading as Vivup),5,202407,01/10/2023,P6,9108634,"-2,262.00 ","2,262.00 ",B900,Payover Debit,9999,Default,"1,885.00 "
Nottinghamshire Fire and Rescue Service,102280,Management & Support Services,SME HCI Ltd (Trading as Vivup),SME HCI Ltd (Trading as Vivup),5,202407,01/01/2025,P6,9108635,-250.90 ,250.90 ,B900,Payover Debit,9999,Default,209.08 
Nottinghamshire Fire and Rescue Service,102280,Management & Support Services,SME HCI Ltd (Trading as Vivup),SME HCI Ltd (Trading as Vivup),5,202407,01/03/2025,P6,9108636,-250.90 ,250.90 ,B900,Payover Debit,9999,Default,209.08 
Nottinghamshire Fire and Rescue Service,102280,Management & Support Services,SME HCI Ltd (Trading as Vivup),SME HCI Ltd (Trading as Vivup),5,202407,01/12/2023,P6,9108638,-262.73 ,262.73 ,B900,Payover Debit,9999,Default,218.94 
Nottinghamshire Fire and Rescue Service,102280,Management & Support Services,SME HCI Ltd (Trading as Vivup),SME HCI Ltd (Trading as Vivup),5,202407,01/03/2024,P6,9108639,-262.73 ,262.73 ,B900,Payover Debit,9999,Default,218.94 
Nottinghamshire Fire and Rescue Service,102280,Management & Support Services,SME HCI Ltd (Trading as Vivup),SME HCI Ltd (Trading as Vivup),5,202407,01/03/2024,P6,9108640,-250.90 ,250.90 ,B900,Payover Debit,9999,Default,209.08 
Nottinghamshire Fire and Rescue Service,102280,Management & Support Services,SME HCI Ltd (Trading as Vivup),SME HCI Ltd (Trading as Vivup),5,202407,01/07/2024,P6,9108641,-250.90 ,250.90 ,B900,Payover Debit,9999,Default,209.08 
Nottinghamshire Fire and Rescue Service,102280,Management & Support Services,SME HCI Ltd (Trading as Vivup),SME HCI Ltd (Trading as Vivup),5,202407,01/08/2024,P6,9108642,-250.90 ,250.90 ,B900,Payover Debit,9999,Default,209.08 
Nottinghamshire Fire and Rescue Service,102280,Management & Support Services,SME HCI Ltd (Trading as Vivup),SME HCI Ltd (Trading as Vivup),5,202407,01/09/2024,P6,9108643,-250.90 ,250.90 ,B900,Payover Debit,9999,Default,209.08 
Nottinghamshire Fire and Rescue Service,103958,Management & Support Services,SME HCI Ltd (Trading as Vivup),SME HCI Ltd (Trading as Vivup),5,202407,01/10/2024,P6,9108644,-250.90 ,250.90 ,B900,Payover Debit,9999,Default,209.08 
Nottinghamshire Fire and Rescue Service,103960,Management & Support Services,SME HCI Ltd (Trading as Vivup),SME HCI Ltd (Trading as Vivup),5,202407,01/11/2024,P6,9108645,-250.90 ,250.90 ,B900,Payover Debit,9999,Default,209.08 
Nottinghamshire Fire and Rescue Service,103960,Management & Support Services,SME HCI Ltd (Trading as Vivup),SME HCI Ltd (Trading as Vivup),5,202407,01/12/2024,P6,9108646,-250.90 ,250.90 ,B900,Payover Debit,9999,Default,209.08 
Nottinghamshire Fire and Rescue Service,103589,Management & Support Services,SME HCI Ltd (Trading as Vivup),SME HCI Ltd (Trading as Vivup),5,202407,01/02/2025,P6,9108647,-250.90 ,250.90 ,B900,Payover Debit,9999,Default,209.08 
Nottinghamshire Fire and Rescue Service,103589,Management & Support Services,SME HCI Ltd (Trading as Vivup),SME HCI Ltd (Trading as Vivup),5,202407,01/05/2024,P6,9108648,-262.73 ,262.73 ,B900,Payover Debit,9999,Default,218.94 
Nottinghamshire Fire and Rescue Service,104098,Management & Support Services,SME HCI Ltd (Trading as Vivup),SME HCI Ltd (Trading as Vivup),5,202407,01/06/2024,P6,9108649,-262.73 ,262.73 ,B900,Payover Debit,9999,Default,218.94 
Nottinghamshire Fire and Rescue Service,104098,Management & Support Services,SME HCI Ltd (Trading as Vivup),SME HCI Ltd (Trading as Vivup),5,202407,01/10/2024,P6,9108650,-262.73 ,262.73 ,B900,Payover Debit,9999,Default,218.94 
Nottinghamshire Fire and Rescue Service,104098,Management & Support Services,SME HCI Ltd (Trading as Vivup),SME HCI Ltd (Trading as Vivup),5,202407,01/09/2023,P6,9108657,-262.73 ,262.73 ,B900,Payover Debit,9999,Default,218.94 
Nottinghamshire Fire and Rescue Service,104098,Management & Support Services,SME HCI Ltd (Trading as Vivup),SME HCI Ltd (Trading as Vivup),5,202407,01/10/2023,P6,9108658,-262.73 ,262.73 ,B900,Payover Debit,9999,Default,218.94 
Nottinghamshire Fire and Rescue Service,103064,Management & Support Services,SME HCI Ltd (Trading as Vivup),SME HCI Ltd (Trading as Vivup),5,202407,01/04/2024,P6,9108659,-262.73 ,262.73 ,B900,Payover Debit,9999,Default,218.94 
Nottinghamshire Fire and Rescue Service,103064,Management & Support Services,SME HCI Ltd (Trading as Vivup),SME HCI Ltd (Trading as Vivup),5,202407,01/08/2024,P6,9108660,-262.73 ,262.73 ,B900,Payover Debit,9999,Default,218.94 
Nottinghamshire Fire and Rescue Service,100779,Management & Support Services,SME HCI Ltd (Trading as Vivup),SME HCI Ltd (Trading as Vivup),5,202407,01/01/2025,P6,9108661,-262.73 ,262.73 ,B900,Payover Debit,9999,Default,218.94 
Nottinghamshire Fire and Rescue Service,101001,Management & Support Services,SME HCI Ltd (Trading as Vivup),SME HCI Ltd (Trading as Vivup),5,202407,01/11/2023,P6,9108662,-250.90 ,250.90 ,B900,Payover Debit,9999,Default,209.08 
Nottinghamshire Fire and Rescue Service,104045,Management & Support Services,SME HCI Ltd (Trading as Vivup),SME HCI Ltd (Trading as Vivup),5,202407,01/12/2023,P6,9108663,-250.90 ,250.90 ,B900,Payover Debit,9999,Default,209.08 
Nottinghamshire Fire and Rescue Service,104045,Management & Support Services,SME HCI Ltd (Trading as Vivup),SME HCI Ltd (Trading as Vivup),5,202407,01/01/2024,P6,9108664,-250.90 ,250.90 ,B900,Payover Debit,9999,Default,209.08 
Nottinghamshire Fire and Rescue Service,104045,Management & Support Services,SME HCI Ltd (Trading as Vivup),SME HCI Ltd (Trading as Vivup),5,202407,01/04/2024,P6,9108665,-250.90 ,250.90 ,B900,Payover Debit,9999,Default,209.08 
Nottinghamshire Fire and Rescue Service,103958,Management & Support Services,SME HCI Ltd (Trading as Vivup),SME HCI Ltd (Trading as Vivup),5,202407,01/05/2024,P6,9108666,-250.90 ,250.90 ,B900,Payover Debit,9999,Default,209.08 
Nottinghamshire Fire and Rescue Service,103958,Management & Support Services,SME HCI Ltd (Trading as Vivup),SME HCI Ltd (Trading as Vivup),5,202407,01/11/2023,P6,9108678,-262.73 ,262.73 ,B900,Payover Debit,9999,Default,218.94 
Nottinghamshire Fire and Rescue Service,103958,Management & Support Services,SME HCI Ltd (Trading as Vivup),SME HCI Ltd (Trading as Vivup),5,202407,01/02/2025,P6,9108679,-566.88 ,566.88 ,B900,Payover Debit,9999,Default,472.40 
Nottinghamshire Fire and Rescue Service,103958,Management & Support Services,SME HCI Ltd (Trading as Vivup),SME HCI Ltd (Trading as Vivup),5,202407,01/01/2024,P6,9108680,-262.73 ,262.73 ,B900,Payover Debit,9999,Default,218.94 
Nottinghamshire Fire and Rescue Service,103373,Management & Support Services,SME HCI Ltd (Trading as Vivup),SME HCI Ltd (Trading as Vivup),5,202407,01/02/2024,P6,9108681,-262.73 ,262.73 ,B900,Payover Debit,9999,Default,218.94 
Nottinghamshire Fire and Rescue Service,103344,Management & Support Services,SME HCI Ltd (Trading as Vivup),SME HCI Ltd (Trading as Vivup),5,202407,01/07/2024,P6,9108682,-262.73 ,262.73 ,B900,Payover Debit,9999,Default,218.94 
Nottinghamshire Fire and Rescue Service,102103,Management & Support Services,SME HCI Ltd (Trading as Vivup),SME HCI Ltd (Trading as Vivup),5,202407,01/09/2024,P6,9108683,-262.73 ,262.73 ,B900,Payover Debit,9999,Default,218.94 
Nottinghamshire Fire and Rescue Service,102103,Management & Support Services,SME HCI Ltd (Trading as Vivup),SME HCI Ltd (Trading as Vivup),5,202407,01/11/2024,P6,9108684,-262.73 ,262.73 ,B900,Payover Debit,9999,Default,218.94 
Nottinghamshire Fire and Rescue Service,102103,Management & Support Services,SME HCI Ltd (Trading as Vivup),SME HCI Ltd (Trading as Vivup),5,202407,01/12/2024,P6,9108685,-262.73 ,262.73 ,B900,Payover Debit,9999,Default,218.94 
Nottinghamshire Fire and Rescue Service,102103,Management & Support Services,SME HCI Ltd (Trading as Vivup),SME HCI Ltd (Trading as Vivup),5,202407,01/02/2025,P6,9108686,-262.73 ,262.73 ,B900,Payover Debit,9999,Default,218.94 
Nottinghamshire Fire and Rescue Service,102103,Management & Support Services,SME HCI Ltd (Trading as Vivup),SME HCI Ltd (Trading as Vivup),5,202407,01/10/2023,P6,9108690,-250.90 ,250.90 ,B900,Payover Debit,9999,Default,209.08 
Nottinghamshire Fire and Rescue Service,104098,Management & Support Services,SME HCI Ltd (Trading as Vivup),SME HCI Ltd (Trading as Vivup),5,202407,01/02/2024,P6,9108691,-250.90 ,250.90 ,B900,Payover Debit,9999,Default,209.08 
Nottinghamshire Fire and Rescue Service,103344,Management & Support Services,SME HCI Ltd (Trading as Vivup),SME HCI Ltd (Trading as Vivup),5,202407,01/06/2024,P6,9108692,-250.90 ,250.90 ,B900,Payover Debit,9999,Default,209.08 
Nottinghamshire Fire and Rescue Service,102375,Management & Support Services,Angloco Limited,Angloco Limited,1,202407,03/10/2023,P6,9108449,"-166,378.80 ","166,378.80 ",C001,Vehicle Purchase,4000,Rescue Pump Replacement,"138,649.00 "
Nottinghamshire Fire and Rescue Service,104098,Management & Support Services,Angloco Limited,Angloco Limited,1,202407,10/10/2023,P6,9108559,"-166,378.80 ","166,378.80 ",C001,Vehicle Purchase,4000,Rescue Pump Replacement,"138,649.00 "
Nottinghamshire Fire and Rescue Service,102744,Management & Support Services,NightSearcher LTD,NightSearcher LTD,5,202407,10/10/2023,P6,9108599,-772.80 ,772.80 ,C001,Vehicle Purchase,2084,Engineering,644.00 
Nottinghamshire Fire and Rescue Service,102744,Management & Support Services,RAM Mount UK Ltd,RAM Mount UK Ltd,5,202407,01/09/2023,P6,9108606,-265.61 ,265.61 ,C001,Vehicle Purchase,4000,Rescue Pump Replacement,221.34 
Nottinghamshire Fire and Rescue Service,102744,Management & Support Services,Radiocoms Systems Ltd,Radiocoms Systems Ltd,1,202407,13/10/2023,P6,9108714,"-24,388.13 ","24,388.13 ",C001,Vehicle Purchase,4000,Rescue Pump Replacement,"20,323.44 "
Nottinghamshire Fire and Rescue Service,102744,Management & Support Services,Nottinghamshire Police and Crime Commissioner,Nottinghamshire Police and Crime Commissioner,4,202407,27/09/2023,P6,9108522,"-2,868.11 ","2,868.11 ",C101,Building Works,4102,Strategic New Build Projects,"2,868.11 "
Nottinghamshire Fire and Rescue Service,102744,Management & Support Services,Browne Jacobson LLP,Browne Jacobson LLP,1,202407,27/09/2023,P6,9108656,"-1,118.28 ","1,118.28 ",C157,Professional Fees - Legal,4102,Strategic New Build Projects,415.00 
Nottinghamshire Fire and Rescue Service,102744,Management & Support Services,Amptron Electrical Services,Amptron Electrical Services,1,202407,29/09/2023,P6,9108398,-992.76 ,992.76 ,C200,Hardware,4300,ICT Capital Programme,827.30 
Nottinghamshire Fire and Rescue Service,102744,Management & Support Services,Risual Limited,Risual Limited,5,202407,30/09/2023,P6,9108550,"-1,137.56 ","1,137.56 ",C200,Hardware,4300,ICT Capital Programme,947.97 
Nottinghamshire Fire and Rescue Service,102744,Management & Support Services,Risual Limited,Risual Limited,5,202407,30/09/2023,P6,9108806,"13,295.29 ","-13,295.29 ",C200,Hardware,4300,ICT Capital Programme,"-11,079.41 "
Nottinghamshire Fire and Rescue Service,102744,Management & Support Services,Performance Monitoring Systems Ltd,Performance Monitoring Systems Ltd,1,202407,09/10/2023,P6,9108508,"-2,880.00 ","2,880.00 ",C201,Software and Licences,4300,ICT Capital Programme,"2,400.00 "
Nottinghamshire Fire and Rescue Service,103483,Management & Support Services,Risual Limited,Risual Limited,5,202407,29/09/2023,P6,9108404,"-1,140.00 ","1,140.00 ",C202,Consultancy and Services,4300,ICT Capital Programme,950.00 
Nottinghamshire Fire and Rescue Service,104098,Management & Support Services,Civica Uk Limited,Civica Uk Limited,1,202407,30/09/2023,P6,9108507,"-60,961.20 ","60,961.20 ",C202,Consultancy and Services,4300,ICT Capital Programme,"50,801.00 "
,***Note:,,,,,,,,,,,,,,,
,"***The report shows the payment in its original form. This means disaggregating many invoices into individual component payments many of which will be less than £250 in their own right. This explains why you will see many of the amounts showing less than £250. They were, however, paid as part of an invoice of £250 or more.

**** The Invoice date is the date issued on the invoice. This date may fall out of the date range for the report. In most cases this is due to the invoice being received  late.",,,,,,,,,,,,,,,